Service Area,Service Division,Expense Type,Expense Code,Detailed Expense Type,Payment Date,Transaction Number,Amount Exc VAT,Supplier Name
Neighbourhoods and Climate Change,Technical Services CM0300,Supplies and Services,336005,Advertising E336,01/09/2020,3774062-326213,"1,305.00",JPI MEDIA PUBLISHING LTD T/A SHEFFIELD NEWSPAPERS.
Children and Young Peoples Services,Head of Childrens Social Care,Supplies and Services,304040,Equipment and Materials,01/09/2020,3774043-1038,"24,000.00",GRANDPARENTS PLUS.
Resources BK0010,Legal & Democratic Services,Supplies and Services,338042,Services,01/09/2020,3774031-356543/INVHS39,"2,400.00",DERE STREET BARRISTERS.
Children and Young Peoples Services,Head of Childrens Social Care,Third Party Payments,440046,Other third party payments E440,01/09/2020,3774603-INV-1005,507.52,WE CARE RECRUITMENT SOLUTIONS LTD.
Children and Young Peoples Services,Head of Childrens Social Care,Third Party Payments,440046,Other third party payments E440,01/09/2020,3774603-INV-1009,"4,359.36",WE CARE RECRUITMENT SOLUTIONS LTD.
Children and Young Peoples Services,Head of Childrens Social Care,Third Party Payments,440046,Other third party payments E440,01/09/2020,3774603-INV-1013,"1,288.32",WE CARE RECRUITMENT SOLUTIONS LTD.
Children and Young Peoples Services,Head of Childrens Social Care,Third Party Payments,440046,Other third party payments E440,01/09/2020,3774603-INV-1015,653.92,WE CARE RECRUITMENT SOLUTIONS LTD.
Children and Young Peoples Services,Head of Childrens Social Care,Third Party Payments,440046,Other third party payments E440,01/09/2020,3774603-INV-1042,"6,558.72",WE CARE RECRUITMENT SOLUTIONS LTD.
Children and Young Peoples Services,Head of Childrens Social Care,Third Party Payments,440046,Other third party payments E440,01/09/2020,3774603-INV-1044,"1,873.92",WE CARE RECRUITMENT SOLUTIONS LTD.
Children and Young Peoples Services,Head of Childrens Social Care,Third Party Payments,440046,Other third party payments E440,01/09/2020,3774603-INV-1050,"4,557.76",WE CARE RECRUITMENT SOLUTIONS LTD.
Children and Young Peoples Services,Head of Childrens Social Care,Third Party Payments,440046,Other third party payments E440,01/09/2020,3774603-INV-1052-26/8/20,"5,707.60",WE CARE RECRUITMENT SOLUTIONS LTD.
Children and Young Peoples Services,Head of Childrens Social Care,Third Party Payments,440046,Other third party payments E440,01/09/2020,3774603-INV-1056,878.40,WE CARE RECRUITMENT SOLUTIONS LTD.
Children and Young Peoples Services,Head of Childrens Social Care,Third Party Payments,440046,Other third party payments E440,01/09/2020,3774603-INV-1057,"1,405.44",WE CARE RECRUITMENT SOLUTIONS LTD.
Children and Young Peoples Services,Head of Childrens Social Care,Third Party Payments,440046,Other third party payments E440,01/09/2020,3774603-INV-1059,800.32,WE CARE RECRUITMENT SOLUTIONS LTD.
Children and Young Peoples Services,Head of Childrens Social Care,Third Party Payments,440046,Other third party payments E440,01/09/2020,3774603-INV-3195,614.40,WE CARE RECRUITMENT SOLUTIONS LTD.
Neighbourhoods and Climate Change,Technical Services CM0300,Fees,901004,Capital - Detailed Design,01/09/2020,3774131-102218,"32,299.32",UNIVERSAL SYSTEMS SOLUTIONS (SECURITY) LTD.
Adult and Health Services,Head of Adults,Third Party Payments,479140,Purchase of Care,01/09/2020,3774193-SUSTAINABILITYPAYMENT4,"8,346.38",ASCOT CARE NORTH EAST LTD..
Adult and Health Services,Head of Adults,Third Party Payments,479140,Purchase of Care,01/09/2020,3774271-SUSTAINABILITYPAYMENT5,"71,458.31",CROWN CARE VI LTD.
Adult and Health Services,Head of Adults,Third Party Payments,479140,Purchase of Care,01/09/2020,3774370-SUSTAINABILITYPAYMENT3,"131,157.40",IDEAL CARE (NORTH) LTD.
Adult and Health Services,Head of Adults,Third Party Payments,479140,Purchase of Care,01/09/2020,3774408-SUSTAINABILITYPAYMENT1,"21,462.12",MARIPOSA CARE GROUP LTD.
Adult and Health Services,Head of Adults,Third Party Payments,479140,Purchase of Care,01/09/2020,3774410-SUSTAINABILITYPAYMENT2,"12,519.57",MARIPOSA CARE LTD.
Children and Young Peoples Services,Head of Childrens Social Care,Third Party Payments,440062,Other third party payments E440,01/09/2020,3774278-PIG_71579,"2,453.10",DALE CARE LTD.
Children and Young Peoples Services,Head of Childrens Social Care,Third Party Payments,440062,Other third party payments E440,01/09/2020,3774303-PIG_70904,811.20,EMBRACING CARE.
Children and Young Peoples Services,Head of Childrens Social Care,Third Party Payments,440062,Other third party payments E440,01/09/2020,3774468-PIG_71588,"2,995.20",ORCHARD HOME CARE SERVICES LTD.
Children and Young Peoples Services,Head of Childrens Social Care,Third Party Payments,440062,Other third party payments E440,01/09/2020,3774530-PIG_70903,"5,366.40",SECOND TO NONE CARE LTD.
Adult and Health Services,Head of Adults,Third Party Payments,440062,Other third party payments E440,01/09/2020,3774561-PIG_71607,624.00,SUPPORTIVE SRC LTD.
Adult and Health Services,Head of Adults,Third Party Payments,440062,Other third party payments E440,01/09/2020,3775390-2012169H,"1,747.20",SUPPORTIVE SRC LTD.
Resources BK0010,Digital and Customer Services,Vehicles Equipment Furniture and Fittings,912701,Computer equipment,01/09/2020,3774142-KX12565,"2,190.00",XMA LTD.
Resources BK0010,Digital and Customer Services,Vehicles Equipment Furniture and Fittings,912701,Computer equipment,01/09/2020,3774142-KX15051,930.00,XMA LTD.
"Regeneration, Economy and Growth",Transport and Contracted Services,Supplies and Services,342033,Computers and Communications,01/09/2020,3774113-134107,812.39,SWITCHSHOP LTD.
Resources BK0010,Corporate Finance & Commercial Services,Supplies and Services,342033,Computers and Communications,01/09/2020,3774113-134075,"2,608.92",SWITCHSHOP LTD.
Resources BK0010,Digital and Customer Services,Supplies and Services,342033,Computers and Communications,01/09/2020,3774113-134108,812.39,SWITCHSHOP LTD.
Resources BK0010,Digital and Customer Services,Supplies and Services,342033,Computers and Communications,01/09/2020,3774113-134109,812.39,SWITCHSHOP LTD.
Children and Young Peoples Services,Head of Childrens Social Care,Construction work A908,908105,Construction work,01/09/2020,3774097-5756,"1,735.68",SAFE STRIP UK LTD.
Adult and Health Services,Head of Adults,Third Party Payments,473101,Purchase of Care,01/09/2020,3774881-2008950H,576.00,BID SERVICES.
Adult and Health Services,Head of Adults,Third Party Payments,473101,Purchase of Care,01/09/2020,3774984-2016882D,"9,385.92",EDUCATION & SERVICES FOR PEOPLE WITH AUTISM LTD (ESPA).
Adult and Health Services,Head of Adults,Third Party Payments,473101,Purchase of Care,01/09/2020,3774984-2016883D,"9,385.92",EDUCATION & SERVICES FOR PEOPLE WITH AUTISM LTD (ESPA).
Adult and Health Services,Head of Adults,Third Party Payments,473101,Purchase of Care,01/09/2020,3774983-2003463D,"2,043.36",EDUCATION & SERVICES FOR PEOPLE WITH AUTISM LTD (ESPA).
Adult and Health Services,Head of Adults,Third Party Payments,473101,Purchase of Care,01/09/2020,3774983-2010250D,"2,043.36",EDUCATION & SERVICES FOR PEOPLE WITH AUTISM LTD (ESPA).
Adult and Health Services,Head of Adults,Third Party Payments,473101,Purchase of Care,01/09/2020,3774983-2004364D,"2,915.60",EDUCATION & SERVICES FOR PEOPLE WITH AUTISM LTD (ESPA).
Adult and Health Services,Head of Adults,Third Party Payments,473101,Purchase of Care,01/09/2020,3774983-2011153D,"2,915.60",EDUCATION & SERVICES FOR PEOPLE WITH AUTISM LTD (ESPA).
Adult and Health Services,Head of Adults,Third Party Payments,473101,Purchase of Care,01/09/2020,3774983-2007719D,"4,528.00",EDUCATION & SERVICES FOR PEOPLE WITH AUTISM LTD (ESPA).
Adult and Health Services,Head of Adults,Third Party Payments,473101,Purchase of Care,01/09/2020,3774983-2014570D,"4,528.00",EDUCATION & SERVICES FOR PEOPLE WITH AUTISM LTD (ESPA).
Adult and Health Services,Head of Adults,Third Party Payments,473101,Purchase of Care,01/09/2020,3774984-2005626D,"1,097.60",EDUCATION & SERVICES FOR PEOPLE WITH AUTISM LTD (ESPA).
Adult and Health Services,Head of Adults,Third Party Payments,473101,Purchase of Care,01/09/2020,3774984-2012437D,"1,097.60",EDUCATION & SERVICES FOR PEOPLE WITH AUTISM LTD (ESPA).
Adult and Health Services,Head of Adults,Third Party Payments,473101,Purchase of Care,01/09/2020,3775000-2008954D,714.00,ENDEAVOUR WOODCRAFTS CIC.
Adult and Health Services,Head of Adults,Third Party Payments,473101,Purchase of Care,01/09/2020,3775000-2008998D,678.30,ENDEAVOUR WOODCRAFTS CIC.
Adult and Health Services,Head of Adults,Third Party Payments,473101,Purchase of Care,01/09/2020,3775000-2009002D,512.00,ENDEAVOUR WOODCRAFTS CIC.
Adult and Health Services,Head of Adults,Third Party Payments,473101,Purchase of Care,01/09/2020,3775000-2009040D,642.60,ENDEAVOUR WOODCRAFTS CIC.
Adult and Health Services,Head of Adults,Third Party Payments,473101,Purchase of Care,01/09/2020,3775000-2009087D,714.00,ENDEAVOUR WOODCRAFTS CIC.
Adult and Health Services,Head of Adults,Third Party Payments,473101,Purchase of Care,01/09/2020,3775046-2015654H,"1,224.00",INCLUDE IN AUTISM.
Adult and Health Services,Head of Adults,Third Party Payments,473101,Purchase of Care,01/09/2020,3775109-2011072H,"1,775.20",JS PARKER LTD.
Adult and Health Services,Head of Adults,Third Party Payments,473101,Purchase of Care,01/09/2020,3775125-2011810H,"1,477.80",KEY HOUSING ASSOCIATION.
Adult and Health Services,Head of Adults,Third Party Payments,473101,Purchase of Care,01/09/2020,3775225-2009168D,540.00,MOVEABLE FEASTS ARTS.
Adult and Health Services,Head of Adults,Third Party Payments,473101,Purchase of Care,01/09/2020,3775225-2009531D,900.00,MOVEABLE FEASTS ARTS.
Adult and Health Services,Head of Adults,Third Party Payments,473101,Purchase of Care,01/09/2020,3775226-2016633D,"2,748.76",MR & MRS BURNS.
Adult and Health Services,Head of Adults,Third Party Payments,473101,Purchase of Care,01/09/2020,3775268-2013165H,669.50,MVP SUPPORT.
Adult and Health Services,Head of Adults,Third Party Payments,473101,Purchase of Care,01/09/2020,3775268-2009227H,721.00,MVP SUPPORT.
Adult and Health Services,Head of Adults,Third Party Payments,473101,Purchase of Care,01/09/2020,3775282-2010202H,816.00,NORTH EAST BEFRIENDING SERVICE CIC.
Adult and Health Services,Head of Adults,Third Party Payments,473101,Purchase of Care,01/09/2020,3775335-2010614D,"1,113.00",REAL CARE LTD.
Adult and Health Services,Head of Adults,Third Party Payments,473101,Purchase of Care,01/09/2020,3775335-2010811D,"1,113.00",REAL CARE LTD.
Adult and Health Services,Head of Adults,Third Party Payments,473101,Purchase of Care,01/09/2020,3775335-2011169D,"1,640.40",REAL CARE LTD.
Adult and Health Services,Head of Adults,Third Party Payments,473101,Purchase of Care,01/09/2020,3775335-2011184D,"1,360.00",REAL CARE LTD.
Adult and Health Services,Head of Adults,Third Party Payments,473101,Purchase of Care,01/09/2020,3775335-2014085D,"1,862.17",REAL CARE LTD.
Adult and Health Services,Head of Adults,Third Party Payments,473101,Purchase of Care,01/09/2020,3775335-2010245D,"1,640.40",REAL CARE LTD.
Adult and Health Services,Head of Adults,Third Party Payments,473101,Purchase of Care,01/09/2020,3775335-2012024D,"1,113.00",REAL CARE LTD.
Adult and Health Services,Head of Adults,Third Party Payments,473101,Purchase of Care,01/09/2020,3775335-2012288D,556.50,REAL CARE LTD.
Adult and Health Services,Head of Adults,Third Party Payments,473101,Purchase of Care,01/09/2020,3775335-2012939D,"1,093.60",REAL CARE LTD.
Adult and Health Services,Head of Adults,Third Party Payments,473101,Purchase of Care,01/09/2020,3775378-2004430H,"10,062.40",SPRINGFIELD HOMECARE SERVICES LTD.
Adult and Health Services,Head of Adults,Third Party Payments,473101,Purchase of Care,01/09/2020,3775378-2011220H,"10,062.40",SPRINGFIELD HOMECARE SERVICES LTD.
Adult and Health Services,Head of Adults,Third Party Payments,473101,Purchase of Care,01/09/2020,3775420-2014371H,"1,512.00",TURNAROUND HOMES (3 TO 13).
Adult and Health Services,Head of Adults,Third Party Payments,473101,Purchase of Care,01/09/2020,3775431-2009038D,"1,641.60",VOIDSERVICES LTD.
Adult and Health Services,Head of Adults,Third Party Payments,473101,Purchase of Care,01/09/2020,3775431-2009193D,957.60,VOIDSERVICES LTD.
Adult and Health Services,Head of Adults,Third Party Payments,473101,Purchase of Care,01/09/2020,3775431-2010740D,670.32,VOIDSERVICES LTD.
Adult and Health Services,Head of Adults,Third Party Payments,473101,Purchase of Care,01/09/2020,3775431-2012317D,"1,368.00",VOIDSERVICES LTD.
Adult and Health Services,Head of Adults,Third Party Payments,473101,Purchase of Care,01/09/2020,3775431-2012870D,984.96,VOIDSERVICES LTD.
Adult and Health Services,Head of Adults,Third Party Payments,486020,Service level agreements E486,01/09/2020,3774371-PIG_71621,"8,856.76",INCLUDE IN AUTISM.
Adult and Health Services,Head of Adults,Third Party Payments,486020,Service level agreements E486,01/09/2020,3774373-PIG_71622,"1,090.97",INTEGRATING CHILDREN.
Adult and Health Services,Head of Adults,Third Party Payments,486020,Service level agreements E486,01/09/2020,3774455-PIG_71605,"8,815.94",NORTH EAST AUTISM SOCIETY.
Children and Young Peoples Services,Head of Childrens Social Care,Third Party Payments,486020,Service level agreements E486,01/09/2020,3774500-PIG_71623,"1,038.12",REAL LIFE OPTIONS.
Children and Young Peoples Services,Head of Childrens Social Care,Third Party Payments,486020,Service level agreements E486,01/09/2020,3774510-PIG_71587,"13,165.61",ROC FAMILY SUPPORT LTD.
Neighbourhoods and Climate Change,Environmental Services,Transport,215005,Running Costs of Vehicles,01/09/2020,3774081-628241,"10,666.47",OIL NRG LTD.
Neighbourhoods and Climate Change,Environmental Services,Transport,215005,Running Costs of Vehicles,01/09/2020,3774081-628710,"10,681.62",OIL NRG LTD.
Neighbourhoods and Climate Change,Environmental Services,Supplies and Services,304221,Equipment and Materials,01/09/2020,3774001-30210995,694.41,AGGREGATE INDUSTRIES UK LTD.
Neighbourhoods and Climate Change,Technical Services CM0300,Supplies and Services,304221,Equipment and Materials,01/09/2020,3774008-938999334,975.96,ARCO LTD.
"Regeneration, Economy and Growth",Corporate Property and Land,Supplies and Services,304221,Equipment and Materials,01/09/2020,3774036-059-267165,547.43,EDMUNDSON ELECTRICAL LTD.
"Regeneration, Economy and Growth",Corporate Property and Land,Supplies and Services,304221,Equipment and Materials,01/09/2020,3774036-059-267185,833.30,EDMUNDSON ELECTRICAL LTD.
"Regeneration, Economy and Growth",Corporate Property and Land,Supplies and Services,304221,Equipment and Materials,01/09/2020,3774051-SI14713064,568.80,ICI DULUX DECORATOR CENTRES.
Neighbourhoods and Climate Change,Technical Services CM0300,Supplies and Services,304221,Equipment and Materials,01/09/2020,3774063-0303/00152026,558.00,JT DOVE LTD.
Neighbourhoods and Climate Change,Technical Services CM0300,Supplies and Services,304221,Equipment and Materials,01/09/2020,3774063-0303/00155352,"2,008.00",JT DOVE LTD.
Neighbourhoods and Climate Change,Technical Services CM0300,Supplies and Services,304221,Equipment and Materials,01/09/2020,3774073-168261,838.66,MALLATITE LTD T/A MALLATITE PLASTICS LTD.
Neighbourhoods and Climate Change,Technical Services CM0300,Supplies and Services,304221,Equipment and Materials,01/09/2020,3774080-28147,761.60,NORTH EAST CONCRETE LTD.
"Regeneration, Economy and Growth",Corporate Property and Land,Supplies and Services,304221,Equipment and Materials,01/09/2020,3774086-1402977,766.12,PILKINGTON UNITED KINGDOM LTD.
Neighbourhoods and Climate Change,Technical Services CM0300,Supplies and Services,304221,Equipment and Materials,01/09/2020,3774129-212721,"1,075.15",TYNEDALE ROADSTONE LTD.
Adult and Health Services,Head of Adults,Supplies and Services,304259,Equipment and Materials,01/09/2020,3774101-SI-259,"1,380.00",SENSORYPLUS LTD.
Adult and Health Services,Head of Adults,Supplies and Services,304259,Equipment and Materials,01/09/2020,3774127-AUGUST2020,"1,000.00",TUDHOE COMMUNITY CENTRE.
Neighbourhoods and Climate Change,Environmental Services,Supplies and Services,304252,Equipment and Materials,01/09/2020,3774010-1120017742,"3,806.74",ATLAS COPCO LTD T/A ATLAS COPCO COMPRESSORS.
Neighbourhoods and Climate Change,Environmental Services,Cap Exp on Grants & Other Financial Assistance (REFCUS),918501,Exp assets not owned by authority,01/09/2020,3774077-10/08/2020/6179,"2,585.00",MICROPROPAGATION SERVICES (EM) LTD T/A BEADAMOSS.
Neighbourhoods and Climate Change,Environmental Services,Cap Exp on Grants & Other Financial Assistance (REFCUS),918501,Exp assets not owned by authority,01/09/2020,3774077-10/08/2020/6180,"4,230.00",MICROPROPAGATION SERVICES (EM) LTD T/A BEADAMOSS.
Neighbourhoods and Climate Change,Environmental Services,Cap Exp on Grants & Other Financial Assistance (REFCUS),918501,Exp assets not owned by authority,01/09/2020,3774077-14/08/2020/6178,"5,875.00",MICROPROPAGATION SERVICES (EM) LTD T/A BEADAMOSS.
Neighbourhoods and Climate Change,Environmental Services,Cap Exp on Grants & Other Financial Assistance (REFCUS),918501,Exp assets not owned by authority,01/09/2020,3774077-14/08/2020/6181,"5,099.50",MICROPROPAGATION SERVICES (EM) LTD T/A BEADAMOSS.
Children and Young Peoples Services,Head of Childrens Social Care,Supplies and Services,338044,Services,01/09/2020,3774006-1072,"6,593.90",ANDREW BECKWITH INDEPENDENT LTD.
Adult and Health Services,Head of Adults,Third Party Payments,474999,Purchase of Care,01/09/2020,3774182-2634502,630.58,AKARI CARE LTD.
Adult and Health Services,Head of Adults,Third Party Payments,474999,Purchase of Care,01/09/2020,3774540-2634288,"6,309.60",SOLEHAWK LTD T/A ASHTON COURT NURSING HOME.
Adult and Health Services,Head of Adults,Third Party Payments,474999,Purchase of Care,01/09/2020,3774570-2616446,796.99,TAMARIS HEALTHCARE (ENGLAND) LTD.
Neighbourhoods and Climate Change,Environmental Services,Transport,215022,Running Costs of Vehicles,01/09/2020,3774081-628242,"1,303.70",OIL NRG LTD.
Adult and Health Services,Head of Adults,Third Party Payments,472101,Purchase of Care,01/09/2020,3774864-2015550H,"4,128.00",ARCHIE CARE LTD T/A HOME INSTEAD SENIOR CARE DURHAM.
Adult and Health Services,Head of Adults,Third Party Payments,472101,Purchase of Care,01/09/2020,3774866-2013904H,"5,981.40",ASCOT CARE AGENCY LTD.
Adult and Health Services,Head of Adults,Third Party Payments,472101,Purchase of Care,01/09/2020,3774867-2007066H,"4,435.20",ASCOT CARE NORTH EAST LTD..
Adult and Health Services,Head of Adults,Third Party Payments,472101,Purchase of Care,01/09/2020,3774894-2009158H,904.80,CARE MATTERS (HOMECARE) LTD.
Adult and Health Services,Head of Adults,Third Party Payments,472101,Purchase of Care,01/09/2020,3774894-2012153H,530.40,CARE MATTERS (HOMECARE) LTD.
Adult and Health Services,Head of Adults,Third Party Payments,472101,Purchase of Care,01/09/2020,3774894-2009119H,"1,014.00",CARE MATTERS (HOMECARE) LTD.
Adult and Health Services,Head of Adults,Third Party Payments,472101,Purchase of Care,01/09/2020,3774905-2010711H,520.80,CASTLE CARE TEESDALE LTD.
Adult and Health Services,Head of Adults,Third Party Payments,472101,Purchase of Care,01/09/2020,3774905-2010735H,"1,916.80",CASTLE CARE TEESDALE LTD.
Adult and Health Services,Head of Adults,Third Party Payments,472101,Purchase of Care,01/09/2020,3774905-2010779H,860.60,CASTLE CARE TEESDALE LTD.
Adult and Health Services,Head of Adults,Third Party Payments,472101,Purchase of Care,01/09/2020,3774905-2010784H,"1,622.40",CASTLE CARE TEESDALE LTD.
Adult and Health Services,Head of Adults,Third Party Payments,472101,Purchase of Care,01/09/2020,3774905-2011580H,"1,762.80",CASTLE CARE TEESDALE LTD.
Adult and Health Services,Head of Adults,Third Party Payments,472101,Purchase of Care,01/09/2020,3774905-2011723H,752.60,CASTLE CARE TEESDALE LTD.
Adult and Health Services,Head of Adults,Third Party Payments,472101,Purchase of Care,01/09/2020,3774905-2011772H,525.40,CASTLE CARE TEESDALE LTD.
Adult and Health Services,Head of Adults,Third Party Payments,472101,Purchase of Care,01/09/2020,3774905-2012192H,"2,782.32",CASTLE CARE TEESDALE LTD.
Adult and Health Services,Head of Adults,Third Party Payments,472101,Purchase of Care,01/09/2020,3774905-2013695H,551.20,CASTLE CARE TEESDALE LTD.
Adult and Health Services,Head of Adults,Third Party Payments,472101,Purchase of Care,01/09/2020,3774905-2013739H,832.00,CASTLE CARE TEESDALE LTD.
Adult and Health Services,Head of Adults,Third Party Payments,472101,Purchase of Care,01/09/2020,3774905-2013899H,"1,016.40",CASTLE CARE TEESDALE LTD.
Adult and Health Services,Head of Adults,Third Party Payments,472101,Purchase of Care,01/09/2020,3774905-2014382H,876.80,CASTLE CARE TEESDALE LTD.
Adult and Health Services,Head of Adults,Third Party Payments,472101,Purchase of Care,01/09/2020,3774905-2014424H,"2,707.20",CASTLE CARE TEESDALE LTD.
Adult and Health Services,Head of Adults,Third Party Payments,472101,Purchase of Care,01/09/2020,3774905-2014755H,810.00,CASTLE CARE TEESDALE LTD.
Adult and Health Services,Head of Adults,Third Party Payments,472101,Purchase of Care,01/09/2020,3774905-2015245H,509.60,CASTLE CARE TEESDALE LTD.
Adult and Health Services,Head of Adults,Third Party Payments,472101,Purchase of Care,01/09/2020,3774905-2010786H,"1,096.80",CASTLE CARE TEESDALE LTD.
Adult and Health Services,Head of Adults,Third Party Payments,472101,Purchase of Care,01/09/2020,3774905-2014041H,"1,240.80",CASTLE CARE TEESDALE LTD.
Adult and Health Services,Head of Adults,Third Party Payments,472101,Purchase of Care,01/09/2020,3774905-2014729H,"2,839.20",CASTLE CARE TEESDALE LTD.
Adult and Health Services,Head of Adults,Third Party Payments,472101,Purchase of Care,01/09/2020,3774905-2015252H,728.00,CASTLE CARE TEESDALE LTD.
Adult and Health Services,Head of Adults,Third Party Payments,472101,Purchase of Care,01/09/2020,3774246-ADDITIONALUPLIFT6/3,"3,052.09",CASTLE CARE TEESDALE LTD.
Adult and Health Services,Head of Adults,Third Party Payments,472101,Purchase of Care,01/09/2020,3774907-2013502H,"2,652.00",CEL HOMECARE LTD.
Adult and Health Services,Head of Adults,Third Party Payments,472101,Purchase of Care,01/09/2020,3774907-2014417H,"1,502.40",CEL HOMECARE LTD.
Adult and Health Services,Head of Adults,Third Party Payments,472101,Purchase of Care,01/09/2020,3774907-2014680H,"1,965.60",CEL HOMECARE LTD.
Adult and Health Services,Head of Adults,Third Party Payments,472101,Purchase of Care,01/09/2020,3774907-2011856H,"1,428.00",CEL HOMECARE LTD.
Adult and Health Services,Head of Adults,Third Party Payments,472101,Purchase of Care,01/09/2020,3774248-ADDITIONALUPLIFT6/147,550.82,CEL HOMECARE LTD.
Adult and Health Services,Head of Adults,Third Party Payments,472101,Purchase of Care,01/09/2020,3774929-2016871H,"4,810.40",CLASSIC RESOURCES UK LTD T/A CLASSIC RESOURCES HOMECARE.
Adult and Health Services,Head of Adults,Third Party Payments,472101,Purchase of Care,01/09/2020,3774929-2015478H,500.00,CLASSIC RESOURCES UK LTD T/A CLASSIC RESOURCES HOMECARE.
Adult and Health Services,Head of Adults,Third Party Payments,472101,Purchase of Care,01/09/2020,3774929-2014106H,"4,492.80",CLASSIC RESOURCES UK LTD T/A CLASSIC RESOURCES HOMECARE.
Adult and Health Services,Head of Adults,Third Party Payments,472101,Purchase of Care,01/09/2020,3774929-2015276H,"1,500.00",CLASSIC RESOURCES UK LTD T/A CLASSIC RESOURCES HOMECARE.
Adult and Health Services,Head of Adults,Third Party Payments,472101,Purchase of Care,01/09/2020,3774252-ADDITIONALUPLIFT6/152,587.22,CLASSIC RESOURCES UK LTD T/A CLASSIC RESOURCES HOMECARE.
Adult and Health Services,Head of Adults,Third Party Payments,472101,Purchase of Care,01/09/2020,3774254-ADDITIONALUPLIFT6/61,"15,532.97",COMFORT CALL LTD.
Adult and Health Services,Head of Adults,Third Party Payments,472101,Purchase of Care,01/09/2020,3774254-HOMECARESELFFUNDERS6-11,"1,537.00",COMFORT CALL LTD.
Adult and Health Services,Head of Adults,Third Party Payments,472101,Purchase of Care,01/09/2020,3774934-2011327H,612.00,CONFIDENCE CARE & SUPPORT LTD.
Adult and Health Services,Head of Adults,Third Party Payments,472101,Purchase of Care,01/09/2020,3774939-2016875H,529.20,CREATIVE SUPPORT LTD.
Adult and Health Services,Head of Adults,Third Party Payments,472101,Purchase of Care,01/09/2020,3774940-2010595H,982.80,CRESCENT HOMECARE LTD.
Adult and Health Services,Head of Adults,Third Party Payments,472101,Purchase of Care,01/09/2020,3774940-2010633H,635.70,CRESCENT HOMECARE LTD.
Adult and Health Services,Head of Adults,Third Party Payments,472101,Purchase of Care,01/09/2020,3774940-2011080H,"1,263.60",CRESCENT HOMECARE LTD.
Adult and Health Services,Head of Adults,Third Party Payments,472101,Purchase of Care,01/09/2020,3774940-2012211H,764.40,CRESCENT HOMECARE LTD.
Adult and Health Services,Head of Adults,Third Party Payments,472101,Purchase of Care,01/09/2020,3774940-2012274H,"2,184.00",CRESCENT HOMECARE LTD.
Adult and Health Services,Head of Adults,Third Party Payments,472101,Purchase of Care,01/09/2020,3774940-2012341H,655.20,CRESCENT HOMECARE LTD.
Adult and Health Services,Head of Adults,Third Party Payments,472101,Purchase of Care,01/09/2020,3774940-2012922H,759.20,CRESCENT HOMECARE LTD.
Adult and Health Services,Head of Adults,Third Party Payments,472101,Purchase of Care,01/09/2020,3774940-2014050H,655.20,CRESCENT HOMECARE LTD.
Adult and Health Services,Head of Adults,Third Party Payments,472101,Purchase of Care,01/09/2020,3774940-2014296H,743.60,CRESCENT HOMECARE LTD.
Adult and Health Services,Head of Adults,Third Party Payments,472101,Purchase of Care,01/09/2020,3774940-2014347H,650.00,CRESCENT HOMECARE LTD.
Adult and Health Services,Head of Adults,Third Party Payments,472101,Purchase of Care,01/09/2020,3774940-2015212H,613.60,CRESCENT HOMECARE LTD.
Adult and Health Services,Head of Adults,Third Party Payments,472101,Purchase of Care,01/09/2020,3774940-2015235H,928.20,CRESCENT HOMECARE LTD.
Adult and Health Services,Head of Adults,Third Party Payments,472101,Purchase of Care,01/09/2020,3774940-2015402H,764.40,CRESCENT HOMECARE LTD.
Adult and Health Services,Head of Adults,Third Party Payments,472101,Purchase of Care,01/09/2020,3774940-2015447H,569.40,CRESCENT HOMECARE LTD.
Adult and Health Services,Head of Adults,Third Party Payments,472101,Purchase of Care,01/09/2020,3774940-2009768H,936.00,CRESCENT HOMECARE LTD.
Adult and Health Services,Head of Adults,Third Party Payments,472101,Purchase of Care,01/09/2020,3774940-2009953H,"1,965.60",CRESCENT HOMECARE LTD.
Adult and Health Services,Head of Adults,Third Party Payments,472101,Purchase of Care,01/09/2020,3774940-2010118H,959.40,CRESCENT HOMECARE LTD.
Adult and Health Services,Head of Adults,Third Party Payments,472101,Purchase of Care,01/09/2020,3774940-2010648H,"1,614.27",CRESCENT HOMECARE LTD.
Adult and Health Services,Head of Adults,Third Party Payments,472101,Purchase of Care,01/09/2020,3774940-2011057H,925.60,CRESCENT HOMECARE LTD.
Adult and Health Services,Head of Adults,Third Party Payments,472101,Purchase of Care,01/09/2020,3774940-2011320H,"1,872.00",CRESCENT HOMECARE LTD.
Adult and Health Services,Head of Adults,Third Party Payments,472101,Purchase of Care,01/09/2020,3774940-2013075H,764.40,CRESCENT HOMECARE LTD.
Adult and Health Services,Head of Adults,Third Party Payments,472101,Purchase of Care,01/09/2020,3774940-2013549H,780.00,CRESCENT HOMECARE LTD.
Adult and Health Services,Head of Adults,Third Party Payments,472101,Purchase of Care,01/09/2020,3774940-2013737H,682.50,CRESCENT HOMECARE LTD.
Adult and Health Services,Head of Adults,Third Party Payments,472101,Purchase of Care,01/09/2020,3774940-2013872H,504.40,CRESCENT HOMECARE LTD.
Adult and Health Services,Head of Adults,Third Party Payments,472101,Purchase of Care,01/09/2020,3774940-2013979H,676.00,CRESCENT HOMECARE LTD.
Adult and Health Services,Head of Adults,Third Party Payments,472101,Purchase of Care,01/09/2020,3774940-2014083H,754.00,CRESCENT HOMECARE LTD.
Adult and Health Services,Head of Adults,Third Party Payments,472101,Purchase of Care,01/09/2020,3774940-2014354H,795.60,CRESCENT HOMECARE LTD.
Adult and Health Services,Head of Adults,Third Party Payments,472101,Purchase of Care,01/09/2020,3774940-2014626H,691.60,CRESCENT HOMECARE LTD.
Adult and Health Services,Head of Adults,Third Party Payments,472101,Purchase of Care,01/09/2020,3774940-2014741H,780.00,CRESCENT HOMECARE LTD.
Adult and Health Services,Head of Adults,Third Party Payments,472101,Purchase of Care,01/09/2020,3774940-2015181H,754.00,CRESCENT HOMECARE LTD.
Adult and Health Services,Head of Adults,Third Party Payments,472101,Purchase of Care,01/09/2020,3774940-2015187H,631.80,CRESCENT HOMECARE LTD.
Adult and Health Services,Head of Adults,Third Party Payments,472101,Purchase of Care,01/09/2020,3774940-2015193H,873.60,CRESCENT HOMECARE LTD.
Adult and Health Services,Head of Adults,Third Party Payments,472101,Purchase of Care,01/09/2020,3774940-2015414H,686.40,CRESCENT HOMECARE LTD.
Adult and Health Services,Head of Adults,Third Party Payments,472101,Purchase of Care,01/09/2020,3774940-2009275H,711.10,CRESCENT HOMECARE LTD.
Adult and Health Services,Head of Adults,Third Party Payments,472101,Purchase of Care,01/09/2020,3774940-2010114H,655.20,CRESCENT HOMECARE LTD.
Adult and Health Services,Head of Adults,Third Party Payments,472101,Purchase of Care,01/09/2020,3774940-2013325H,665.60,CRESCENT HOMECARE LTD.
Adult and Health Services,Head of Adults,Third Party Payments,472101,Purchase of Care,01/09/2020,3774940-2013370H,"1,170.00",CRESCENT HOMECARE LTD.
Adult and Health Services,Head of Adults,Third Party Payments,472101,Purchase of Care,01/09/2020,3774940-2014973H,613.60,CRESCENT HOMECARE LTD.
Adult and Health Services,Head of Adults,Third Party Payments,472101,Purchase of Care,01/09/2020,3774940-2010227H,830.70,CRESCENT HOMECARE LTD.
Adult and Health Services,Head of Adults,Third Party Payments,472101,Purchase of Care,01/09/2020,3774940-2010515H,658.32,CRESCENT HOMECARE LTD.
Adult and Health Services,Head of Adults,Third Party Payments,472101,Purchase of Care,01/09/2020,3774940-2010517H,582.40,CRESCENT HOMECARE LTD.
Adult and Health Services,Head of Adults,Third Party Payments,472101,Purchase of Care,01/09/2020,3774940-2010646H,998.40,CRESCENT HOMECARE LTD.
Adult and Health Services,Head of Adults,Third Party Payments,472101,Purchase of Care,01/09/2020,3774940-2011730H,904.80,CRESCENT HOMECARE LTD.
Adult and Health Services,Head of Adults,Third Party Payments,472101,Purchase of Care,01/09/2020,3774940-2011861H,"2,620.80",CRESCENT HOMECARE LTD.
Adult and Health Services,Head of Adults,Third Party Payments,472101,Purchase of Care,01/09/2020,3774940-2012213H,920.40,CRESCENT HOMECARE LTD.
Adult and Health Services,Head of Adults,Third Party Payments,472101,Purchase of Care,01/09/2020,3774940-2013088H,553.80,CRESCENT HOMECARE LTD.
Adult and Health Services,Head of Adults,Third Party Payments,472101,Purchase of Care,01/09/2020,3774940-2013332H,"1,435.20",CRESCENT HOMECARE LTD.
Adult and Health Services,Head of Adults,Third Party Payments,472101,Purchase of Care,01/09/2020,3774940-2013396H,644.80,CRESCENT HOMECARE LTD.
Adult and Health Services,Head of Adults,Third Party Payments,472101,Purchase of Care,01/09/2020,3774940-2013415H,592.80,CRESCENT HOMECARE LTD.
Adult and Health Services,Head of Adults,Third Party Payments,472101,Purchase of Care,01/09/2020,3774940-2013895H,639.60,CRESCENT HOMECARE LTD.
Adult and Health Services,Head of Adults,Third Party Payments,472101,Purchase of Care,01/09/2020,3774940-2013921H,691.60,CRESCENT HOMECARE LTD.
Adult and Health Services,Head of Adults,Third Party Payments,472101,Purchase of Care,01/09/2020,3774940-2013933H,"1,809.60",CRESCENT HOMECARE LTD.
Adult and Health Services,Head of Adults,Third Party Payments,472101,Purchase of Care,01/09/2020,3774940-2014502H,674.70,CRESCENT HOMECARE LTD.
Adult and Health Services,Head of Adults,Third Party Payments,472101,Purchase of Care,01/09/2020,3774940-2015032H,624.00,CRESCENT HOMECARE LTD.
Adult and Health Services,Head of Adults,Third Party Payments,472101,Purchase of Care,01/09/2020,3774940-2015224H,873.60,CRESCENT HOMECARE LTD.
Adult and Health Services,Head of Adults,Third Party Payments,472101,Purchase of Care,01/09/2020,3774940-2012824H,"1,913.60",CRESCENT HOMECARE LTD.
Adult and Health Services,Head of Adults,Third Party Payments,472101,Purchase of Care,01/09/2020,3774940-2013031H,"2,552.24",CRESCENT HOMECARE LTD.
Adult and Health Services,Head of Adults,Third Party Payments,472101,Purchase of Care,01/09/2020,3774267-ADDITIONALUPLIFT6/33,"6,254.59",CRESCENT HOMECARE LTD.
Adult and Health Services,Head of Adults,Third Party Payments,472101,Purchase of Care,01/09/2020,3774267-HOMECARESELFFUNDERS6-5,625.46,CRESCENT HOMECARE LTD.
Adult and Health Services,Head of Adults,Third Party Payments,472101,Purchase of Care,01/09/2020,3774940-2010073H,795.60,CRESCENT HOMECARE LTD.
Adult and Health Services,Head of Adults,Third Party Payments,472101,Purchase of Care,01/09/2020,3774941-2010391H,"1,138.80",DALE CARE LTD.
Adult and Health Services,Head of Adults,Third Party Payments,472101,Purchase of Care,01/09/2020,3774941-2010468H,"1,513.20",DALE CARE LTD.
Adult and Health Services,Head of Adults,Third Party Payments,472101,Purchase of Care,01/09/2020,3774941-2010584H,"1,037.40",DALE CARE LTD.
Adult and Health Services,Head of Adults,Third Party Payments,472101,Purchase of Care,01/09/2020,3774941-2010602H,"1,612.00",DALE CARE LTD.
Adult and Health Services,Head of Adults,Third Party Payments,472101,Purchase of Care,01/09/2020,3774941-2011081H,776.10,DALE CARE LTD.
Adult and Health Services,Head of Adults,Third Party Payments,472101,Purchase of Care,01/09/2020,3774941-2011787H,990.60,DALE CARE LTD.
Adult and Health Services,Head of Adults,Third Party Payments,472101,Purchase of Care,01/09/2020,3774941-2011907H,780.00,DALE CARE LTD.
Adult and Health Services,Head of Adults,Third Party Payments,472101,Purchase of Care,01/09/2020,3774941-2012060H,"1,435.20",DALE CARE LTD.
Adult and Health Services,Head of Adults,Third Party Payments,472101,Purchase of Care,01/09/2020,3774941-2012136H,873.60,DALE CARE LTD.
Adult and Health Services,Head of Adults,Third Party Payments,472101,Purchase of Care,01/09/2020,3774941-2012362H,"3,106.97",DALE CARE LTD.
Adult and Health Services,Head of Adults,Third Party Payments,472101,Purchase of Care,01/09/2020,3774941-2012632H,670.80,DALE CARE LTD.
Adult and Health Services,Head of Adults,Third Party Payments,472101,Purchase of Care,01/09/2020,3774941-2012897H,631.80,DALE CARE LTD.
Adult and Health Services,Head of Adults,Third Party Payments,472101,Purchase of Care,01/09/2020,3774941-2013286H,"1,053.00",DALE CARE LTD.
Adult and Health Services,Head of Adults,Third Party Payments,472101,Purchase of Care,01/09/2020,3774941-2013649H,"2,219.10",DALE CARE LTD.
Adult and Health Services,Head of Adults,Third Party Payments,472101,Purchase of Care,01/09/2020,3774941-2013943H,522.60,DALE CARE LTD.
Adult and Health Services,Head of Adults,Third Party Payments,472101,Purchase of Care,01/09/2020,3774941-2014317H,"1,054.30",DALE CARE LTD.
Adult and Health Services,Head of Adults,Third Party Payments,472101,Purchase of Care,01/09/2020,3774941-2014686H,533.00,DALE CARE LTD.
Adult and Health Services,Head of Adults,Third Party Payments,472101,Purchase of Care,01/09/2020,3774941-2014992H,785.20,DALE CARE LTD.
Adult and Health Services,Head of Adults,Third Party Payments,472101,Purchase of Care,01/09/2020,3774941-2015154H,"1,630.20",DALE CARE LTD.
Adult and Health Services,Head of Adults,Third Party Payments,472101,Purchase of Care,01/09/2020,3774941-2015322H,507.00,DALE CARE LTD.
Adult and Health Services,Head of Adults,Third Party Payments,472101,Purchase of Care,01/09/2020,3774941-2009072H,"1,209.00",DALE CARE LTD.
Adult and Health Services,Head of Adults,Third Party Payments,472101,Purchase of Care,01/09/2020,3774941-2009579H,790.40,DALE CARE LTD.
Adult and Health Services,Head of Adults,Third Party Payments,472101,Purchase of Care,01/09/2020,3774941-2009684H,"1,349.40",DALE CARE LTD.
Adult and Health Services,Head of Adults,Third Party Payments,472101,Purchase of Care,01/09/2020,3774941-2009709H,"1,836.90",DALE CARE LTD.
Adult and Health Services,Head of Adults,Third Party Payments,472101,Purchase of Care,01/09/2020,3774941-2010253H,"1,056.90",DALE CARE LTD.
Adult and Health Services,Head of Adults,Third Party Payments,472101,Purchase of Care,01/09/2020,3774941-2011575H,"1,255.80",DALE CARE LTD.
Adult and Health Services,Head of Adults,Third Party Payments,472101,Purchase of Care,01/09/2020,3774941-2011616H,661.70,DALE CARE LTD.
Adult and Health Services,Head of Adults,Third Party Payments,472101,Purchase of Care,01/09/2020,3774941-2011811H,881.40,DALE CARE LTD.
Adult and Health Services,Head of Adults,Third Party Payments,472101,Purchase of Care,01/09/2020,3774941-2011918H,"1,014.00",DALE CARE LTD.
Adult and Health Services,Head of Adults,Third Party Payments,472101,Purchase of Care,01/09/2020,3774941-2012021H,873.60,DALE CARE LTD.
Adult and Health Services,Head of Adults,Third Party Payments,472101,Purchase of Care,01/09/2020,3774941-2012447H,634.40,DALE CARE LTD.
Adult and Health Services,Head of Adults,Third Party Payments,472101,Purchase of Care,01/09/2020,3774941-2013123H,686.40,DALE CARE LTD.
Adult and Health Services,Head of Adults,Third Party Payments,472101,Purchase of Care,01/09/2020,3774941-2013156H,824.20,DALE CARE LTD.
Adult and Health Services,Head of Adults,Third Party Payments,472101,Purchase of Care,01/09/2020,3774941-2013691H,624.00,DALE CARE LTD.
Adult and Health Services,Head of Adults,Third Party Payments,472101,Purchase of Care,01/09/2020,3774941-2013713H,592.80,DALE CARE LTD.
Adult and Health Services,Head of Adults,Third Party Payments,472101,Purchase of Care,01/09/2020,3774941-2013714H,832.00,DALE CARE LTD.
Adult and Health Services,Head of Adults,Third Party Payments,472101,Purchase of Care,01/09/2020,3774941-2013754H,639.60,DALE CARE LTD.
Adult and Health Services,Head of Adults,Third Party Payments,472101,Purchase of Care,01/09/2020,3774941-2014164H,"1,417.00",DALE CARE LTD.
Adult and Health Services,Head of Adults,Third Party Payments,472101,Purchase of Care,01/09/2020,3774941-2014297H,"1,762.80",DALE CARE LTD.
Adult and Health Services,Head of Adults,Third Party Payments,472101,Purchase of Care,01/09/2020,3774941-2014321H,"1,123.20",DALE CARE LTD.
Adult and Health Services,Head of Adults,Third Party Payments,472101,Purchase of Care,01/09/2020,3774941-2014322H,959.40,DALE CARE LTD.
Adult and Health Services,Head of Adults,Third Party Payments,472101,Purchase of Care,01/09/2020,3774941-2014335H,525.20,DALE CARE LTD.
Adult and Health Services,Head of Adults,Third Party Payments,472101,Purchase of Care,01/09/2020,3774941-2014378H,785.20,DALE CARE LTD.
Adult and Health Services,Head of Adults,Third Party Payments,472101,Purchase of Care,01/09/2020,3774941-2014604H,920.40,DALE CARE LTD.
Adult and Health Services,Head of Adults,Third Party Payments,472101,Purchase of Care,01/09/2020,3774941-2015031H,608.40,DALE CARE LTD.
Adult and Health Services,Head of Adults,Third Party Payments,472101,Purchase of Care,01/09/2020,3774941-2015044H,728.00,DALE CARE LTD.
Adult and Health Services,Head of Adults,Third Party Payments,472101,Purchase of Care,01/09/2020,3774941-2009004H,501.80,DALE CARE LTD.
Adult and Health Services,Head of Adults,Third Party Payments,472101,Purchase of Care,01/09/2020,3774941-2009014H,"2,180.10",DALE CARE LTD.
Adult and Health Services,Head of Adults,Third Party Payments,472101,Purchase of Care,01/09/2020,3774941-2009111H,598.00,DALE CARE LTD.
Adult and Health Services,Head of Adults,Third Party Payments,472101,Purchase of Care,01/09/2020,3774941-2009114H,873.60,DALE CARE LTD.
Adult and Health Services,Head of Adults,Third Party Payments,472101,Purchase of Care,01/09/2020,3774941-2009161H,763.10,DALE CARE LTD.
Adult and Health Services,Head of Adults,Third Party Payments,472101,Purchase of Care,01/09/2020,3774941-2009357H,572.00,DALE CARE LTD.
Adult and Health Services,Head of Adults,Third Party Payments,472101,Purchase of Care,01/09/2020,3774941-2009419H,522.60,DALE CARE LTD.
Adult and Health Services,Head of Adults,Third Party Payments,472101,Purchase of Care,01/09/2020,3774941-2009427H,666.90,DALE CARE LTD.
Adult and Health Services,Head of Adults,Third Party Payments,472101,Purchase of Care,01/09/2020,3774941-2009481H,652.60,DALE CARE LTD.
Adult and Health Services,Head of Adults,Third Party Payments,472101,Purchase of Care,01/09/2020,3774941-2010264H,748.80,DALE CARE LTD.
Adult and Health Services,Head of Adults,Third Party Payments,472101,Purchase of Care,01/09/2020,3774941-2011309H,"1,216.80",DALE CARE LTD.
Adult and Health Services,Head of Adults,Third Party Payments,472101,Purchase of Care,01/09/2020,3774941-2011407H,670.80,DALE CARE LTD.
Adult and Health Services,Head of Adults,Third Party Payments,472101,Purchase of Care,01/09/2020,3774941-2011422H,"1,177.80",DALE CARE LTD.
Adult and Health Services,Head of Adults,Third Party Payments,472101,Purchase of Care,01/09/2020,3774941-2011481H,540.80,DALE CARE LTD.
Adult and Health Services,Head of Adults,Third Party Payments,472101,Purchase of Care,01/09/2020,3774941-2011525H,686.40,DALE CARE LTD.
Adult and Health Services,Head of Adults,Third Party Payments,472101,Purchase of Care,01/09/2020,3774941-2011845H,613.60,DALE CARE LTD.
Adult and Health Services,Head of Adults,Third Party Payments,472101,Purchase of Care,01/09/2020,3774941-2011924H,904.80,DALE CARE LTD.
Adult and Health Services,Head of Adults,Third Party Payments,472101,Purchase of Care,01/09/2020,3774941-2011986H,686.40,DALE CARE LTD.
Adult and Health Services,Head of Adults,Third Party Payments,472101,Purchase of Care,01/09/2020,3774941-2012135H,774.80,DALE CARE LTD.
Adult and Health Services,Head of Adults,Third Party Payments,472101,Purchase of Care,01/09/2020,3774941-2012342H,807.30,DALE CARE LTD.
Adult and Health Services,Head of Adults,Third Party Payments,472101,Purchase of Care,01/09/2020,3774941-2012603H,559.00,DALE CARE LTD.
Adult and Health Services,Head of Adults,Third Party Payments,472101,Purchase of Care,01/09/2020,3774941-2012682H,998.40,DALE CARE LTD.
Adult and Health Services,Head of Adults,Third Party Payments,472101,Purchase of Care,01/09/2020,3774941-2012684H,686.40,DALE CARE LTD.
Adult and Health Services,Head of Adults,Third Party Payments,472101,Purchase of Care,01/09/2020,3774941-2012691H,624.00,DALE CARE LTD.
Adult and Health Services,Head of Adults,Third Party Payments,472101,Purchase of Care,01/09/2020,3774941-2012800H,635.70,DALE CARE LTD.
Adult and Health Services,Head of Adults,Third Party Payments,472101,Purchase of Care,01/09/2020,3774941-2012902H,780.00,DALE CARE LTD.
Adult and Health Services,Head of Adults,Third Party Payments,472101,Purchase of Care,01/09/2020,3774941-2013000H,574.60,DALE CARE LTD.
Adult and Health Services,Head of Adults,Third Party Payments,472101,Purchase of Care,01/09/2020,3774941-2013067H,795.60,DALE CARE LTD.
Adult and Health Services,Head of Adults,Third Party Payments,472101,Purchase of Care,01/09/2020,3774941-2013252H,"1,123.20",DALE CARE LTD.
Adult and Health Services,Head of Adults,Third Party Payments,472101,Purchase of Care,01/09/2020,3774941-2013260H,624.00,DALE CARE LTD.
Adult and Health Services,Head of Adults,Third Party Payments,472101,Purchase of Care,01/09/2020,3774941-2013343H,686.40,DALE CARE LTD.
Adult and Health Services,Head of Adults,Third Party Payments,472101,Purchase of Care,01/09/2020,3774941-2013387H,"1,821.30",DALE CARE LTD.
Adult and Health Services,Head of Adults,Third Party Payments,472101,Purchase of Care,01/09/2020,3774941-2013471H,509.60,DALE CARE LTD.
Adult and Health Services,Head of Adults,Third Party Payments,472101,Purchase of Care,01/09/2020,3774941-2013524H,982.80,DALE CARE LTD.
Adult and Health Services,Head of Adults,Third Party Payments,472101,Purchase of Care,01/09/2020,3774941-2013573H,"1,669.20",DALE CARE LTD.
Adult and Health Services,Head of Adults,Third Party Payments,472101,Purchase of Care,01/09/2020,3774941-2013679H,800.80,DALE CARE LTD.
Adult and Health Services,Head of Adults,Third Party Payments,472101,Purchase of Care,01/09/2020,3774941-2013723H,530.40,DALE CARE LTD.
Adult and Health Services,Head of Adults,Third Party Payments,472101,Purchase of Care,01/09/2020,3774941-2013740H,"1,092.00",DALE CARE LTD.
Adult and Health Services,Head of Adults,Third Party Payments,472101,Purchase of Care,01/09/2020,3774941-2013741H,763.10,DALE CARE LTD.
Adult and Health Services,Head of Adults,Third Party Payments,472101,Purchase of Care,01/09/2020,3774941-2013788H,"1,622.40",DALE CARE LTD.
Adult and Health Services,Head of Adults,Third Party Payments,472101,Purchase of Care,01/09/2020,3774941-2013970H,540.80,DALE CARE LTD.
Adult and Health Services,Head of Adults,Third Party Payments,472101,Purchase of Care,01/09/2020,3774941-2013998H,608.40,DALE CARE LTD.
Adult and Health Services,Head of Adults,Third Party Payments,472101,Purchase of Care,01/09/2020,3774941-2014188H,"1,588.60",DALE CARE LTD.
Adult and Health Services,Head of Adults,Third Party Payments,472101,Purchase of Care,01/09/2020,3774941-2014253H,705.90,DALE CARE LTD.
Adult and Health Services,Head of Adults,Third Party Payments,472101,Purchase of Care,01/09/2020,3774941-2014312H,"1,903.20",DALE CARE LTD.
Adult and Health Services,Head of Adults,Third Party Payments,472101,Purchase of Care,01/09/2020,3774941-2014531H,579.80,DALE CARE LTD.
Adult and Health Services,Head of Adults,Third Party Payments,472101,Purchase of Care,01/09/2020,3774941-2014540H,613.60,DALE CARE LTD.
Adult and Health Services,Head of Adults,Third Party Payments,472101,Purchase of Care,01/09/2020,3774941-2014720H,603.20,DALE CARE LTD.
Adult and Health Services,Head of Adults,Third Party Payments,472101,Purchase of Care,01/09/2020,3774941-2014949H,582.40,DALE CARE LTD.
Adult and Health Services,Head of Adults,Third Party Payments,472101,Purchase of Care,01/09/2020,3774941-2014963H,941.20,DALE CARE LTD.
Adult and Health Services,Head of Adults,Third Party Payments,472101,Purchase of Care,01/09/2020,3774941-2015246H,910.00,DALE CARE LTD.
Adult and Health Services,Head of Adults,Third Party Payments,472101,Purchase of Care,01/09/2020,3774941-2015395H,"1,008.80",DALE CARE LTD.
Adult and Health Services,Head of Adults,Third Party Payments,472101,Purchase of Care,01/09/2020,3774941-2015839H,682.50,DALE CARE LTD.
Adult and Health Services,Head of Adults,Third Party Payments,472101,Purchase of Care,01/09/2020,3774941-2015913H,833.30,DALE CARE LTD.
Adult and Health Services,Head of Adults,Third Party Payments,472101,Purchase of Care,01/09/2020,3774941-2008976H,728.00,DALE CARE LTD.
Adult and Health Services,Head of Adults,Third Party Payments,472101,Purchase of Care,01/09/2020,3774941-2009088H,"1,099.80",DALE CARE LTD.
Adult and Health Services,Head of Adults,Third Party Payments,472101,Purchase of Care,01/09/2020,3774941-2009293H,561.60,DALE CARE LTD.
Adult and Health Services,Head of Adults,Third Party Payments,472101,Purchase of Care,01/09/2020,3774941-2009342H,728.00,DALE CARE LTD.
Adult and Health Services,Head of Adults,Third Party Payments,472101,Purchase of Care,01/09/2020,3774941-2009371H,650.00,DALE CARE LTD.
Adult and Health Services,Head of Adults,Third Party Payments,472101,Purchase of Care,01/09/2020,3774941-2009390H,586.28,DALE CARE LTD.
Adult and Health Services,Head of Adults,Third Party Payments,472101,Purchase of Care,01/09/2020,3774941-2009395H,582.40,DALE CARE LTD.
Adult and Health Services,Head of Adults,Third Party Payments,472101,Purchase of Care,01/09/2020,3774941-2009422H,977.60,DALE CARE LTD.
Adult and Health Services,Head of Adults,Third Party Payments,472101,Purchase of Care,01/09/2020,3774941-2009424H,548.60,DALE CARE LTD.
Adult and Health Services,Head of Adults,Third Party Payments,472101,Purchase of Care,01/09/2020,3774941-2009440H,"1,748.50",DALE CARE LTD.
Adult and Health Services,Head of Adults,Third Party Payments,472101,Purchase of Care,01/09/2020,3774941-2009453H,"1,840.80",DALE CARE LTD.
Adult and Health Services,Head of Adults,Third Party Payments,472101,Purchase of Care,01/09/2020,3774941-2009483H,574.60,DALE CARE LTD.
Adult and Health Services,Head of Adults,Third Party Payments,472101,Purchase of Care,01/09/2020,3774941-2009487H,"1,996.80",DALE CARE LTD.
Adult and Health Services,Head of Adults,Third Party Payments,472101,Purchase of Care,01/09/2020,3774941-2009490H,"3,732.12",DALE CARE LTD.
Adult and Health Services,Head of Adults,Third Party Payments,472101,Purchase of Care,01/09/2020,3774941-2010083H,"1,310.40",DALE CARE LTD.
Adult and Health Services,Head of Adults,Third Party Payments,472101,Purchase of Care,01/09/2020,3774941-2010093H,"1,872.00",DALE CARE LTD.
Adult and Health Services,Head of Adults,Third Party Payments,472101,Purchase of Care,01/09/2020,3774941-2010265H,847.60,DALE CARE LTD.
Adult and Health Services,Head of Adults,Third Party Payments,472101,Purchase of Care,01/09/2020,3774941-2010791H,858.00,DALE CARE LTD.
Adult and Health Services,Head of Adults,Third Party Payments,472101,Purchase of Care,01/09/2020,3774941-2011085H,"1,003.60",DALE CARE LTD.
Adult and Health Services,Head of Adults,Third Party Payments,472101,Purchase of Care,01/09/2020,3774941-2011090H,877.50,DALE CARE LTD.
Adult and Health Services,Head of Adults,Third Party Payments,472101,Purchase of Care,01/09/2020,3774941-2011120H,"1,227.20",DALE CARE LTD.
Adult and Health Services,Head of Adults,Third Party Payments,472101,Purchase of Care,01/09/2020,3774941-2011308H,"1,188.20",DALE CARE LTD.
Adult and Health Services,Head of Adults,Third Party Payments,472101,Purchase of Care,01/09/2020,3774941-2011341H,"1,164.80",DALE CARE LTD.
Adult and Health Services,Head of Adults,Third Party Payments,472101,Purchase of Care,01/09/2020,3774941-2011708H,884.00,DALE CARE LTD.
Adult and Health Services,Head of Adults,Third Party Payments,472101,Purchase of Care,01/09/2020,3774941-2011716H,822.64,DALE CARE LTD.
Adult and Health Services,Head of Adults,Third Party Payments,472101,Purchase of Care,01/09/2020,3774941-2011721H,"2,074.80",DALE CARE LTD.
Adult and Health Services,Head of Adults,Third Party Payments,472101,Purchase of Care,01/09/2020,3774941-2011777H,"2,398.29",DALE CARE LTD.
Adult and Health Services,Head of Adults,Third Party Payments,472101,Purchase of Care,01/09/2020,3774941-2011779H,572.00,DALE CARE LTD.
Adult and Health Services,Head of Adults,Third Party Payments,472101,Purchase of Care,01/09/2020,3774941-2011825H,751.20,DALE CARE LTD.
Adult and Health Services,Head of Adults,Third Party Payments,472101,Purchase of Care,01/09/2020,3774941-2011833H,"1,456.00",DALE CARE LTD.
Adult and Health Services,Head of Adults,Third Party Payments,472101,Purchase of Care,01/09/2020,3774941-2011860H,676.00,DALE CARE LTD.
Adult and Health Services,Head of Adults,Third Party Payments,472101,Purchase of Care,01/09/2020,3774941-2011878H,596.70,DALE CARE LTD.
Adult and Health Services,Head of Adults,Third Party Payments,472101,Purchase of Care,01/09/2020,3774941-2012055H,598.00,DALE CARE LTD.
Adult and Health Services,Head of Adults,Third Party Payments,472101,Purchase of Care,01/09/2020,3774941-2012186H,582.40,DALE CARE LTD.
Adult and Health Services,Head of Adults,Third Party Payments,472101,Purchase of Care,01/09/2020,3774941-2012371H,624.00,DALE CARE LTD.
Adult and Health Services,Head of Adults,Third Party Payments,472101,Purchase of Care,01/09/2020,3774941-2012400H,577.20,DALE CARE LTD.
Adult and Health Services,Head of Adults,Third Party Payments,472101,Purchase of Care,01/09/2020,3774941-2012418H,946.40,DALE CARE LTD.
Adult and Health Services,Head of Adults,Third Party Payments,472101,Purchase of Care,01/09/2020,3774941-2012487H,988.00,DALE CARE LTD.
Adult and Health Services,Head of Adults,Third Party Payments,472101,Purchase of Care,01/09/2020,3774941-2012520H,733.20,DALE CARE LTD.
Adult and Health Services,Head of Adults,Third Party Payments,472101,Purchase of Care,01/09/2020,3774941-2012527H,"1,071.20",DALE CARE LTD.
Adult and Health Services,Head of Adults,Third Party Payments,472101,Purchase of Care,01/09/2020,3774941-2012534H,910.00,DALE CARE LTD.
Adult and Health Services,Head of Adults,Third Party Payments,472101,Purchase of Care,01/09/2020,3774941-2012607H,"1,645.80",DALE CARE LTD.
Adult and Health Services,Head of Adults,Third Party Payments,472101,Purchase of Care,01/09/2020,3774941-2012794H,873.60,DALE CARE LTD.
Adult and Health Services,Head of Adults,Third Party Payments,472101,Purchase of Care,01/09/2020,3774941-2012940H,"1,144.63",DALE CARE LTD.
Adult and Health Services,Head of Adults,Third Party Payments,472101,Purchase of Care,01/09/2020,3774941-2012947H,"1,950.00",DALE CARE LTD.
Adult and Health Services,Head of Adults,Third Party Payments,472101,Purchase of Care,01/09/2020,3774941-2013138H,907.20,DALE CARE LTD.
Adult and Health Services,Head of Adults,Third Party Payments,472101,Purchase of Care,01/09/2020,3774941-2013174H,928.20,DALE CARE LTD.
Adult and Health Services,Head of Adults,Third Party Payments,472101,Purchase of Care,01/09/2020,3774941-2013309H,"1,287.00",DALE CARE LTD.
Adult and Health Services,Head of Adults,Third Party Payments,472101,Purchase of Care,01/09/2020,3774941-2013368H,"1,037.40",DALE CARE LTD.
Adult and Health Services,Head of Adults,Third Party Payments,472101,Purchase of Care,01/09/2020,3774941-2013372H,655.20,DALE CARE LTD.
Adult and Health Services,Head of Adults,Third Party Payments,472101,Purchase of Care,01/09/2020,3774941-2013405H,910.00,DALE CARE LTD.
Adult and Health Services,Head of Adults,Third Party Payments,472101,Purchase of Care,01/09/2020,3774941-2013448H,725.40,DALE CARE LTD.
Adult and Health Services,Head of Adults,Third Party Payments,472101,Purchase of Care,01/09/2020,3774941-2013451H,514.80,DALE CARE LTD.
Adult and Health Services,Head of Adults,Third Party Payments,472101,Purchase of Care,01/09/2020,3774941-2013478H,"1,154.40",DALE CARE LTD.
Adult and Health Services,Head of Adults,Third Party Payments,472101,Purchase of Care,01/09/2020,3774941-2013553H,"2,113.33",DALE CARE LTD.
Adult and Health Services,Head of Adults,Third Party Payments,472101,Purchase of Care,01/09/2020,3774941-2013562H,975.00,DALE CARE LTD.
Adult and Health Services,Head of Adults,Third Party Payments,472101,Purchase of Care,01/09/2020,3774941-2013580H,889.20,DALE CARE LTD.
Adult and Health Services,Head of Adults,Third Party Payments,472101,Purchase of Care,01/09/2020,3774941-2013601H,"1,396.20",DALE CARE LTD.
Adult and Health Services,Head of Adults,Third Party Payments,472101,Purchase of Care,01/09/2020,3774941-2013624H,"2,472.60",DALE CARE LTD.
Adult and Health Services,Head of Adults,Third Party Payments,472101,Purchase of Care,01/09/2020,3774941-2013631H,670.80,DALE CARE LTD.
Adult and Health Services,Head of Adults,Third Party Payments,472101,Purchase of Care,01/09/2020,3774941-2013668H,"1,123.20",DALE CARE LTD.
Adult and Health Services,Head of Adults,Third Party Payments,472101,Purchase of Care,01/09/2020,3774941-2013720H,972.40,DALE CARE LTD.
Adult and Health Services,Head of Adults,Third Party Payments,472101,Purchase of Care,01/09/2020,3774941-2013764H,702.00,DALE CARE LTD.
Adult and Health Services,Head of Adults,Third Party Payments,472101,Purchase of Care,01/09/2020,3774941-2013889H,982.80,DALE CARE LTD.
Adult and Health Services,Head of Adults,Third Party Payments,472101,Purchase of Care,01/09/2020,3774941-2013947H,544.70,DALE CARE LTD.
Adult and Health Services,Head of Adults,Third Party Payments,472101,Purchase of Care,01/09/2020,3774941-2013985H,"1,765.40",DALE CARE LTD.
Adult and Health Services,Head of Adults,Third Party Payments,472101,Purchase of Care,01/09/2020,3774941-2014061H,878.80,DALE CARE LTD.
Adult and Health Services,Head of Adults,Third Party Payments,472101,Purchase of Care,01/09/2020,3774941-2014150H,988.00,DALE CARE LTD.
Adult and Health Services,Head of Adults,Third Party Payments,472101,Purchase of Care,01/09/2020,3774941-2014173H,515.60,DALE CARE LTD.
Adult and Health Services,Head of Adults,Third Party Payments,472101,Purchase of Care,01/09/2020,3774941-2014181H,738.40,DALE CARE LTD.
Adult and Health Services,Head of Adults,Third Party Payments,472101,Purchase of Care,01/09/2020,3774941-2014212H,578.50,DALE CARE LTD.
Adult and Health Services,Head of Adults,Third Party Payments,472101,Purchase of Care,01/09/2020,3774941-2014226H,"1,006.20",DALE CARE LTD.
Adult and Health Services,Head of Adults,Third Party Payments,472101,Purchase of Care,01/09/2020,3774941-2014243H,529.10,DALE CARE LTD.
Adult and Health Services,Head of Adults,Third Party Payments,472101,Purchase of Care,01/09/2020,3774941-2014252H,"3,166.80",DALE CARE LTD.
Adult and Health Services,Head of Adults,Third Party Payments,472101,Purchase of Care,01/09/2020,3774941-2014266H,"1,114.93",DALE CARE LTD.
Adult and Health Services,Head of Adults,Third Party Payments,472101,Purchase of Care,01/09/2020,3774941-2014273H,582.40,DALE CARE LTD.
Adult and Health Services,Head of Adults,Third Party Payments,472101,Purchase of Care,01/09/2020,3774941-2014274H,902.20,DALE CARE LTD.
Adult and Health Services,Head of Adults,Third Party Payments,472101,Purchase of Care,01/09/2020,3774941-2014287H,"3,057.60",DALE CARE LTD.
Adult and Health Services,Head of Adults,Third Party Payments,472101,Purchase of Care,01/09/2020,3774941-2014305H,772.20,DALE CARE LTD.
Adult and Health Services,Head of Adults,Third Party Payments,472101,Purchase of Care,01/09/2020,3774941-2014458H,759.20,DALE CARE LTD.
Adult and Health Services,Head of Adults,Third Party Payments,472101,Purchase of Care,01/09/2020,3774941-2014469H,803.40,DALE CARE LTD.
Adult and Health Services,Head of Adults,Third Party Payments,472101,Purchase of Care,01/09/2020,3774941-2014591H,543.04,DALE CARE LTD.
Adult and Health Services,Head of Adults,Third Party Payments,472101,Purchase of Care,01/09/2020,3774941-2014705H,613.60,DALE CARE LTD.
Adult and Health Services,Head of Adults,Third Party Payments,472101,Purchase of Care,01/09/2020,3774941-2014713H,663.00,DALE CARE LTD.
Adult and Health Services,Head of Adults,Third Party Payments,472101,Purchase of Care,01/09/2020,3774941-2014742H,897.00,DALE CARE LTD.
Adult and Health Services,Head of Adults,Third Party Payments,472101,Purchase of Care,01/09/2020,3774941-2014806H,559.00,DALE CARE LTD.
Adult and Health Services,Head of Adults,Third Party Payments,472101,Purchase of Care,01/09/2020,3774941-2014834H,"1,068.60",DALE CARE LTD.
Adult and Health Services,Head of Adults,Third Party Payments,472101,Purchase of Care,01/09/2020,3774941-2014852H,998.40,DALE CARE LTD.
Adult and Health Services,Head of Adults,Third Party Payments,472101,Purchase of Care,01/09/2020,3774941-2014900H,982.80,DALE CARE LTD.
Adult and Health Services,Head of Adults,Third Party Payments,472101,Purchase of Care,01/09/2020,3774941-2014910H,608.40,DALE CARE LTD.
Adult and Health Services,Head of Adults,Third Party Payments,472101,Purchase of Care,01/09/2020,3774941-2015063H,"1,080.30",DALE CARE LTD.
Adult and Health Services,Head of Adults,Third Party Payments,472101,Purchase of Care,01/09/2020,3774941-2015201H,"2,389.40",DALE CARE LTD.
Adult and Health Services,Head of Adults,Third Party Payments,472101,Purchase of Care,01/09/2020,3774941-2015302H,657.80,DALE CARE LTD.
Adult and Health Services,Head of Adults,Third Party Payments,472101,Purchase of Care,01/09/2020,3774941-2015385H,510.90,DALE CARE LTD.
Adult and Health Services,Head of Adults,Third Party Payments,472101,Purchase of Care,01/09/2020,3774941-2015387H,"2,644.20",DALE CARE LTD.
Adult and Health Services,Head of Adults,Third Party Payments,472101,Purchase of Care,01/09/2020,3774941-2015840H,757.90,DALE CARE LTD.
Adult and Health Services,Head of Adults,Third Party Payments,472101,Purchase of Care,01/09/2020,3774941-2016695H,"1,197.90",DALE CARE LTD.
Adult and Health Services,Head of Adults,Third Party Payments,472101,Purchase of Care,01/09/2020,3774941-2009054H,982.80,DALE CARE LTD.
Adult and Health Services,Head of Adults,Third Party Payments,472101,Purchase of Care,01/09/2020,3774941-2009066H,"2,566.20",DALE CARE LTD.
Adult and Health Services,Head of Adults,Third Party Payments,472101,Purchase of Care,01/09/2020,3774941-2009234H,904.80,DALE CARE LTD.
Adult and Health Services,Head of Adults,Third Party Payments,472101,Purchase of Care,01/09/2020,3774941-2009338H,920.40,DALE CARE LTD.
Adult and Health Services,Head of Adults,Third Party Payments,472101,Purchase of Care,01/09/2020,3774941-2009442H,873.60,DALE CARE LTD.
Adult and Health Services,Head of Adults,Third Party Payments,472101,Purchase of Care,01/09/2020,3774941-2009444H,873.60,DALE CARE LTD.
Adult and Health Services,Head of Adults,Third Party Payments,472101,Purchase of Care,01/09/2020,3774941-2009803H,803.40,DALE CARE LTD.
Adult and Health Services,Head of Adults,Third Party Payments,472101,Purchase of Care,01/09/2020,3774941-2010132H,877.50,DALE CARE LTD.
Adult and Health Services,Head of Adults,Third Party Payments,472101,Purchase of Care,01/09/2020,3774941-2010232H,764.40,DALE CARE LTD.
Adult and Health Services,Head of Adults,Third Party Payments,472101,Purchase of Care,01/09/2020,3774941-2010358H,"2,691.00",DALE CARE LTD.
Adult and Health Services,Head of Adults,Third Party Payments,472101,Purchase of Care,01/09/2020,3774941-2011154H,"1,123.20",DALE CARE LTD.
Adult and Health Services,Head of Adults,Third Party Payments,472101,Purchase of Care,01/09/2020,3774941-2011285H,"1,739.40",DALE CARE LTD.
Adult and Health Services,Head of Adults,Third Party Payments,472101,Purchase of Care,01/09/2020,3774941-2011301H,722.80,DALE CARE LTD.
Adult and Health Services,Head of Adults,Third Party Payments,472101,Purchase of Care,01/09/2020,3774941-2011329H,"1,027.00",DALE CARE LTD.
Adult and Health Services,Head of Adults,Third Party Payments,472101,Purchase of Care,01/09/2020,3774941-2011455H,609.70,DALE CARE LTD.
Adult and Health Services,Head of Adults,Third Party Payments,472101,Purchase of Care,01/09/2020,3774941-2011485H,951.60,DALE CARE LTD.
Adult and Health Services,Head of Adults,Third Party Payments,472101,Purchase of Care,01/09/2020,3774941-2011735H,"2,074.80",DALE CARE LTD.
Adult and Health Services,Head of Adults,Third Party Payments,472101,Purchase of Care,01/09/2020,3774941-2011807H,631.80,DALE CARE LTD.
Adult and Health Services,Head of Adults,Third Party Payments,472101,Purchase of Care,01/09/2020,3774941-2011826H,717.60,DALE CARE LTD.
Adult and Health Services,Head of Adults,Third Party Payments,472101,Purchase of Care,01/09/2020,3774941-2012037H,759.20,DALE CARE LTD.
Adult and Health Services,Head of Adults,Third Party Payments,472101,Purchase of Care,01/09/2020,3774941-2012076H,"1,231.61",DALE CARE LTD.
Adult and Health Services,Head of Adults,Third Party Payments,472101,Purchase of Care,01/09/2020,3774941-2012203H,791.40,DALE CARE LTD.
Adult and Health Services,Head of Adults,Third Party Payments,472101,Purchase of Care,01/09/2020,3774941-2012356H,613.60,DALE CARE LTD.
Adult and Health Services,Head of Adults,Third Party Payments,472101,Purchase of Care,01/09/2020,3774941-2012665H,"1,014.00",DALE CARE LTD.
Adult and Health Services,Head of Adults,Third Party Payments,472101,Purchase of Care,01/09/2020,3774941-2012700H,"1,441.70",DALE CARE LTD.
Adult and Health Services,Head of Adults,Third Party Payments,472101,Purchase of Care,01/09/2020,3774941-2012802H,936.00,DALE CARE LTD.
Adult and Health Services,Head of Adults,Third Party Payments,472101,Purchase of Care,01/09/2020,3774941-2012944H,873.60,DALE CARE LTD.
Adult and Health Services,Head of Adults,Third Party Payments,472101,Purchase of Care,01/09/2020,3774941-2013005H,"1,712.10",DALE CARE LTD.
Adult and Health Services,Head of Adults,Third Party Payments,472101,Purchase of Care,01/09/2020,3774941-2013170H,587.60,DALE CARE LTD.
Adult and Health Services,Head of Adults,Third Party Payments,472101,Purchase of Care,01/09/2020,3774941-2013206H,"1,456.00",DALE CARE LTD.
Adult and Health Services,Head of Adults,Third Party Payments,472101,Purchase of Care,01/09/2020,3774941-2013276H,993.20,DALE CARE LTD.
Adult and Health Services,Head of Adults,Third Party Payments,472101,Purchase of Care,01/09/2020,3774941-2013278H,725.40,DALE CARE LTD.
Adult and Health Services,Head of Adults,Third Party Payments,472101,Purchase of Care,01/09/2020,3774941-2013306H,"1,201.20",DALE CARE LTD.
Adult and Health Services,Head of Adults,Third Party Payments,472101,Purchase of Care,01/09/2020,3774941-2013426H,"1,747.20",DALE CARE LTD.
Adult and Health Services,Head of Adults,Third Party Payments,472101,Purchase of Care,01/09/2020,3774941-2013551H,904.80,DALE CARE LTD.
Adult and Health Services,Head of Adults,Third Party Payments,472101,Purchase of Care,01/09/2020,3774941-2013652H,"3,237.00",DALE CARE LTD.
Adult and Health Services,Head of Adults,Third Party Payments,472101,Purchase of Care,01/09/2020,3774941-2013793H,651.60,DALE CARE LTD.
Adult and Health Services,Head of Adults,Third Party Payments,472101,Purchase of Care,01/09/2020,3774941-2013891H,826.80,DALE CARE LTD.
Adult and Health Services,Head of Adults,Third Party Payments,472101,Purchase of Care,01/09/2020,3774941-2013932H,"2,223.00",DALE CARE LTD.
Adult and Health Services,Head of Adults,Third Party Payments,472101,Purchase of Care,01/09/2020,3774941-2013953H,850.20,DALE CARE LTD.
Adult and Health Services,Head of Adults,Third Party Payments,472101,Purchase of Care,01/09/2020,3774941-2013968H,"1,352.00",DALE CARE LTD.
Adult and Health Services,Head of Adults,Third Party Payments,472101,Purchase of Care,01/09/2020,3774941-2013995H,774.80,DALE CARE LTD.
Adult and Health Services,Head of Adults,Third Party Payments,472101,Purchase of Care,01/09/2020,3774941-2014076H,608.40,DALE CARE LTD.
Adult and Health Services,Head of Adults,Third Party Payments,472101,Purchase of Care,01/09/2020,3774941-2014290H,"1,261.60",DALE CARE LTD.
Adult and Health Services,Head of Adults,Third Party Payments,472101,Purchase of Care,01/09/2020,3774941-2014360H,936.00,DALE CARE LTD.
Adult and Health Services,Head of Adults,Third Party Payments,472101,Purchase of Care,01/09/2020,3774941-2014422H,790.40,DALE CARE LTD.
Adult and Health Services,Head of Adults,Third Party Payments,472101,Purchase of Care,01/09/2020,3774941-2014456H,"2,256.80",DALE CARE LTD.
Adult and Health Services,Head of Adults,Third Party Payments,472101,Purchase of Care,01/09/2020,3774941-2014551H,608.40,DALE CARE LTD.
Adult and Health Services,Head of Adults,Third Party Payments,472101,Purchase of Care,01/09/2020,3774941-2014564H,881.40,DALE CARE LTD.
Adult and Health Services,Head of Adults,Third Party Payments,472101,Purchase of Care,01/09/2020,3774941-2014584H,"1,023.00",DALE CARE LTD.
Adult and Health Services,Head of Adults,Third Party Payments,472101,Purchase of Care,01/09/2020,3774941-2014612H,842.40,DALE CARE LTD.
Adult and Health Services,Head of Adults,Third Party Payments,472101,Purchase of Care,01/09/2020,3774941-2014794H,676.00,DALE CARE LTD.
Adult and Health Services,Head of Adults,Third Party Payments,472101,Purchase of Care,01/09/2020,3774941-2014951H,900.90,DALE CARE LTD.
Adult and Health Services,Head of Adults,Third Party Payments,472101,Purchase of Care,01/09/2020,3774941-2015092H,504.40,DALE CARE LTD.
Adult and Health Services,Head of Adults,Third Party Payments,472101,Purchase of Care,01/09/2020,3774941-2015266H,904.80,DALE CARE LTD.
Adult and Health Services,Head of Adults,Third Party Payments,472101,Purchase of Care,01/09/2020,3774941-2015365H,904.80,DALE CARE LTD.
Adult and Health Services,Head of Adults,Third Party Payments,472101,Purchase of Care,01/09/2020,3774941-2015449H,676.00,DALE CARE LTD.
Adult and Health Services,Head of Adults,Third Party Payments,472101,Purchase of Care,01/09/2020,3774941-2015521H,612.30,DALE CARE LTD.
Adult and Health Services,Head of Adults,Third Party Payments,472101,Purchase of Care,01/09/2020,3774941-2016680H,639.60,DALE CARE LTD.
Adult and Health Services,Head of Adults,Third Party Payments,472101,Purchase of Care,01/09/2020,3774941-2016686H,"1,372.80",DALE CARE LTD.
Adult and Health Services,Head of Adults,Third Party Payments,472101,Purchase of Care,01/09/2020,3774941-2016694H,670.80,DALE CARE LTD.
Adult and Health Services,Head of Adults,Third Party Payments,472101,Purchase of Care,01/09/2020,3774941-2016702H,837.20,DALE CARE LTD.
Adult and Health Services,Head of Adults,Third Party Payments,472101,Purchase of Care,01/09/2020,3774941-2016851H,"2,132.00",DALE CARE LTD.
Adult and Health Services,Head of Adults,Third Party Payments,472101,Purchase of Care,01/09/2020,3774941-2011819H,561.60,DALE CARE LTD.
Adult and Health Services,Head of Adults,Third Party Payments,472101,Purchase of Care,01/09/2020,3774941-2010027H,"1,045.20",DALE CARE LTD.
Adult and Health Services,Head of Adults,Third Party Payments,472101,Purchase of Care,01/09/2020,3774941-2010472H,574.60,DALE CARE LTD.
Adult and Health Services,Head of Adults,Third Party Payments,472101,Purchase of Care,01/09/2020,3774941-2011396H,582.40,DALE CARE LTD.
Adult and Health Services,Head of Adults,Third Party Payments,472101,Purchase of Care,01/09/2020,3774941-2011705H,510.90,DALE CARE LTD.
Adult and Health Services,Head of Adults,Third Party Payments,472101,Purchase of Care,01/09/2020,3774941-2011926H,709.80,DALE CARE LTD.
Adult and Health Services,Head of Adults,Third Party Payments,472101,Purchase of Care,01/09/2020,3774941-2012453H,865.80,DALE CARE LTD.
Adult and Health Services,Head of Adults,Third Party Payments,472101,Purchase of Care,01/09/2020,3774941-2012592H,686.40,DALE CARE LTD.
Adult and Health Services,Head of Adults,Third Party Payments,472101,Purchase of Care,01/09/2020,3774941-2012633H,729.30,DALE CARE LTD.
Adult and Health Services,Head of Adults,Third Party Payments,472101,Purchase of Care,01/09/2020,3774941-2012645H,811.20,DALE CARE LTD.
Adult and Health Services,Head of Adults,Third Party Payments,472101,Purchase of Care,01/09/2020,3774941-2012957H,728.00,DALE CARE LTD.
Adult and Health Services,Head of Adults,Third Party Payments,472101,Purchase of Care,01/09/2020,3774941-2013267H,530.40,DALE CARE LTD.
Adult and Health Services,Head of Adults,Third Party Payments,472101,Purchase of Care,01/09/2020,3774941-2013419H,833.30,DALE CARE LTD.
Adult and Health Services,Head of Adults,Third Party Payments,472101,Purchase of Care,01/09/2020,3774941-2014187H,590.20,DALE CARE LTD.
Adult and Health Services,Head of Adults,Third Party Payments,472101,Purchase of Care,01/09/2020,3774941-2014242H,"1,731.60",DALE CARE LTD.
Adult and Health Services,Head of Adults,Third Party Payments,472101,Purchase of Care,01/09/2020,3774941-2014272H,986.70,DALE CARE LTD.
Adult and Health Services,Head of Adults,Third Party Payments,472101,Purchase of Care,01/09/2020,3774941-2014389H,"1,088.10",DALE CARE LTD.
Adult and Health Services,Head of Adults,Third Party Payments,472101,Purchase of Care,01/09/2020,3774941-2014622H,530.40,DALE CARE LTD.
Adult and Health Services,Head of Adults,Third Party Payments,472101,Purchase of Care,01/09/2020,3774941-2014774H,717.60,DALE CARE LTD.
Adult and Health Services,Head of Adults,Third Party Payments,472101,Purchase of Care,01/09/2020,3774941-2014839H,504.40,DALE CARE LTD.
Adult and Health Services,Head of Adults,Third Party Payments,472101,Purchase of Care,01/09/2020,3774941-2015362H,562.90,DALE CARE LTD.
Adult and Health Services,Head of Adults,Third Party Payments,472101,Purchase of Care,01/09/2020,3774941-2015538H,"1,076.40",DALE CARE LTD.
Adult and Health Services,Head of Adults,Third Party Payments,472101,Purchase of Care,01/09/2020,3774941-2015542H,561.60,DALE CARE LTD.
Adult and Health Services,Head of Adults,Third Party Payments,472101,Purchase of Care,01/09/2020,3774941-2016036H,608.40,DALE CARE LTD.
Adult and Health Services,Head of Adults,Third Party Payments,472101,Purchase of Care,01/09/2020,3774941-2016687H,"1,199.61",DALE CARE LTD.
Adult and Health Services,Head of Adults,Third Party Payments,472101,Purchase of Care,01/09/2020,3774941-2009016H,553.80,DALE CARE LTD.
Adult and Health Services,Head of Adults,Third Party Payments,472101,Purchase of Care,01/09/2020,3774941-2009019H,577.20,DALE CARE LTD.
Adult and Health Services,Head of Adults,Third Party Payments,472101,Purchase of Care,01/09/2020,3774941-2009428H,"1,622.40",DALE CARE LTD.
Adult and Health Services,Head of Adults,Third Party Payments,472101,Purchase of Care,01/09/2020,3774941-2010787H,514.80,DALE CARE LTD.
Adult and Health Services,Head of Adults,Third Party Payments,472101,Purchase of Care,01/09/2020,3774941-2011736H,"1,466.40",DALE CARE LTD.
Adult and Health Services,Head of Adults,Third Party Payments,472101,Purchase of Care,01/09/2020,3774941-2014102H,811.20,DALE CARE LTD.
Adult and Health Services,Head of Adults,Third Party Payments,472101,Purchase of Care,01/09/2020,3774941-2012408H,547.38,DALE CARE LTD.
Adult and Health Services,Head of Adults,Third Party Payments,472101,Purchase of Care,01/09/2020,3774941-2012893H,"1,653.60",DALE CARE LTD.
Adult and Health Services,Head of Adults,Third Party Payments,472101,Purchase of Care,01/09/2020,3774278-ADDITIONALUPLIFT6/27,"40,708.65",DALE CARE LTD.
Adult and Health Services,Head of Adults,Third Party Payments,472101,Purchase of Care,01/09/2020,3774278-HOMECARESELFFUNDERS6-6,"4,070.87",DALE CARE LTD.
Adult and Health Services,Head of Adults,Third Party Payments,472101,Purchase of Care,01/09/2020,3774941-2010596H,508.30,DALE CARE LTD.
Adult and Health Services,Head of Adults,Third Party Payments,472101,Purchase of Care,01/09/2020,3774979-2010353H,"1,955.20",EBONEY HOME CARE LTD.
Adult and Health Services,Head of Adults,Third Party Payments,472101,Purchase of Care,01/09/2020,3774979-2010644H,"1,232.40",EBONEY HOME CARE LTD.
Adult and Health Services,Head of Adults,Third Party Payments,472101,Purchase of Care,01/09/2020,3774979-2010669H,920.40,EBONEY HOME CARE LTD.
Adult and Health Services,Head of Adults,Third Party Payments,472101,Purchase of Care,01/09/2020,3774979-2012013H,889.20,EBONEY HOME CARE LTD.
Adult and Health Services,Head of Adults,Third Party Payments,472101,Purchase of Care,01/09/2020,3774979-2012042H,826.80,EBONEY HOME CARE LTD.
Adult and Health Services,Head of Adults,Third Party Payments,472101,Purchase of Care,01/09/2020,3774979-2012205H,561.60,EBONEY HOME CARE LTD.
Adult and Health Services,Head of Adults,Third Party Payments,472101,Purchase of Care,01/09/2020,3774979-2012611H,777.40,EBONEY HOME CARE LTD.
Adult and Health Services,Head of Adults,Third Party Payments,472101,Purchase of Care,01/09/2020,3774979-2013376H,990.60,EBONEY HOME CARE LTD.
Adult and Health Services,Head of Adults,Third Party Payments,472101,Purchase of Care,01/09/2020,3774979-2013661H,873.60,EBONEY HOME CARE LTD.
Adult and Health Services,Head of Adults,Third Party Payments,472101,Purchase of Care,01/09/2020,3774979-2013962H,582.40,EBONEY HOME CARE LTD.
Adult and Health Services,Head of Adults,Third Party Payments,472101,Purchase of Care,01/09/2020,3774979-2014515H,"2,090.40",EBONEY HOME CARE LTD.
Adult and Health Services,Head of Adults,Third Party Payments,472101,Purchase of Care,01/09/2020,3774979-2010318H,"2,230.80",EBONEY HOME CARE LTD.
Adult and Health Services,Head of Adults,Third Party Payments,472101,Purchase of Care,01/09/2020,3774979-2015090H,639.60,EBONEY HOME CARE LTD.
Adult and Health Services,Head of Adults,Third Party Payments,472101,Purchase of Care,01/09/2020,3774979-2010435H,600.16,EBONEY HOME CARE LTD.
Adult and Health Services,Head of Adults,Third Party Payments,472101,Purchase of Care,01/09/2020,3774979-2010455H,600.16,EBONEY HOME CARE LTD.
Adult and Health Services,Head of Adults,Third Party Payments,472101,Purchase of Care,01/09/2020,3774979-2010507H,600.16,EBONEY HOME CARE LTD.
Adult and Health Services,Head of Adults,Third Party Payments,472101,Purchase of Care,01/09/2020,3774979-2010612H,858.00,EBONEY HOME CARE LTD.
Adult and Health Services,Head of Adults,Third Party Payments,472101,Purchase of Care,01/09/2020,3774979-2010809H,"1,887.60",EBONEY HOME CARE LTD.
Adult and Health Services,Head of Adults,Third Party Payments,472101,Purchase of Care,01/09/2020,3774290-ADDITIONALUPLIFT6/153,"1,847.32",EBONEY HOME CARE LTD.
Adult and Health Services,Head of Adults,Third Party Payments,472101,Purchase of Care,01/09/2020,3774994-2010663H,910.00,EMBRACING CARE.
Adult and Health Services,Head of Adults,Third Party Payments,472101,Purchase of Care,01/09/2020,3774994-2011239H,564.20,EMBRACING CARE.
Adult and Health Services,Head of Adults,Third Party Payments,472101,Purchase of Care,01/09/2020,3774994-2011245H,722.80,EMBRACING CARE.
Adult and Health Services,Head of Adults,Third Party Payments,472101,Purchase of Care,01/09/2020,3774994-2011603H,661.70,EMBRACING CARE.
Adult and Health Services,Head of Adults,Third Party Payments,472101,Purchase of Care,01/09/2020,3774994-2011905H,512.20,EMBRACING CARE.
Adult and Health Services,Head of Adults,Third Party Payments,472101,Purchase of Care,01/09/2020,3774994-2011910H,982.80,EMBRACING CARE.
Adult and Health Services,Head of Adults,Third Party Payments,472101,Purchase of Care,01/09/2020,3774994-2011933H,764.40,EMBRACING CARE.
Adult and Health Services,Head of Adults,Third Party Payments,472101,Purchase of Care,01/09/2020,3774994-2012999H,"2,215.20",EMBRACING CARE.
Adult and Health Services,Head of Adults,Third Party Payments,472101,Purchase of Care,01/09/2020,3774994-2013257H,686.40,EMBRACING CARE.
Adult and Health Services,Head of Adults,Third Party Payments,472101,Purchase of Care,01/09/2020,3774994-2013855H,657.80,EMBRACING CARE.
Adult and Health Services,Head of Adults,Third Party Payments,472101,Purchase of Care,01/09/2020,3774994-2013896H,832.00,EMBRACING CARE.
Adult and Health Services,Head of Adults,Third Party Payments,472101,Purchase of Care,01/09/2020,3774994-2014361H,795.60,EMBRACING CARE.
Adult and Health Services,Head of Adults,Third Party Payments,472101,Purchase of Care,01/09/2020,3774994-2009535H,546.00,EMBRACING CARE.
Adult and Health Services,Head of Adults,Third Party Payments,472101,Purchase of Care,01/09/2020,3774994-2009779H,725.40,EMBRACING CARE.
Adult and Health Services,Head of Adults,Third Party Payments,472101,Purchase of Care,01/09/2020,3774994-2010018H,910.00,EMBRACING CARE.
Adult and Health Services,Head of Adults,Third Party Payments,472101,Purchase of Care,01/09/2020,3774994-2010053H,"2,028.00",EMBRACING CARE.
Adult and Health Services,Head of Adults,Third Party Payments,472101,Purchase of Care,01/09/2020,3774994-2010081H,800.80,EMBRACING CARE.
Adult and Health Services,Head of Adults,Third Party Payments,472101,Purchase of Care,01/09/2020,3774994-2010568H,633.10,EMBRACING CARE.
Adult and Health Services,Head of Adults,Third Party Payments,472101,Purchase of Care,01/09/2020,3774994-2011102H,873.60,EMBRACING CARE.
Adult and Health Services,Head of Adults,Third Party Payments,472101,Purchase of Care,01/09/2020,3774994-2011399H,517.40,EMBRACING CARE.
Adult and Health Services,Head of Adults,Third Party Payments,472101,Purchase of Care,01/09/2020,3774994-2011413H,598.00,EMBRACING CARE.
Adult and Health Services,Head of Adults,Third Party Payments,472101,Purchase of Care,01/09/2020,3774994-2011475H,783.90,EMBRACING CARE.
Adult and Health Services,Head of Adults,Third Party Payments,472101,Purchase of Care,01/09/2020,3774994-2011561H,"1,123.20",EMBRACING CARE.
Adult and Health Services,Head of Adults,Third Party Payments,472101,Purchase of Care,01/09/2020,3774994-2011598H,590.20,EMBRACING CARE.
Adult and Health Services,Head of Adults,Third Party Payments,472101,Purchase of Care,01/09/2020,3774994-2011982H,"2,152.80",EMBRACING CARE.
Adult and Health Services,Head of Adults,Third Party Payments,472101,Purchase of Care,01/09/2020,3774994-2012403H,763.10,EMBRACING CARE.
Adult and Health Services,Head of Adults,Third Party Payments,472101,Purchase of Care,01/09/2020,3774994-2012556H,582.40,EMBRACING CARE.
Adult and Health Services,Head of Adults,Third Party Payments,472101,Purchase of Care,01/09/2020,3774994-2012656H,884.00,EMBRACING CARE.
Adult and Health Services,Head of Adults,Third Party Payments,472101,Purchase of Care,01/09/2020,3774994-2012742H,785.20,EMBRACING CARE.
Adult and Health Services,Head of Adults,Third Party Payments,472101,Purchase of Care,01/09/2020,3774994-2012850H,618.80,EMBRACING CARE.
Adult and Health Services,Head of Adults,Third Party Payments,472101,Purchase of Care,01/09/2020,3774994-2013101H,546.00,EMBRACING CARE.
Adult and Health Services,Head of Adults,Third Party Payments,472101,Purchase of Care,01/09/2020,3774994-2013137H,988.00,EMBRACING CARE.
Adult and Health Services,Head of Adults,Third Party Payments,472101,Purchase of Care,01/09/2020,3774994-2013142H,624.00,EMBRACING CARE.
Adult and Health Services,Head of Adults,Third Party Payments,472101,Purchase of Care,01/09/2020,3774994-2013228H,"1,019.20",EMBRACING CARE.
Adult and Health Services,Head of Adults,Third Party Payments,472101,Purchase of Care,01/09/2020,3774994-2013246H,686.40,EMBRACING CARE.
Adult and Health Services,Head of Adults,Third Party Payments,472101,Purchase of Care,01/09/2020,3774994-2013495H,936.00,EMBRACING CARE.
Adult and Health Services,Head of Adults,Third Party Payments,472101,Purchase of Care,01/09/2020,3774994-2013581H,"1,097.20",EMBRACING CARE.
Adult and Health Services,Head of Adults,Third Party Payments,472101,Purchase of Care,01/09/2020,3774994-2013681H,785.20,EMBRACING CARE.
Adult and Health Services,Head of Adults,Third Party Payments,472101,Purchase of Care,01/09/2020,3774994-2013729H,816.40,EMBRACING CARE.
Adult and Health Services,Head of Adults,Third Party Payments,472101,Purchase of Care,01/09/2020,3774994-2013792H,650.00,EMBRACING CARE.
Adult and Health Services,Head of Adults,Third Party Payments,472101,Purchase of Care,01/09/2020,3774994-2013938H,577.20,EMBRACING CARE.
Adult and Health Services,Head of Adults,Third Party Payments,472101,Purchase of Care,01/09/2020,3774994-2014058H,535.60,EMBRACING CARE.
Adult and Health Services,Head of Adults,Third Party Payments,472101,Purchase of Care,01/09/2020,3774994-2014338H,525.20,EMBRACING CARE.
Adult and Health Services,Head of Adults,Third Party Payments,472101,Purchase of Care,01/09/2020,3774994-2014426H,696.80,EMBRACING CARE.
Adult and Health Services,Head of Adults,Third Party Payments,472101,Purchase of Care,01/09/2020,3774994-2014517H,603.20,EMBRACING CARE.
Adult and Health Services,Head of Adults,Third Party Payments,472101,Purchase of Care,01/09/2020,3774994-2014623H,546.00,EMBRACING CARE.
Adult and Health Services,Head of Adults,Third Party Payments,472101,Purchase of Care,01/09/2020,3774994-2014689H,509.60,EMBRACING CARE.
Adult and Health Services,Head of Adults,Third Party Payments,472101,Purchase of Care,01/09/2020,3774994-2014783H,873.60,EMBRACING CARE.
Adult and Health Services,Head of Adults,Third Party Payments,472101,Purchase of Care,01/09/2020,3774994-2014787H,644.80,EMBRACING CARE.
Adult and Health Services,Head of Adults,Third Party Payments,472101,Purchase of Care,01/09/2020,3774994-2015000H,670.80,EMBRACING CARE.
Adult and Health Services,Head of Adults,Third Party Payments,472101,Purchase of Care,01/09/2020,3774994-2011286H,572.00,EMBRACING CARE.
Adult and Health Services,Head of Adults,Third Party Payments,472101,Purchase of Care,01/09/2020,3774994-2012703H,618.80,EMBRACING CARE.
Adult and Health Services,Head of Adults,Third Party Payments,472101,Purchase of Care,01/09/2020,3774994-2013045H,787.80,EMBRACING CARE.
Adult and Health Services,Head of Adults,Third Party Payments,472101,Purchase of Care,01/09/2020,3774994-2013054H,644.80,EMBRACING CARE.
Adult and Health Services,Head of Adults,Third Party Payments,472101,Purchase of Care,01/09/2020,3774994-2013266H,504.40,EMBRACING CARE.
Adult and Health Services,Head of Adults,Third Party Payments,472101,Purchase of Care,01/09/2020,3774994-2013496H,666.90,EMBRACING CARE.
Adult and Health Services,Head of Adults,Third Party Payments,472101,Purchase of Care,01/09/2020,3774994-2013615H,582.40,EMBRACING CARE.
Adult and Health Services,Head of Adults,Third Party Payments,472101,Purchase of Care,01/09/2020,3774994-2013625H,873.60,EMBRACING CARE.
Adult and Health Services,Head of Adults,Third Party Payments,472101,Purchase of Care,01/09/2020,3774994-2013827H,686.40,EMBRACING CARE.
Adult and Health Services,Head of Adults,Third Party Payments,472101,Purchase of Care,01/09/2020,3774994-2014214H,586.30,EMBRACING CARE.
Adult and Health Services,Head of Adults,Third Party Payments,472101,Purchase of Care,01/09/2020,3774994-2014246H,647.40,EMBRACING CARE.
Adult and Health Services,Head of Adults,Third Party Payments,472101,Purchase of Care,01/09/2020,3774994-2014496H,686.40,EMBRACING CARE.
Adult and Health Services,Head of Adults,Third Party Payments,472101,Purchase of Care,01/09/2020,3774994-2015209H,690.30,EMBRACING CARE.
Adult and Health Services,Head of Adults,Third Party Payments,472101,Purchase of Care,01/09/2020,3774994-2015220H,904.80,EMBRACING CARE.
Adult and Health Services,Head of Adults,Third Party Payments,472101,Purchase of Care,01/09/2020,3774994-2015229H,582.40,EMBRACING CARE.
Adult and Health Services,Head of Adults,Third Party Payments,472101,Purchase of Care,01/09/2020,3774994-2015420H,582.40,EMBRACING CARE.
Adult and Health Services,Head of Adults,Third Party Payments,472101,Purchase of Care,01/09/2020,3774994-2009939H,"1,443.00",EMBRACING CARE.
Adult and Health Services,Head of Adults,Third Party Payments,472101,Purchase of Care,01/09/2020,3774994-2010829H,603.20,EMBRACING CARE.
Adult and Health Services,Head of Adults,Third Party Payments,472101,Purchase of Care,01/09/2020,3774994-2010837H,608.40,EMBRACING CARE.
Adult and Health Services,Head of Adults,Third Party Payments,472101,Purchase of Care,01/09/2020,3774994-2010864H,"2,225.60",EMBRACING CARE.
Adult and Health Services,Head of Adults,Third Party Payments,472101,Purchase of Care,01/09/2020,3774994-2010887H,728.00,EMBRACING CARE.
Adult and Health Services,Head of Adults,Third Party Payments,472101,Purchase of Care,01/09/2020,3774994-2010905H,707.20,EMBRACING CARE.
Adult and Health Services,Head of Adults,Third Party Payments,472101,Purchase of Care,01/09/2020,3774994-2010916H,"1,227.20",EMBRACING CARE.
Adult and Health Services,Head of Adults,Third Party Payments,472101,Purchase of Care,01/09/2020,3774994-2010929H,670.80,EMBRACING CARE.
Adult and Health Services,Head of Adults,Third Party Payments,472101,Purchase of Care,01/09/2020,3774994-2010948H,800.80,EMBRACING CARE.
Adult and Health Services,Head of Adults,Third Party Payments,472101,Purchase of Care,01/09/2020,3774994-2010953H,"1,965.60",EMBRACING CARE.
Adult and Health Services,Head of Adults,Third Party Payments,472101,Purchase of Care,01/09/2020,3774994-2011010H,717.60,EMBRACING CARE.
Adult and Health Services,Head of Adults,Third Party Payments,472101,Purchase of Care,01/09/2020,3774994-2011021H,577.20,EMBRACING CARE.
Adult and Health Services,Head of Adults,Third Party Payments,472101,Purchase of Care,01/09/2020,3774994-2011091H,"1,041.30",EMBRACING CARE.
Adult and Health Services,Head of Adults,Third Party Payments,472101,Purchase of Care,01/09/2020,3774994-2011267H,"1,310.40",EMBRACING CARE.
Adult and Health Services,Head of Adults,Third Party Payments,472101,Purchase of Care,01/09/2020,3774994-2011450H,546.00,EMBRACING CARE.
Adult and Health Services,Head of Adults,Third Party Payments,472101,Purchase of Care,01/09/2020,3774994-2011539H,691.60,EMBRACING CARE.
Adult and Health Services,Head of Adults,Third Party Payments,472101,Purchase of Care,01/09/2020,3774994-2011625H,"1,456.00",EMBRACING CARE.
Adult and Health Services,Head of Adults,Third Party Payments,472101,Purchase of Care,01/09/2020,3774994-2011726H,751.40,EMBRACING CARE.
Adult and Health Services,Head of Adults,Third Party Payments,472101,Purchase of Care,01/09/2020,3774994-2011784H,898.30,EMBRACING CARE.
Adult and Health Services,Head of Adults,Third Party Payments,472101,Purchase of Care,01/09/2020,3774994-2011800H,556.40,EMBRACING CARE.
Adult and Health Services,Head of Adults,Third Party Payments,472101,Purchase of Care,01/09/2020,3774994-2011801H,504.40,EMBRACING CARE.
Adult and Health Services,Head of Adults,Third Party Payments,472101,Purchase of Care,01/09/2020,3774994-2011817H,"1,248.00",EMBRACING CARE.
Adult and Health Services,Head of Adults,Third Party Payments,472101,Purchase of Care,01/09/2020,3774994-2011875H,811.20,EMBRACING CARE.
Adult and Health Services,Head of Adults,Third Party Payments,472101,Purchase of Care,01/09/2020,3774994-2012237H,504.40,EMBRACING CARE.
Adult and Health Services,Head of Adults,Third Party Payments,472101,Purchase of Care,01/09/2020,3774994-2012257H,946.40,EMBRACING CARE.
Adult and Health Services,Head of Adults,Third Party Payments,472101,Purchase of Care,01/09/2020,3774994-2012264H,624.00,EMBRACING CARE.
Adult and Health Services,Head of Adults,Third Party Payments,472101,Purchase of Care,01/09/2020,3774994-2012594H,930.80,EMBRACING CARE.
Adult and Health Services,Head of Adults,Third Party Payments,472101,Purchase of Care,01/09/2020,3774994-2012631H,863.20,EMBRACING CARE.
Adult and Health Services,Head of Adults,Third Party Payments,472101,Purchase of Care,01/09/2020,3774994-2012712H,572.00,EMBRACING CARE.
Adult and Health Services,Head of Adults,Third Party Payments,472101,Purchase of Care,01/09/2020,3774994-2012760H,"1,435.20",EMBRACING CARE.
Adult and Health Services,Head of Adults,Third Party Payments,472101,Purchase of Care,01/09/2020,3774994-2012868H,686.40,EMBRACING CARE.
Adult and Health Services,Head of Adults,Third Party Payments,472101,Purchase of Care,01/09/2020,3774994-2012915H,873.60,EMBRACING CARE.
Adult and Health Services,Head of Adults,Third Party Payments,472101,Purchase of Care,01/09/2020,3774994-2012958H,582.40,EMBRACING CARE.
Adult and Health Services,Head of Adults,Third Party Payments,472101,Purchase of Care,01/09/2020,3774994-2012982H,"1,060.80",EMBRACING CARE.
Adult and Health Services,Head of Adults,Third Party Payments,472101,Purchase of Care,01/09/2020,3774994-2013076H,"1,747.20",EMBRACING CARE.
Adult and Health Services,Head of Adults,Third Party Payments,472101,Purchase of Care,01/09/2020,3774994-2013126H,"1,518.40",EMBRACING CARE.
Adult and Health Services,Head of Adults,Third Party Payments,472101,Purchase of Care,01/09/2020,3774994-2013150H,936.00,EMBRACING CARE.
Adult and Health Services,Head of Adults,Third Party Payments,472101,Purchase of Care,01/09/2020,3774994-2013319H,540.80,EMBRACING CARE.
Adult and Health Services,Head of Adults,Third Party Payments,472101,Purchase of Care,01/09/2020,3774994-2013324H,722.80,EMBRACING CARE.
Adult and Health Services,Head of Adults,Third Party Payments,472101,Purchase of Care,01/09/2020,3774994-2013384H,"1,544.40",EMBRACING CARE.
Adult and Health Services,Head of Adults,Third Party Payments,472101,Purchase of Care,01/09/2020,3774994-2013518H,764.40,EMBRACING CARE.
Adult and Health Services,Head of Adults,Third Party Payments,472101,Purchase of Care,01/09/2020,3774994-2013527H,759.20,EMBRACING CARE.
Adult and Health Services,Head of Adults,Third Party Payments,472101,Purchase of Care,01/09/2020,3774994-2013595H,603.20,EMBRACING CARE.
Adult and Health Services,Head of Adults,Third Party Payments,472101,Purchase of Care,01/09/2020,3774994-2013893H,837.20,EMBRACING CARE.
Adult and Health Services,Head of Adults,Third Party Payments,472101,Purchase of Care,01/09/2020,3774994-2013894H,575.90,EMBRACING CARE.
Adult and Health Services,Head of Adults,Third Party Payments,472101,Purchase of Care,01/09/2020,3774994-2013906H,624.00,EMBRACING CARE.
Adult and Health Services,Head of Adults,Third Party Payments,472101,Purchase of Care,01/09/2020,3774994-2013917H,"1,965.60",EMBRACING CARE.
Adult and Health Services,Head of Adults,Third Party Payments,472101,Purchase of Care,01/09/2020,3774994-2013978H,655.20,EMBRACING CARE.
Adult and Health Services,Head of Adults,Third Party Payments,472101,Purchase of Care,01/09/2020,3774994-2013989H,608.40,EMBRACING CARE.
Adult and Health Services,Head of Adults,Third Party Payments,472101,Purchase of Care,01/09/2020,3774994-2014013H,"1,014.00",EMBRACING CARE.
Adult and Health Services,Head of Adults,Third Party Payments,472101,Purchase of Care,01/09/2020,3774994-2014231H,509.60,EMBRACING CARE.
Adult and Health Services,Head of Adults,Third Party Payments,472101,Purchase of Care,01/09/2020,3774994-2014261H,655.20,EMBRACING CARE.
Adult and Health Services,Head of Adults,Third Party Payments,472101,Purchase of Care,01/09/2020,3774994-2014277H,982.80,EMBRACING CARE.
Adult and Health Services,Head of Adults,Third Party Payments,472101,Purchase of Care,01/09/2020,3774994-2014310H,"1,632.80",EMBRACING CARE.
Adult and Health Services,Head of Adults,Third Party Payments,472101,Purchase of Care,01/09/2020,3774994-2014368H,"1,747.20",EMBRACING CARE.
Adult and Health Services,Head of Adults,Third Party Payments,472101,Purchase of Care,01/09/2020,3774994-2014499H,873.60,EMBRACING CARE.
Adult and Health Services,Head of Adults,Third Party Payments,472101,Purchase of Care,01/09/2020,3774994-2014596H,634.40,EMBRACING CARE.
Adult and Health Services,Head of Adults,Third Party Payments,472101,Purchase of Care,01/09/2020,3774994-2014745H,733.20,EMBRACING CARE.
Adult and Health Services,Head of Adults,Third Party Payments,472101,Purchase of Care,01/09/2020,3774994-2014811H,525.20,EMBRACING CARE.
Adult and Health Services,Head of Adults,Third Party Payments,472101,Purchase of Care,01/09/2020,3774994-2014822H,509.60,EMBRACING CARE.
Adult and Health Services,Head of Adults,Third Party Payments,472101,Purchase of Care,01/09/2020,3774994-2015166H,626.60,EMBRACING CARE.
Adult and Health Services,Head of Adults,Third Party Payments,472101,Purchase of Care,01/09/2020,3774994-2015180H,"1,601.60",EMBRACING CARE.
Adult and Health Services,Head of Adults,Third Party Payments,472101,Purchase of Care,01/09/2020,3774994-2015277H,"2,355.60",EMBRACING CARE.
Adult and Health Services,Head of Adults,Third Party Payments,472101,Purchase of Care,01/09/2020,3774994-2015359H,503.10,EMBRACING CARE.
Adult and Health Services,Head of Adults,Third Party Payments,472101,Purchase of Care,01/09/2020,3774994-2015726H,522.60,EMBRACING CARE.
Adult and Health Services,Head of Adults,Third Party Payments,472101,Purchase of Care,01/09/2020,3774994-2015746H,787.80,EMBRACING CARE.
Adult and Health Services,Head of Adults,Third Party Payments,472101,Purchase of Care,01/09/2020,3774994-2011471H,933.20,EMBRACING CARE.
Adult and Health Services,Head of Adults,Third Party Payments,472101,Purchase of Care,01/09/2020,3774994-2011896H,605.80,EMBRACING CARE.
Adult and Health Services,Head of Adults,Third Party Payments,472101,Purchase of Care,01/09/2020,3774994-2013675H,"1,635.60",EMBRACING CARE.
Adult and Health Services,Head of Adults,Third Party Payments,472101,Purchase of Care,01/09/2020,3774994-2011445H,530.40,EMBRACING CARE.
Adult and Health Services,Head of Adults,Third Party Payments,472101,Purchase of Care,01/09/2020,3774994-2011500H,655.20,EMBRACING CARE.
Adult and Health Services,Head of Adults,Third Party Payments,472101,Purchase of Care,01/09/2020,3774994-2013377H,850.20,EMBRACING CARE.
Adult and Health Services,Head of Adults,Third Party Payments,472101,Purchase of Care,01/09/2020,3774994-2014056H,748.80,EMBRACING CARE.
Adult and Health Services,Head of Adults,Third Party Payments,472101,Purchase of Care,01/09/2020,3774994-2015244H,"1,419.60",EMBRACING CARE.
Adult and Health Services,Head of Adults,Third Party Payments,472101,Purchase of Care,01/09/2020,3774994-2015430H,"1,580.80",EMBRACING CARE.
Adult and Health Services,Head of Adults,Third Party Payments,472101,Purchase of Care,01/09/2020,3774994-2015496H,928.20,EMBRACING CARE.
Adult and Health Services,Head of Adults,Third Party Payments,472101,Purchase of Care,01/09/2020,3774994-2015719H,"1,274.00",EMBRACING CARE.
Adult and Health Services,Head of Adults,Third Party Payments,472101,Purchase of Care,01/09/2020,3774994-2009985H,724.10,EMBRACING CARE.
Adult and Health Services,Head of Adults,Third Party Payments,472101,Purchase of Care,01/09/2020,3774994-2010042H,904.80,EMBRACING CARE.
Adult and Health Services,Head of Adults,Third Party Payments,472101,Purchase of Care,01/09/2020,3774994-2010279H,"1,068.60",EMBRACING CARE.
Adult and Health Services,Head of Adults,Third Party Payments,472101,Purchase of Care,01/09/2020,3774994-2013063H,"1,107.60",EMBRACING CARE.
Adult and Health Services,Head of Adults,Third Party Payments,472101,Purchase of Care,01/09/2020,3774994-2013458H,566.80,EMBRACING CARE.
Adult and Health Services,Head of Adults,Third Party Payments,472101,Purchase of Care,01/09/2020,3774994-2013483H,800.80,EMBRACING CARE.
Adult and Health Services,Head of Adults,Third Party Payments,472101,Purchase of Care,01/09/2020,3774994-2013539H,"1,635.40",EMBRACING CARE.
Adult and Health Services,Head of Adults,Third Party Payments,472101,Purchase of Care,01/09/2020,3774994-2014696H,"1,591.20",EMBRACING CARE.
Adult and Health Services,Head of Adults,Third Party Payments,472101,Purchase of Care,01/09/2020,3774994-2014944H,"1,892.80",EMBRACING CARE.
Adult and Health Services,Head of Adults,Third Party Payments,472101,Purchase of Care,01/09/2020,3774994-2015186H,744.90,EMBRACING CARE.
Adult and Health Services,Head of Adults,Third Party Payments,472101,Purchase of Care,01/09/2020,3774994-2015444H,"1,606.80",EMBRACING CARE.
Adult and Health Services,Head of Adults,Third Party Payments,472101,Purchase of Care,01/09/2020,3774994-2015456H,"1,965.60",EMBRACING CARE.
Adult and Health Services,Head of Adults,Third Party Payments,472101,Purchase of Care,01/09/2020,3774994-2015527H,592.80,EMBRACING CARE.
Adult and Health Services,Head of Adults,Third Party Payments,472101,Purchase of Care,01/09/2020,3774994-2009115H,569.40,EMBRACING CARE.
Adult and Health Services,Head of Adults,Third Party Payments,472101,Purchase of Care,01/09/2020,3774994-2010613H,"5,290.80",EMBRACING CARE.
Adult and Health Services,Head of Adults,Third Party Payments,472101,Purchase of Care,01/09/2020,3774994-2010810H,"5,290.80",EMBRACING CARE.
Adult and Health Services,Head of Adults,Third Party Payments,472101,Purchase of Care,01/09/2020,3774994-2011304H,780.00,EMBRACING CARE.
Adult and Health Services,Head of Adults,Third Party Payments,472101,Purchase of Care,01/09/2020,3774994-2009941H,655.20,EMBRACING CARE.
Adult and Health Services,Head of Adults,Third Party Payments,472101,Purchase of Care,01/09/2020,3774994-2011117H,733.20,EMBRACING CARE.
Adult and Health Services,Head of Adults,Third Party Payments,472101,Purchase of Care,01/09/2020,3774994-2011556H,"2,054.00",EMBRACING CARE.
Adult and Health Services,Head of Adults,Third Party Payments,472101,Purchase of Care,01/09/2020,3774994-2010249H,"1,310.40",EMBRACING CARE.
Adult and Health Services,Head of Adults,Third Party Payments,472101,Purchase of Care,01/09/2020,3774994-2010839H,569.40,EMBRACING CARE.
Adult and Health Services,Head of Adults,Third Party Payments,472101,Purchase of Care,01/09/2020,3774994-2010895H,"1,700.40",EMBRACING CARE.
Adult and Health Services,Head of Adults,Third Party Payments,472101,Purchase of Care,01/09/2020,3774994-2010920H,"1,248.00",EMBRACING CARE.
Adult and Health Services,Head of Adults,Third Party Payments,472101,Purchase of Care,01/09/2020,3774994-2010981H,725.40,EMBRACING CARE.
Adult and Health Services,Head of Adults,Third Party Payments,472101,Purchase of Care,01/09/2020,3774994-2011591H,"1,138.80",EMBRACING CARE.
Adult and Health Services,Head of Adults,Third Party Payments,472101,Purchase of Care,01/09/2020,3774994-2011793H,644.80,EMBRACING CARE.
Adult and Health Services,Head of Adults,Third Party Payments,472101,Purchase of Care,01/09/2020,3774994-2012155H,670.80,EMBRACING CARE.
Adult and Health Services,Head of Adults,Third Party Payments,472101,Purchase of Care,01/09/2020,3774994-2012184H,"1,528.80",EMBRACING CARE.
Adult and Health Services,Head of Adults,Third Party Payments,472101,Purchase of Care,01/09/2020,3774994-2012234H,936.00,EMBRACING CARE.
Adult and Health Services,Head of Adults,Third Party Payments,472101,Purchase of Care,01/09/2020,3774994-2012533H,"1,310.40",EMBRACING CARE.
Adult and Health Services,Head of Adults,Third Party Payments,472101,Purchase of Care,01/09/2020,3774994-2013015H,509.60,EMBRACING CARE.
Adult and Health Services,Head of Adults,Third Party Payments,472101,Purchase of Care,01/09/2020,3774994-2013058H,951.60,EMBRACING CARE.
Adult and Health Services,Head of Adults,Third Party Payments,472101,Purchase of Care,01/09/2020,3774994-2013062H,904.80,EMBRACING CARE.
Adult and Health Services,Head of Adults,Third Party Payments,472101,Purchase of Care,01/09/2020,3774994-2013209H,943.80,EMBRACING CARE.
Adult and Health Services,Head of Adults,Third Party Payments,472101,Purchase of Care,01/09/2020,3774994-2013460H,873.60,EMBRACING CARE.
Adult and Health Services,Head of Adults,Third Party Payments,472101,Purchase of Care,01/09/2020,3774994-2014072H,689.00,EMBRACING CARE.
Adult and Health Services,Head of Adults,Third Party Payments,472101,Purchase of Care,01/09/2020,3774994-2014245H,"1,201.20",EMBRACING CARE.
Adult and Health Services,Head of Adults,Third Party Payments,472101,Purchase of Care,01/09/2020,3774994-2014381H,655.20,EMBRACING CARE.
Adult and Health Services,Head of Adults,Third Party Payments,472101,Purchase of Care,01/09/2020,3774994-2014590H,507.00,EMBRACING CARE.
Adult and Health Services,Head of Adults,Third Party Payments,472101,Purchase of Care,01/09/2020,3774994-2014874H,516.10,EMBRACING CARE.
Adult and Health Services,Head of Adults,Third Party Payments,472101,Purchase of Care,01/09/2020,3774994-2015211H,912.60,EMBRACING CARE.
Adult and Health Services,Head of Adults,Third Party Payments,472101,Purchase of Care,01/09/2020,3774994-2015377H,618.80,EMBRACING CARE.
Adult and Health Services,Head of Adults,Third Party Payments,472101,Purchase of Care,01/09/2020,3774994-2015517H,"1,388.40",EMBRACING CARE.
Adult and Health Services,Head of Adults,Third Party Payments,472101,Purchase of Care,01/09/2020,3774994-2015522H,858.00,EMBRACING CARE.
Adult and Health Services,Head of Adults,Third Party Payments,472101,Purchase of Care,01/09/2020,3774303-ADDITIONALUPLIFT6/51,"24,323.93",EMBRACING CARE.
Adult and Health Services,Head of Adults,Third Party Payments,472101,Purchase of Care,01/09/2020,3774303-HOMECARESELFFUNDERS6-9,"2,360.45",EMBRACING CARE.
Adult and Health Services,Head of Adults,Third Party Payments,472101,Purchase of Care,01/09/2020,3774994-2011266H,"3,244.80",EMBRACING CARE.
Adult and Health Services,Head of Adults,Third Party Payments,472101,Purchase of Care,01/09/2020,3775003-2010832H,684.52,ESSENTIAL CARE & SUPPORT LTD.
Adult and Health Services,Head of Adults,Third Party Payments,472101,Purchase of Care,01/09/2020,3775003-2015842H,"25,416.10",ESSENTIAL CARE & SUPPORT LTD.
Adult and Health Services,Head of Adults,Third Party Payments,472101,Purchase of Care,01/09/2020,3775003-2012591H,958.32,ESSENTIAL CARE & SUPPORT LTD.
Adult and Health Services,Head of Adults,Third Party Payments,472101,Purchase of Care,01/09/2020,3775005-2009459H,"2,062.92",ETHICARE (DURHAM) LTD.
Adult and Health Services,Head of Adults,Third Party Payments,472101,Purchase of Care,01/09/2020,3775005-2009707H,"2,062.92",ETHICARE (DURHAM) LTD.
Adult and Health Services,Head of Adults,Third Party Payments,472101,Purchase of Care,01/09/2020,3775036-2011246H,"2,110.52",HELPING HANDS HOME CARE.
Adult and Health Services,Head of Adults,Third Party Payments,472101,Purchase of Care,01/09/2020,3775037-2009496H,"4,859.20",HETTON HOMECARE SERVICES.
Adult and Health Services,Head of Adults,Third Party Payments,472101,Purchase of Care,01/09/2020,3775037-2014237H,"1,965.60",HETTON HOMECARE SERVICES.
Adult and Health Services,Head of Adults,Third Party Payments,472101,Purchase of Care,01/09/2020,3775046-2015618H,"4,788.00",INCLUDE IN AUTISM.
Adult and Health Services,Head of Adults,Third Party Payments,472101,Purchase of Care,01/09/2020,3775121-2009740H,"1,310.40",KELLY PARK LTD..
Adult and Health Services,Head of Adults,Third Party Payments,472101,Purchase of Care,01/09/2020,3775121-2010295H,"1,918.80",KELLY PARK LTD..
Adult and Health Services,Head of Adults,Third Party Payments,472101,Purchase of Care,01/09/2020,3775121-2010299H,"1,482.00",KELLY PARK LTD..
Adult and Health Services,Head of Adults,Third Party Payments,472101,Purchase of Care,01/09/2020,3775121-2010370H,993.20,KELLY PARK LTD..
Adult and Health Services,Head of Adults,Third Party Payments,472101,Purchase of Care,01/09/2020,3775121-2010479H,566.80,KELLY PARK LTD..
Adult and Health Services,Head of Adults,Third Party Payments,472101,Purchase of Care,01/09/2020,3775121-2010505H,"1,237.60",KELLY PARK LTD..
Adult and Health Services,Head of Adults,Third Party Payments,472101,Purchase of Care,01/09/2020,3775121-2010627H,"1,019.20",KELLY PARK LTD..
Adult and Health Services,Head of Adults,Third Party Payments,472101,Purchase of Care,01/09/2020,3775121-2010672H,592.80,KELLY PARK LTD..
Adult and Health Services,Head of Adults,Third Party Payments,472101,Purchase of Care,01/09/2020,3775121-2010673H,889.20,KELLY PARK LTD..
Adult and Health Services,Head of Adults,Third Party Payments,472101,Purchase of Care,01/09/2020,3775121-2011178H,795.60,KELLY PARK LTD..
Adult and Health Services,Head of Adults,Third Party Payments,472101,Purchase of Care,01/09/2020,3775121-2011238H,733.20,KELLY PARK LTD..
Adult and Health Services,Head of Adults,Third Party Payments,472101,Purchase of Care,01/09/2020,3775121-2011318H,863.20,KELLY PARK LTD..
Adult and Health Services,Head of Adults,Third Party Payments,472101,Purchase of Care,01/09/2020,3775121-2011338H,780.00,KELLY PARK LTD..
Adult and Health Services,Head of Adults,Third Party Payments,472101,Purchase of Care,01/09/2020,3775121-2011415H,"1,310.40",KELLY PARK LTD..
Adult and Health Services,Head of Adults,Third Party Payments,472101,Purchase of Care,01/09/2020,3775121-2012327H,728.00,KELLY PARK LTD..
Adult and Health Services,Head of Adults,Third Party Payments,472101,Purchase of Care,01/09/2020,3775121-2012431H,546.00,KELLY PARK LTD..
Adult and Health Services,Head of Adults,Third Party Payments,472101,Purchase of Care,01/09/2020,3775121-2012515H,"1,591.20",KELLY PARK LTD..
Adult and Health Services,Head of Adults,Third Party Payments,472101,Purchase of Care,01/09/2020,3775121-2012524H,639.60,KELLY PARK LTD..
Adult and Health Services,Head of Adults,Third Party Payments,472101,Purchase of Care,01/09/2020,3775121-2012550H,624.00,KELLY PARK LTD..
Adult and Health Services,Head of Adults,Third Party Payments,472101,Purchase of Care,01/09/2020,3775121-2012588H,936.00,KELLY PARK LTD..
Adult and Health Services,Head of Adults,Third Party Payments,472101,Purchase of Care,01/09/2020,3775121-2012635H,764.40,KELLY PARK LTD..
Adult and Health Services,Head of Adults,Third Party Payments,472101,Purchase of Care,01/09/2020,3775121-2012723H,540.80,KELLY PARK LTD..
Adult and Health Services,Head of Adults,Third Party Payments,472101,Purchase of Care,01/09/2020,3775121-2012750H,"2,215.20",KELLY PARK LTD..
Adult and Health Services,Head of Adults,Third Party Payments,472101,Purchase of Care,01/09/2020,3775121-2013066H,"1,107.60",KELLY PARK LTD..
Adult and Health Services,Head of Adults,Third Party Payments,472101,Purchase of Care,01/09/2020,3775121-2013077H,603.20,KELLY PARK LTD..
Adult and Health Services,Head of Adults,Third Party Payments,472101,Purchase of Care,01/09/2020,3775121-2013113H,852.80,KELLY PARK LTD..
Adult and Health Services,Head of Adults,Third Party Payments,472101,Purchase of Care,01/09/2020,3775121-2013144H,800.80,KELLY PARK LTD..
Adult and Health Services,Head of Adults,Third Party Payments,472101,Purchase of Care,01/09/2020,3775121-2013145H,"1,684.80",KELLY PARK LTD..
Adult and Health Services,Head of Adults,Third Party Payments,472101,Purchase of Care,01/09/2020,3775121-2013404H,"1,879.80",KELLY PARK LTD..
Adult and Health Services,Head of Adults,Third Party Payments,472101,Purchase of Care,01/09/2020,3775121-2013413H,852.80,KELLY PARK LTD..
Adult and Health Services,Head of Adults,Third Party Payments,472101,Purchase of Care,01/09/2020,3775121-2013420H,790.40,KELLY PARK LTD..
Adult and Health Services,Head of Adults,Third Party Payments,472101,Purchase of Care,01/09/2020,3775121-2013497H,"1,435.20",KELLY PARK LTD..
Adult and Health Services,Head of Adults,Third Party Payments,472101,Purchase of Care,01/09/2020,3775121-2013667H,691.60,KELLY PARK LTD..
Adult and Health Services,Head of Adults,Third Party Payments,472101,Purchase of Care,01/09/2020,3775121-2013719H,764.40,KELLY PARK LTD..
Adult and Health Services,Head of Adults,Third Party Payments,472101,Purchase of Care,01/09/2020,3775121-2013800H,873.60,KELLY PARK LTD..
Adult and Health Services,Head of Adults,Third Party Payments,472101,Purchase of Care,01/09/2020,3775121-2013809H,832.00,KELLY PARK LTD..
Adult and Health Services,Head of Adults,Third Party Payments,472101,Purchase of Care,01/09/2020,3775121-2013916H,"1,653.60",KELLY PARK LTD..
Adult and Health Services,Head of Adults,Third Party Payments,472101,Purchase of Care,01/09/2020,3775121-2013957H,904.80,KELLY PARK LTD..
Adult and Health Services,Head of Adults,Third Party Payments,472101,Purchase of Care,01/09/2020,3775121-2013988H,904.80,KELLY PARK LTD..
Adult and Health Services,Head of Adults,Third Party Payments,472101,Purchase of Care,01/09/2020,3775121-2014080H,664.30,KELLY PARK LTD..
Adult and Health Services,Head of Adults,Third Party Payments,472101,Purchase of Care,01/09/2020,3775121-2014202H,"3,494.40",KELLY PARK LTD..
Adult and Health Services,Head of Adults,Third Party Payments,472101,Purchase of Care,01/09/2020,3775121-2014230H,967.20,KELLY PARK LTD..
Adult and Health Services,Head of Adults,Third Party Payments,472101,Purchase of Care,01/09/2020,3775121-2014323H,676.00,KELLY PARK LTD..
Adult and Health Services,Head of Adults,Third Party Payments,472101,Purchase of Care,01/09/2020,3775121-2014349H,681.20,KELLY PARK LTD..
Adult and Health Services,Head of Adults,Third Party Payments,472101,Purchase of Care,01/09/2020,3775121-2014503H,"1,903.20",KELLY PARK LTD..
Adult and Health Services,Head of Adults,Third Party Payments,472101,Purchase of Care,01/09/2020,3775121-2014547H,"1,318.20",KELLY PARK LTD..
Adult and Health Services,Head of Adults,Third Party Payments,472101,Purchase of Care,01/09/2020,3775121-2014594H,"1,536.60",KELLY PARK LTD..
Adult and Health Services,Head of Adults,Third Party Payments,472101,Purchase of Care,01/09/2020,3775121-2014634H,858.00,KELLY PARK LTD..
Adult and Health Services,Head of Adults,Third Party Payments,472101,Purchase of Care,01/09/2020,3775121-2014726H,603.20,KELLY PARK LTD..
Adult and Health Services,Head of Adults,Third Party Payments,472101,Purchase of Care,01/09/2020,3775121-2014816H,666.90,KELLY PARK LTD..
Adult and Health Services,Head of Adults,Third Party Payments,472101,Purchase of Care,01/09/2020,3775121-2014826H,530.40,KELLY PARK LTD..
Adult and Health Services,Head of Adults,Third Party Payments,472101,Purchase of Care,01/09/2020,3775121-2015009H,759.20,KELLY PARK LTD..
Adult and Health Services,Head of Adults,Third Party Payments,472101,Purchase of Care,01/09/2020,3775121-2015022H,760.50,KELLY PARK LTD..
Adult and Health Services,Head of Adults,Third Party Payments,472101,Purchase of Care,01/09/2020,3775121-2015182H,546.00,KELLY PARK LTD..
Adult and Health Services,Head of Adults,Third Party Payments,472101,Purchase of Care,01/09/2020,3775121-2015274H,"1,092.00",KELLY PARK LTD..
Adult and Health Services,Head of Adults,Third Party Payments,472101,Purchase of Care,01/09/2020,3775121-2015300H,717.60,KELLY PARK LTD..
Adult and Health Services,Head of Adults,Third Party Payments,472101,Purchase of Care,01/09/2020,3775121-2015393H,790.40,KELLY PARK LTD..
Adult and Health Services,Head of Adults,Third Party Payments,472101,Purchase of Care,01/09/2020,3775121-2009515H,509.60,KELLY PARK LTD..
Adult and Health Services,Head of Adults,Third Party Payments,472101,Purchase of Care,01/09/2020,3775121-2009710H,"1,778.40",KELLY PARK LTD..
Adult and Health Services,Head of Adults,Third Party Payments,472101,Purchase of Care,01/09/2020,3775121-2009736H,"1,695.20",KELLY PARK LTD..
Adult and Health Services,Head of Adults,Third Party Payments,472101,Purchase of Care,01/09/2020,3775121-2009974H,"1,157.00",KELLY PARK LTD..
Adult and Health Services,Head of Adults,Third Party Payments,472101,Purchase of Care,01/09/2020,3775121-2010010H,"1,809.60",KELLY PARK LTD..
Adult and Health Services,Head of Adults,Third Party Payments,472101,Purchase of Care,01/09/2020,3775121-2010105H,832.00,KELLY PARK LTD..
Adult and Health Services,Head of Adults,Third Party Payments,472101,Purchase of Care,01/09/2020,3775121-2010712H,"1,341.60",KELLY PARK LTD..
Adult and Health Services,Head of Adults,Third Party Payments,472101,Purchase of Care,01/09/2020,3775121-2011357H,"1,381.90",KELLY PARK LTD..
Adult and Health Services,Head of Adults,Third Party Payments,472101,Purchase of Care,01/09/2020,3775121-2011365H,681.20,KELLY PARK LTD..
Adult and Health Services,Head of Adults,Third Party Payments,472101,Purchase of Care,01/09/2020,3775121-2011682H,"1,747.20",KELLY PARK LTD..
Adult and Health Services,Head of Adults,Third Party Payments,472101,Purchase of Care,01/09/2020,3775121-2012547H,904.80,KELLY PARK LTD..
Adult and Health Services,Head of Adults,Third Party Payments,472101,Purchase of Care,01/09/2020,3775121-2012642H,"1,220.70",KELLY PARK LTD..
Adult and Health Services,Head of Adults,Third Party Payments,472101,Purchase of Care,01/09/2020,3775121-2013261H,722.80,KELLY PARK LTD..
Adult and Health Services,Head of Adults,Third Party Payments,472101,Purchase of Care,01/09/2020,3775121-2013418H,"1,716.00",KELLY PARK LTD..
Adult and Health Services,Head of Adults,Third Party Payments,472101,Purchase of Care,01/09/2020,3775121-2014096H,647.40,KELLY PARK LTD..
Adult and Health Services,Head of Adults,Third Party Payments,472101,Purchase of Care,01/09/2020,3775121-2014329H,"2,371.20",KELLY PARK LTD..
Adult and Health Services,Head of Adults,Third Party Payments,472101,Purchase of Care,01/09/2020,3775121-2014450H,"2,256.80",KELLY PARK LTD..
Adult and Health Services,Head of Adults,Third Party Payments,472101,Purchase of Care,01/09/2020,3775121-2014643H,598.00,KELLY PARK LTD..
Adult and Health Services,Head of Adults,Third Party Payments,472101,Purchase of Care,01/09/2020,3775121-2014690H,540.80,KELLY PARK LTD..
Adult and Health Services,Head of Adults,Third Party Payments,472101,Purchase of Care,01/09/2020,3775121-2014780H,530.40,KELLY PARK LTD..
Adult and Health Services,Head of Adults,Third Party Payments,472101,Purchase of Care,01/09/2020,3775121-2014879H,"1,019.20",KELLY PARK LTD..
Adult and Health Services,Head of Adults,Third Party Payments,472101,Purchase of Care,01/09/2020,3775121-2015121H,"1,352.00",KELLY PARK LTD..
Adult and Health Services,Head of Adults,Third Party Payments,472101,Purchase of Care,01/09/2020,3775121-2015175H,"1,591.20",KELLY PARK LTD..
Adult and Health Services,Head of Adults,Third Party Payments,472101,Purchase of Care,01/09/2020,3775121-2016629H,"2,028.00",KELLY PARK LTD..
Adult and Health Services,Head of Adults,Third Party Payments,472101,Purchase of Care,01/09/2020,3775121-2016677H,"1,341.60",KELLY PARK LTD..
Adult and Health Services,Head of Adults,Third Party Payments,472101,Purchase of Care,01/09/2020,3775121-2009658H,"10,388.00",KELLY PARK LTD..
Adult and Health Services,Head of Adults,Third Party Payments,472101,Purchase of Care,01/09/2020,3775121-2015196H,"2,184.00",KELLY PARK LTD..
Adult and Health Services,Head of Adults,Third Party Payments,472101,Purchase of Care,01/09/2020,3775121-2011920H,"1,747.20",KELLY PARK LTD..
Adult and Health Services,Head of Adults,Third Party Payments,472101,Purchase of Care,01/09/2020,3775121-2012265H,"2,184.00",KELLY PARK LTD..
Adult and Health Services,Head of Adults,Third Party Payments,472101,Purchase of Care,01/09/2020,3775121-2013053H,509.60,KELLY PARK LTD..
Adult and Health Services,Head of Adults,Third Party Payments,472101,Purchase of Care,01/09/2020,3775121-2015176H,"1,747.20",KELLY PARK LTD..
Adult and Health Services,Head of Adults,Third Party Payments,472101,Purchase of Care,01/09/2020,3775121-2009952H,655.20,KELLY PARK LTD..
Adult and Health Services,Head of Adults,Third Party Payments,472101,Purchase of Care,01/09/2020,3775121-2009618H,"1,346.80",KELLY PARK LTD..
Adult and Health Services,Head of Adults,Third Party Payments,472101,Purchase of Care,01/09/2020,3775121-2010007H,"2,496.00",KELLY PARK LTD..
Adult and Health Services,Head of Adults,Third Party Payments,472101,Purchase of Care,01/09/2020,3775121-2010499H,569.40,KELLY PARK LTD..
Adult and Health Services,Head of Adults,Third Party Payments,472101,Purchase of Care,01/09/2020,3775121-2010661H,"1,903.20",KELLY PARK LTD..
Adult and Health Services,Head of Adults,Third Party Payments,472101,Purchase of Care,01/09/2020,3775121-2011307H,904.80,KELLY PARK LTD..
Adult and Health Services,Head of Adults,Third Party Payments,472101,Purchase of Care,01/09/2020,3775121-2011326H,587.60,KELLY PARK LTD..
Adult and Health Services,Head of Adults,Third Party Payments,472101,Purchase of Care,01/09/2020,3775121-2011449H,889.20,KELLY PARK LTD..
Adult and Health Services,Head of Adults,Third Party Payments,472101,Purchase of Care,01/09/2020,3775121-2011660H,702.00,KELLY PARK LTD..
Adult and Health Services,Head of Adults,Third Party Payments,472101,Purchase of Care,01/09/2020,3775121-2011740H,"1,019.20",KELLY PARK LTD..
Adult and Health Services,Head of Adults,Third Party Payments,472101,Purchase of Care,01/09/2020,3775121-2011765H,868.40,KELLY PARK LTD..
Adult and Health Services,Head of Adults,Third Party Payments,472101,Purchase of Care,01/09/2020,3775121-2011788H,764.40,KELLY PARK LTD..
Adult and Health Services,Head of Adults,Third Party Payments,472101,Purchase of Care,01/09/2020,3775121-2012101H,967.20,KELLY PARK LTD..
Adult and Health Services,Head of Adults,Third Party Payments,472101,Purchase of Care,01/09/2020,3775121-2012139H,759.20,KELLY PARK LTD..
Adult and Health Services,Head of Adults,Third Party Payments,472101,Purchase of Care,01/09/2020,3775121-2012196H,873.60,KELLY PARK LTD..
Adult and Health Services,Head of Adults,Third Party Payments,472101,Purchase of Care,01/09/2020,3775121-2012649H,"1,331.20",KELLY PARK LTD..
Adult and Health Services,Head of Adults,Third Party Payments,472101,Purchase of Care,01/09/2020,3775121-2012871H,"1,339.20",KELLY PARK LTD..
Adult and Health Services,Head of Adults,Third Party Payments,472101,Purchase of Care,01/09/2020,3775121-2012960H,728.00,KELLY PARK LTD..
Adult and Health Services,Head of Adults,Third Party Payments,472101,Purchase of Care,01/09/2020,3775121-2013004H,917.80,KELLY PARK LTD..
Adult and Health Services,Head of Adults,Third Party Payments,472101,Purchase of Care,01/09/2020,3775121-2013202H,821.60,KELLY PARK LTD..
Adult and Health Services,Head of Adults,Third Party Payments,472101,Purchase of Care,01/09/2020,3775121-2013272H,546.00,KELLY PARK LTD..
Adult and Health Services,Head of Adults,Third Party Payments,472101,Purchase of Care,01/09/2020,3775121-2013356H,873.60,KELLY PARK LTD..
Adult and Health Services,Head of Adults,Third Party Payments,472101,Purchase of Care,01/09/2020,3775121-2013374H,520.00,KELLY PARK LTD..
Adult and Health Services,Head of Adults,Third Party Payments,472101,Purchase of Care,01/09/2020,3775121-2013658H,686.40,KELLY PARK LTD..
Adult and Health Services,Head of Adults,Third Party Payments,472101,Purchase of Care,01/09/2020,3775121-2013670H,"1,747.20",KELLY PARK LTD..
Adult and Health Services,Head of Adults,Third Party Payments,472101,Purchase of Care,01/09/2020,3775121-2013717H,"2,246.40",KELLY PARK LTD..
Adult and Health Services,Head of Adults,Third Party Payments,472101,Purchase of Care,01/09/2020,3775121-2013763H,"1,747.20",KELLY PARK LTD..
Adult and Health Services,Head of Adults,Third Party Payments,472101,Purchase of Care,01/09/2020,3775121-2013993H,928.20,KELLY PARK LTD..
Adult and Health Services,Head of Adults,Third Party Payments,472101,Purchase of Care,01/09/2020,3775121-2014053H,967.20,KELLY PARK LTD..
Adult and Health Services,Head of Adults,Third Party Payments,472101,Purchase of Care,01/09/2020,3775121-2014196H,531.70,KELLY PARK LTD..
Adult and Health Services,Head of Adults,Third Party Payments,472101,Purchase of Care,01/09/2020,3775121-2014301H,977.60,KELLY PARK LTD..
Adult and Health Services,Head of Adults,Third Party Payments,472101,Purchase of Care,01/09/2020,3775121-2014314H,764.40,KELLY PARK LTD..
Adult and Health Services,Head of Adults,Third Party Payments,472101,Purchase of Care,01/09/2020,3775121-2014346H,546.00,KELLY PARK LTD..
Adult and Health Services,Head of Adults,Third Party Payments,472101,Purchase of Care,01/09/2020,3775121-2014399H,"1,513.20",KELLY PARK LTD..
Adult and Health Services,Head of Adults,Third Party Payments,472101,Purchase of Care,01/09/2020,3775121-2014468H,"1,138.80",KELLY PARK LTD..
Adult and Health Services,Head of Adults,Third Party Payments,472101,Purchase of Care,01/09/2020,3775121-2014510H,"1,664.00",KELLY PARK LTD..
Adult and Health Services,Head of Adults,Third Party Payments,472101,Purchase of Care,01/09/2020,3775121-2014605H,728.00,KELLY PARK LTD..
Adult and Health Services,Head of Adults,Third Party Payments,472101,Purchase of Care,01/09/2020,3775121-2014691H,904.80,KELLY PARK LTD..
Adult and Health Services,Head of Adults,Third Party Payments,472101,Purchase of Care,01/09/2020,3775121-2014721H,624.00,KELLY PARK LTD..
Adult and Health Services,Head of Adults,Third Party Payments,472101,Purchase of Care,01/09/2020,3775121-2014828H,616.20,KELLY PARK LTD..
Adult and Health Services,Head of Adults,Third Party Payments,472101,Purchase of Care,01/09/2020,3775121-2014896H,929.50,KELLY PARK LTD..
Adult and Health Services,Head of Adults,Third Party Payments,472101,Purchase of Care,01/09/2020,3775121-2015018H,686.40,KELLY PARK LTD..
Adult and Health Services,Head of Adults,Third Party Payments,472101,Purchase of Care,01/09/2020,3775121-2015073H,"1,060.80",KELLY PARK LTD..
Adult and Health Services,Head of Adults,Third Party Payments,472101,Purchase of Care,01/09/2020,3775121-2015124H,"1,092.00",KELLY PARK LTD..
Adult and Health Services,Head of Adults,Third Party Payments,472101,Purchase of Care,01/09/2020,3775121-2015129H,"1,747.20",KELLY PARK LTD..
Adult and Health Services,Head of Adults,Third Party Payments,472101,Purchase of Care,01/09/2020,3775121-2015269H,"3,057.60",KELLY PARK LTD..
Adult and Health Services,Head of Adults,Third Party Payments,472101,Purchase of Care,01/09/2020,3775121-2015351H,"1,107.60",KELLY PARK LTD..
Adult and Health Services,Head of Adults,Third Party Payments,472101,Purchase of Care,01/09/2020,3775121-2015409H,873.60,KELLY PARK LTD..
Adult and Health Services,Head of Adults,Third Party Payments,472101,Purchase of Care,01/09/2020,3775121-2015419H,"1,747.20",KELLY PARK LTD..
Adult and Health Services,Head of Adults,Third Party Payments,472101,Purchase of Care,01/09/2020,3775121-2015441H,"1,466.40",KELLY PARK LTD..
Adult and Health Services,Head of Adults,Third Party Payments,472101,Purchase of Care,01/09/2020,3775121-2015460H,"1,482.00",KELLY PARK LTD..
Adult and Health Services,Head of Adults,Third Party Payments,472101,Purchase of Care,01/09/2020,3775121-2015516H,574.80,KELLY PARK LTD..
Adult and Health Services,Head of Adults,Third Party Payments,472101,Purchase of Care,01/09/2020,3775121-2016193H,"1,199.90",KELLY PARK LTD..
Adult and Health Services,Head of Adults,Third Party Payments,472101,Purchase of Care,01/09/2020,3775121-2016630H,528.00,KELLY PARK LTD..
Adult and Health Services,Head of Adults,Third Party Payments,472101,Purchase of Care,01/09/2020,3775121-2016876H,982.80,KELLY PARK LTD..
Adult and Health Services,Head of Adults,Third Party Payments,472101,Purchase of Care,01/09/2020,3775121-2010002H,655.20,KELLY PARK LTD..
Adult and Health Services,Head of Adults,Third Party Payments,472101,Purchase of Care,01/09/2020,3775121-2010315H,"2,766.40",KELLY PARK LTD..
Adult and Health Services,Head of Adults,Third Party Payments,472101,Purchase of Care,01/09/2020,3774386-ADDITIONALUPLIFT6/81,"18,015.19",KELLY PARK LTD..
Adult and Health Services,Head of Adults,Third Party Payments,472101,Purchase of Care,01/09/2020,3774386-HOMECARESELFFUNDERS6-8,"1,801.52",KELLY PARK LTD..
Adult and Health Services,Head of Adults,Third Party Payments,472101,Purchase of Care,01/09/2020,3775121-2010470H,"1,856.40",KELLY PARK LTD..
Adult and Health Services,Head of Adults,Third Party Payments,472101,Purchase of Care,01/09/2020,3775127-2014577H,"1,208.00",LANGLEY HOUSE CARE HOME LTD T/A RESOLVE CARE.
Adult and Health Services,Head of Adults,Third Party Payments,472101,Purchase of Care,01/09/2020,3775215-2010471H,742.30,MIDDLETON CARE LTD.
Adult and Health Services,Head of Adults,Third Party Payments,472101,Purchase of Care,01/09/2020,3775215-2011775H,686.40,MIDDLETON CARE LTD.
Adult and Health Services,Head of Adults,Third Party Payments,472101,Purchase of Care,01/09/2020,3775215-2011921H,733.20,MIDDLETON CARE LTD.
Adult and Health Services,Head of Adults,Third Party Payments,472101,Purchase of Care,01/09/2020,3775215-2012137H,513.50,MIDDLETON CARE LTD.
Adult and Health Services,Head of Adults,Third Party Payments,472101,Purchase of Care,01/09/2020,3775215-2012240H,920.40,MIDDLETON CARE LTD.
Adult and Health Services,Head of Adults,Third Party Payments,472101,Purchase of Care,01/09/2020,3775215-2012784H,"2,357.20",MIDDLETON CARE LTD.
Adult and Health Services,Head of Adults,Third Party Payments,472101,Purchase of Care,01/09/2020,3775215-2014748H,891.60,MIDDLETON CARE LTD.
Adult and Health Services,Head of Adults,Third Party Payments,472101,Purchase of Care,01/09/2020,3775215-2014795H,"1,050.40",MIDDLETON CARE LTD.
Adult and Health Services,Head of Adults,Third Party Payments,472101,Purchase of Care,01/09/2020,3775215-2014899H,"10,052.00",MIDDLETON CARE LTD.
Adult and Health Services,Head of Adults,Third Party Payments,472101,Purchase of Care,01/09/2020,3775215-2015113H,800.80,MIDDLETON CARE LTD.
Adult and Health Services,Head of Adults,Third Party Payments,472101,Purchase of Care,01/09/2020,3775215-2010749H,873.60,MIDDLETON CARE LTD.
Adult and Health Services,Head of Adults,Third Party Payments,472101,Purchase of Care,01/09/2020,3775215-2013230H,748.80,MIDDLETON CARE LTD.
Adult and Health Services,Head of Adults,Third Party Payments,472101,Purchase of Care,01/09/2020,3775215-2014552H,"1,170.00",MIDDLETON CARE LTD.
Adult and Health Services,Head of Adults,Third Party Payments,472101,Purchase of Care,01/09/2020,3775215-2014784H,982.80,MIDDLETON CARE LTD.
Adult and Health Services,Head of Adults,Third Party Payments,472101,Purchase of Care,01/09/2020,3774420-ADDITIONALUPLIFT6/154,"1,240.72",MIDDLETON CARE LTD.
Adult and Health Services,Head of Adults,Third Party Payments,472101,Purchase of Care,01/09/2020,3775269-2010303H,"1,102.40",MY HOMECARE (DURHAM) LTD.
Adult and Health Services,Head of Adults,Third Party Payments,472101,Purchase of Care,01/09/2020,3775269-2010705H,956.80,MY HOMECARE (DURHAM) LTD.
Adult and Health Services,Head of Adults,Third Party Payments,472101,Purchase of Care,01/09/2020,3775269-2011641H,"2,693.60",MY HOMECARE (DURHAM) LTD.
Adult and Health Services,Head of Adults,Third Party Payments,472101,Purchase of Care,01/09/2020,3775269-2012385H,561.60,MY HOMECARE (DURHAM) LTD.
Adult and Health Services,Head of Adults,Third Party Payments,472101,Purchase of Care,01/09/2020,3775269-2013346H,655.20,MY HOMECARE (DURHAM) LTD.
Adult and Health Services,Head of Adults,Third Party Payments,472101,Purchase of Care,01/09/2020,3775269-2014109H,702.00,MY HOMECARE (DURHAM) LTD.
Adult and Health Services,Head of Adults,Third Party Payments,472101,Purchase of Care,01/09/2020,3775269-2014175H,873.60,MY HOMECARE (DURHAM) LTD.
Adult and Health Services,Head of Adults,Third Party Payments,472101,Purchase of Care,01/09/2020,3775269-2014964H,728.00,MY HOMECARE (DURHAM) LTD.
Adult and Health Services,Head of Adults,Third Party Payments,472101,Purchase of Care,01/09/2020,3775269-2015285H,535.60,MY HOMECARE (DURHAM) LTD.
Adult and Health Services,Head of Adults,Third Party Payments,472101,Purchase of Care,01/09/2020,3775269-2015320H,873.60,MY HOMECARE (DURHAM) LTD.
Adult and Health Services,Head of Adults,Third Party Payments,472101,Purchase of Care,01/09/2020,3775269-2011149H,"2,794.00",MY HOMECARE (DURHAM) LTD.
Adult and Health Services,Head of Adults,Third Party Payments,472101,Purchase of Care,01/09/2020,3775269-2012255H,910.00,MY HOMECARE (DURHAM) LTD.
Adult and Health Services,Head of Adults,Third Party Payments,472101,Purchase of Care,01/09/2020,3775269-2013357H,"1,076.40",MY HOMECARE (DURHAM) LTD.
Adult and Health Services,Head of Adults,Third Party Payments,472101,Purchase of Care,01/09/2020,3775269-2014438H,665.60,MY HOMECARE (DURHAM) LTD.
Adult and Health Services,Head of Adults,Third Party Payments,472101,Purchase of Care,01/09/2020,3775269-2011543H,"1,634.00",MY HOMECARE (DURHAM) LTD.
Adult and Health Services,Head of Adults,Third Party Payments,472101,Purchase of Care,01/09/2020,3775269-2010459H,"1,887.60",MY HOMECARE (DURHAM) LTD.
Adult and Health Services,Head of Adults,Third Party Payments,472101,Purchase of Care,01/09/2020,3775269-2012512H,613.60,MY HOMECARE (DURHAM) LTD.
Adult and Health Services,Head of Adults,Third Party Payments,472101,Purchase of Care,01/09/2020,3775269-2012814H,807.30,MY HOMECARE (DURHAM) LTD.
Adult and Health Services,Head of Adults,Third Party Payments,472101,Purchase of Care,01/09/2020,3775269-2013666H,"1,123.20",MY HOMECARE (DURHAM) LTD.
Adult and Health Services,Head of Adults,Third Party Payments,472101,Purchase of Care,01/09/2020,3775269-2013820H,967.20,MY HOMECARE (DURHAM) LTD.
Adult and Health Services,Head of Adults,Third Party Payments,472101,Purchase of Care,01/09/2020,3775269-2014653H,"1,092.00",MY HOMECARE (DURHAM) LTD.
Adult and Health Services,Head of Adults,Third Party Payments,472101,Purchase of Care,01/09/2020,3775269-2015286H,"1,778.40",MY HOMECARE (DURHAM) LTD.
Adult and Health Services,Head of Adults,Third Party Payments,472101,Purchase of Care,01/09/2020,3774447-ADDITIONALUPLIFT6/93,"3,076.18",MY HOMECARE (DURHAM) LTD.
Adult and Health Services,Head of Adults,Third Party Payments,472101,Purchase of Care,01/09/2020,3775270-2010591H,"1,036.72",MYCHOICE HOMECARE LTD.
Adult and Health Services,Head of Adults,Third Party Payments,472101,Purchase of Care,01/09/2020,3775270-2011299H,540.80,MYCHOICE HOMECARE LTD.
Adult and Health Services,Head of Adults,Third Party Payments,472101,Purchase of Care,01/09/2020,3775270-2012236H,742.30,MYCHOICE HOMECARE LTD.
Adult and Health Services,Head of Adults,Third Party Payments,472101,Purchase of Care,01/09/2020,3775270-2012748H,780.00,MYCHOICE HOMECARE LTD.
Adult and Health Services,Head of Adults,Third Party Payments,472101,Purchase of Care,01/09/2020,3775270-2012975H,"1,206.40",MYCHOICE HOMECARE LTD.
Adult and Health Services,Head of Adults,Third Party Payments,472101,Purchase of Care,01/09/2020,3775270-2013255H,"1,060.80",MYCHOICE HOMECARE LTD.
Adult and Health Services,Head of Adults,Third Party Payments,472101,Purchase of Care,01/09/2020,3775270-2014754H,"1,978.90",MYCHOICE HOMECARE LTD.
Adult and Health Services,Head of Adults,Third Party Payments,472101,Purchase of Care,01/09/2020,3775270-2014759H,852.80,MYCHOICE HOMECARE LTD.
Adult and Health Services,Head of Adults,Third Party Payments,472101,Purchase of Care,01/09/2020,3775270-2015725H,"1,154.40",MYCHOICE HOMECARE LTD.
Adult and Health Services,Head of Adults,Third Party Payments,472101,Purchase of Care,01/09/2020,3775274-2011042H,"12,328.44",NEWCROSS HEALTHCARE SOLUTIONS LTD.
Adult and Health Services,Head of Adults,Third Party Payments,472101,Purchase of Care,01/09/2020,3775276-2013158H,"2,073.40",NIGHTINGALES COMMUNITY CARE LTD.
Adult and Health Services,Head of Adults,Third Party Payments,472101,Purchase of Care,01/09/2020,3775276-2013188H,"1,056.00",NIGHTINGALES COMMUNITY CARE LTD.
Adult and Health Services,Head of Adults,Third Party Payments,472101,Purchase of Care,01/09/2020,3775280-2010034H,"2,665.20",NORTH EAST AUTISM SOCIETY.
Adult and Health Services,Head of Adults,Third Party Payments,472101,Purchase of Care,01/09/2020,3775288-2009501H,"1,076.40",ORCHARD HOME CARE SERVICES LTD.
Adult and Health Services,Head of Adults,Third Party Payments,472101,Purchase of Care,01/09/2020,3775288-2009537H,"1,138.80",ORCHARD HOME CARE SERVICES LTD.
Adult and Health Services,Head of Adults,Third Party Payments,472101,Purchase of Care,01/09/2020,3775288-2010371H,"1,456.00",ORCHARD HOME CARE SERVICES LTD.
Adult and Health Services,Head of Adults,Third Party Payments,472101,Purchase of Care,01/09/2020,3775288-2010372H,577.20,ORCHARD HOME CARE SERVICES LTD.
Adult and Health Services,Head of Adults,Third Party Payments,472101,Purchase of Care,01/09/2020,3775288-2010404H,"1,934.40",ORCHARD HOME CARE SERVICES LTD.
Adult and Health Services,Head of Adults,Third Party Payments,472101,Purchase of Care,01/09/2020,3775288-2010462H,644.80,ORCHARD HOME CARE SERVICES LTD.
Adult and Health Services,Head of Adults,Third Party Payments,472101,Purchase of Care,01/09/2020,3775288-2010524H,863.20,ORCHARD HOME CARE SERVICES LTD.
Adult and Health Services,Head of Adults,Third Party Payments,472101,Purchase of Care,01/09/2020,3775288-2010543H,530.40,ORCHARD HOME CARE SERVICES LTD.
Adult and Health Services,Head of Adults,Third Party Payments,472101,Purchase of Care,01/09/2020,3775288-2010656H,"1,357.20",ORCHARD HOME CARE SERVICES LTD.
Adult and Health Services,Head of Adults,Third Party Payments,472101,Purchase of Care,01/09/2020,3775288-2011092H,546.00,ORCHARD HOME CARE SERVICES LTD.
Adult and Health Services,Head of Adults,Third Party Payments,472101,Purchase of Care,01/09/2020,3775288-2011189H,514.80,ORCHARD HOME CARE SERVICES LTD.
Adult and Health Services,Head of Adults,Third Party Payments,472101,Purchase of Care,01/09/2020,3775288-2011237H,681.20,ORCHARD HOME CARE SERVICES LTD.
Adult and Health Services,Head of Adults,Third Party Payments,472101,Purchase of Care,01/09/2020,3775288-2011303H,677.30,ORCHARD HOME CARE SERVICES LTD.
Adult and Health Services,Head of Adults,Third Party Payments,472101,Purchase of Care,01/09/2020,3775288-2011408H,800.80,ORCHARD HOME CARE SERVICES LTD.
Adult and Health Services,Head of Adults,Third Party Payments,472101,Purchase of Care,01/09/2020,3775288-2011542H,"1,456.00",ORCHARD HOME CARE SERVICES LTD.
Adult and Health Services,Head of Adults,Third Party Payments,472101,Purchase of Care,01/09/2020,3775288-2011571H,557.70,ORCHARD HOME CARE SERVICES LTD.
Adult and Health Services,Head of Adults,Third Party Payments,472101,Purchase of Care,01/09/2020,3775288-2011674H,"2,043.60",ORCHARD HOME CARE SERVICES LTD.
Adult and Health Services,Head of Adults,Third Party Payments,472101,Purchase of Care,01/09/2020,3775288-2011696H,702.00,ORCHARD HOME CARE SERVICES LTD.
Adult and Health Services,Head of Adults,Third Party Payments,472101,Purchase of Care,01/09/2020,3775288-2011709H,"1,747.20",ORCHARD HOME CARE SERVICES LTD.
Adult and Health Services,Head of Adults,Third Party Payments,472101,Purchase of Care,01/09/2020,3775288-2011839H,780.00,ORCHARD HOME CARE SERVICES LTD.
Adult and Health Services,Head of Adults,Third Party Payments,472101,Purchase of Care,01/09/2020,3775288-2011996H,582.40,ORCHARD HOME CARE SERVICES LTD.
Adult and Health Services,Head of Adults,Third Party Payments,472101,Purchase of Care,01/09/2020,3775288-2012102H,858.00,ORCHARD HOME CARE SERVICES LTD.
Adult and Health Services,Head of Adults,Third Party Payments,472101,Purchase of Care,01/09/2020,3775288-2012273H,982.80,ORCHARD HOME CARE SERVICES LTD.
Adult and Health Services,Head of Adults,Third Party Payments,472101,Purchase of Care,01/09/2020,3775288-2012639H,655.20,ORCHARD HOME CARE SERVICES LTD.
Adult and Health Services,Head of Adults,Third Party Payments,472101,Purchase of Care,01/09/2020,3775288-2012661H,665.60,ORCHARD HOME CARE SERVICES LTD.
Adult and Health Services,Head of Adults,Third Party Payments,472101,Purchase of Care,01/09/2020,3775288-2013133H,"2,293.20",ORCHARD HOME CARE SERVICES LTD.
Adult and Health Services,Head of Adults,Third Party Payments,472101,Purchase of Care,01/09/2020,3775288-2013171H,565.50,ORCHARD HOME CARE SERVICES LTD.
Adult and Health Services,Head of Adults,Third Party Payments,472101,Purchase of Care,01/09/2020,3775288-2013172H,"1,887.60",ORCHARD HOME CARE SERVICES LTD.
Adult and Health Services,Head of Adults,Third Party Payments,472101,Purchase of Care,01/09/2020,3775288-2013256H,665.60,ORCHARD HOME CARE SERVICES LTD.
Adult and Health Services,Head of Adults,Third Party Payments,472101,Purchase of Care,01/09/2020,3775288-2013542H,"1,872.00",ORCHARD HOME CARE SERVICES LTD.
Adult and Health Services,Head of Adults,Third Party Payments,472101,Purchase of Care,01/09/2020,3775288-2013546H,660.40,ORCHARD HOME CARE SERVICES LTD.
Adult and Health Services,Head of Adults,Third Party Payments,472101,Purchase of Care,01/09/2020,3775288-2013752H,670.80,ORCHARD HOME CARE SERVICES LTD.
Adult and Health Services,Head of Adults,Third Party Payments,472101,Purchase of Care,01/09/2020,3775288-2014110H,655.20,ORCHARD HOME CARE SERVICES LTD.
Adult and Health Services,Head of Adults,Third Party Payments,472101,Purchase of Care,01/09/2020,3775288-2014136H,"2,184.00",ORCHARD HOME CARE SERVICES LTD.
Adult and Health Services,Head of Adults,Third Party Payments,472101,Purchase of Care,01/09/2020,3775288-2014151H,647.40,ORCHARD HOME CARE SERVICES LTD.
Adult and Health Services,Head of Adults,Third Party Payments,472101,Purchase of Care,01/09/2020,3775288-2014203H,"1,066.00",ORCHARD HOME CARE SERVICES LTD.
Adult and Health Services,Head of Adults,Third Party Payments,472101,Purchase of Care,01/09/2020,3775288-2014393H,"2,215.20",ORCHARD HOME CARE SERVICES LTD.
Adult and Health Services,Head of Adults,Third Party Payments,472101,Purchase of Care,01/09/2020,3775288-2014537H,"1,014.00",ORCHARD HOME CARE SERVICES LTD.
Adult and Health Services,Head of Adults,Third Party Payments,472101,Purchase of Care,01/09/2020,3775288-2014776H,582.40,ORCHARD HOME CARE SERVICES LTD.
Adult and Health Services,Head of Adults,Third Party Payments,472101,Purchase of Care,01/09/2020,3775288-2014906H,629.20,ORCHARD HOME CARE SERVICES LTD.
Adult and Health Services,Head of Adults,Third Party Payments,472101,Purchase of Care,01/09/2020,3775288-2014979H,904.80,ORCHARD HOME CARE SERVICES LTD.
Adult and Health Services,Head of Adults,Third Party Payments,472101,Purchase of Care,01/09/2020,3775288-2009506H,707.20,ORCHARD HOME CARE SERVICES LTD.
Adult and Health Services,Head of Adults,Third Party Payments,472101,Purchase of Care,01/09/2020,3775288-2009510H,618.80,ORCHARD HOME CARE SERVICES LTD.
Adult and Health Services,Head of Adults,Third Party Payments,472101,Purchase of Care,01/09/2020,3775288-2010001H,707.20,ORCHARD HOME CARE SERVICES LTD.
Adult and Health Services,Head of Adults,Third Party Payments,472101,Purchase of Care,01/09/2020,3775288-2010045H,"2,028.00",ORCHARD HOME CARE SERVICES LTD.
Adult and Health Services,Head of Adults,Third Party Payments,472101,Purchase of Care,01/09/2020,3775288-2010558H,738.40,ORCHARD HOME CARE SERVICES LTD.
Adult and Health Services,Head of Adults,Third Party Payments,472101,Purchase of Care,01/09/2020,3775288-2011233H,858.00,ORCHARD HOME CARE SERVICES LTD.
Adult and Health Services,Head of Adults,Third Party Payments,472101,Purchase of Care,01/09/2020,3775288-2011444H,"2,714.40",ORCHARD HOME CARE SERVICES LTD.
Adult and Health Services,Head of Adults,Third Party Payments,472101,Purchase of Care,01/09/2020,3775288-2011960H,"1,346.80",ORCHARD HOME CARE SERVICES LTD.
Adult and Health Services,Head of Adults,Third Party Payments,472101,Purchase of Care,01/09/2020,3775288-2012419H,722.80,ORCHARD HOME CARE SERVICES LTD.
Adult and Health Services,Head of Adults,Third Party Payments,472101,Purchase of Care,01/09/2020,3775288-2012663H,769.60,ORCHARD HOME CARE SERVICES LTD.
Adult and Health Services,Head of Adults,Third Party Payments,472101,Purchase of Care,01/09/2020,3775288-2012767H,531.70,ORCHARD HOME CARE SERVICES LTD.
Adult and Health Services,Head of Adults,Third Party Payments,472101,Purchase of Care,01/09/2020,3775288-2012895H,"1,456.00",ORCHARD HOME CARE SERVICES LTD.
Adult and Health Services,Head of Adults,Third Party Payments,472101,Purchase of Care,01/09/2020,3775288-2013095H,670.80,ORCHARD HOME CARE SERVICES LTD.
Adult and Health Services,Head of Adults,Third Party Payments,472101,Purchase of Care,01/09/2020,3775288-2013281H,998.40,ORCHARD HOME CARE SERVICES LTD.
Adult and Health Services,Head of Adults,Third Party Payments,472101,Purchase of Care,01/09/2020,3775288-2013736H,509.60,ORCHARD HOME CARE SERVICES LTD.
Adult and Health Services,Head of Adults,Third Party Payments,472101,Purchase of Care,01/09/2020,3775288-2013956H,998.40,ORCHARD HOME CARE SERVICES LTD.
Adult and Health Services,Head of Adults,Third Party Payments,472101,Purchase of Care,01/09/2020,3775288-2013959H,"1,747.20",ORCHARD HOME CARE SERVICES LTD.
Adult and Health Services,Head of Adults,Third Party Payments,472101,Purchase of Care,01/09/2020,3775288-2013973H,858.00,ORCHARD HOME CARE SERVICES LTD.
Adult and Health Services,Head of Adults,Third Party Payments,472101,Purchase of Care,01/09/2020,3775288-2014205H,"1,404.00",ORCHARD HOME CARE SERVICES LTD.
Adult and Health Services,Head of Adults,Third Party Payments,472101,Purchase of Care,01/09/2020,3775288-2014340H,826.80,ORCHARD HOME CARE SERVICES LTD.
Adult and Health Services,Head of Adults,Third Party Payments,472101,Purchase of Care,01/09/2020,3775288-2014359H,800.80,ORCHARD HOME CARE SERVICES LTD.
Adult and Health Services,Head of Adults,Third Party Payments,472101,Purchase of Care,01/09/2020,3775288-2014409H,"1,674.40",ORCHARD HOME CARE SERVICES LTD.
Adult and Health Services,Head of Adults,Third Party Payments,472101,Purchase of Care,01/09/2020,3775288-2014445H,"1,965.60",ORCHARD HOME CARE SERVICES LTD.
Adult and Health Services,Head of Adults,Third Party Payments,472101,Purchase of Care,01/09/2020,3775288-2014509H,"1,456.00",ORCHARD HOME CARE SERVICES LTD.
Adult and Health Services,Head of Adults,Third Party Payments,472101,Purchase of Care,01/09/2020,3775288-2014758H,586.30,ORCHARD HOME CARE SERVICES LTD.
Adult and Health Services,Head of Adults,Third Party Payments,472101,Purchase of Care,01/09/2020,3775288-2014764H,646.10,ORCHARD HOME CARE SERVICES LTD.
Adult and Health Services,Head of Adults,Third Party Payments,472101,Purchase of Care,01/09/2020,3775288-2014771H,535.60,ORCHARD HOME CARE SERVICES LTD.
Adult and Health Services,Head of Adults,Third Party Payments,472101,Purchase of Care,01/09/2020,3775288-2015036H,790.40,ORCHARD HOME CARE SERVICES LTD.
Adult and Health Services,Head of Adults,Third Party Payments,472101,Purchase of Care,01/09/2020,3775288-2011172H,"1,045.20",ORCHARD HOME CARE SERVICES LTD.
Adult and Health Services,Head of Adults,Third Party Payments,472101,Purchase of Care,01/09/2020,3775288-2013671H,561.60,ORCHARD HOME CARE SERVICES LTD.
Adult and Health Services,Head of Adults,Third Party Payments,472101,Purchase of Care,01/09/2020,3775288-2010049H,"2,184.00",ORCHARD HOME CARE SERVICES LTD.
Adult and Health Services,Head of Adults,Third Party Payments,472101,Purchase of Care,01/09/2020,3775288-2010274H,"1,716.00",ORCHARD HOME CARE SERVICES LTD.
Adult and Health Services,Head of Adults,Third Party Payments,472101,Purchase of Care,01/09/2020,3775288-2010463H,"1,561.30",ORCHARD HOME CARE SERVICES LTD.
Adult and Health Services,Head of Adults,Third Party Payments,472101,Purchase of Care,01/09/2020,3775288-2010651H,"1,684.80",ORCHARD HOME CARE SERVICES LTD.
Adult and Health Services,Head of Adults,Third Party Payments,472101,Purchase of Care,01/09/2020,3775288-2011098H,764.40,ORCHARD HOME CARE SERVICES LTD.
Adult and Health Services,Head of Adults,Third Party Payments,472101,Purchase of Care,01/09/2020,3775288-2011103H,728.00,ORCHARD HOME CARE SERVICES LTD.
Adult and Health Services,Head of Adults,Third Party Payments,472101,Purchase of Care,01/09/2020,3775288-2012084H,"1,622.40",ORCHARD HOME CARE SERVICES LTD.
Adult and Health Services,Head of Adults,Third Party Payments,472101,Purchase of Care,01/09/2020,3775288-2012359H,"1,518.40",ORCHARD HOME CARE SERVICES LTD.
Adult and Health Services,Head of Adults,Third Party Payments,472101,Purchase of Care,01/09/2020,3775288-2012424H,507.00,ORCHARD HOME CARE SERVICES LTD.
Adult and Health Services,Head of Adults,Third Party Payments,472101,Purchase of Care,01/09/2020,3775288-2012648H,598.00,ORCHARD HOME CARE SERVICES LTD.
Adult and Health Services,Head of Adults,Third Party Payments,472101,Purchase of Care,01/09/2020,3775288-2013566H,650.00,ORCHARD HOME CARE SERVICES LTD.
Adult and Health Services,Head of Adults,Third Party Payments,472101,Purchase of Care,01/09/2020,3775288-2013829H,811.20,ORCHARD HOME CARE SERVICES LTD.
Adult and Health Services,Head of Adults,Third Party Payments,472101,Purchase of Care,01/09/2020,3775288-2014240H,821.60,ORCHARD HOME CARE SERVICES LTD.
Adult and Health Services,Head of Adults,Third Party Payments,472101,Purchase of Care,01/09/2020,3775288-2014331H,"1,747.20",ORCHARD HOME CARE SERVICES LTD.
Adult and Health Services,Head of Adults,Third Party Payments,472101,Purchase of Care,01/09/2020,3775288-2014392H,686.40,ORCHARD HOME CARE SERVICES LTD.
Adult and Health Services,Head of Adults,Third Party Payments,472101,Purchase of Care,01/09/2020,3775288-2014490H,"2,059.20",ORCHARD HOME CARE SERVICES LTD.
Adult and Health Services,Head of Adults,Third Party Payments,472101,Purchase of Care,01/09/2020,3775288-2014873H,582.40,ORCHARD HOME CARE SERVICES LTD.
Adult and Health Services,Head of Adults,Third Party Payments,472101,Purchase of Care,01/09/2020,3775288-2015043H,800.80,ORCHARD HOME CARE SERVICES LTD.
Adult and Health Services,Head of Adults,Third Party Payments,472101,Purchase of Care,01/09/2020,3775288-2015149H,655.20,ORCHARD HOME CARE SERVICES LTD.
Adult and Health Services,Head of Adults,Third Party Payments,472101,Purchase of Care,01/09/2020,3775288-2009505H,811.20,ORCHARD HOME CARE SERVICES LTD.
Adult and Health Services,Head of Adults,Third Party Payments,472101,Purchase of Care,01/09/2020,3775288-2010512H,787.80,ORCHARD HOME CARE SERVICES LTD.
Adult and Health Services,Head of Adults,Third Party Payments,472101,Purchase of Care,01/09/2020,3775288-2014148H,577.20,ORCHARD HOME CARE SERVICES LTD.
Adult and Health Services,Head of Adults,Third Party Payments,472101,Purchase of Care,01/09/2020,3775288-2014516H,686.40,ORCHARD HOME CARE SERVICES LTD.
Adult and Health Services,Head of Adults,Third Party Payments,472101,Purchase of Care,01/09/2020,3774468-ADDITIONALUPLIFT6/16,"12,783.97",ORCHARD HOME CARE SERVICES LTD.
Adult and Health Services,Head of Adults,Third Party Payments,472101,Purchase of Care,01/09/2020,3774468-HOMECARESELFFUNDERS6-7,"1,278.40",ORCHARD HOME CARE SERVICES LTD.
Adult and Health Services,Head of Adults,Third Party Payments,472101,Purchase of Care,01/09/2020,3775288-2011257H,"1,466.40",ORCHARD HOME CARE SERVICES LTD.
Adult and Health Services,Head of Adults,Third Party Payments,472101,Purchase of Care,01/09/2020,3775288-2013337H,561.60,ORCHARD HOME CARE SERVICES LTD.
Adult and Health Services,Head of Adults,Third Party Payments,472101,Purchase of Care,01/09/2020,3775320-2011078H,"2,620.80",PERFECT CARE LTD.
Adult and Health Services,Head of Adults,Third Party Payments,472101,Purchase of Care,01/09/2020,3775320-2012720H,772.20,PERFECT CARE LTD.
Adult and Health Services,Head of Adults,Third Party Payments,472101,Purchase of Care,01/09/2020,3775320-2014926H,"3,042.00",PERFECT CARE LTD.
Adult and Health Services,Head of Adults,Third Party Payments,472101,Purchase of Care,01/09/2020,3775320-2009743H,873.60,PERFECT CARE LTD.
Adult and Health Services,Head of Adults,Third Party Payments,472101,Purchase of Care,01/09/2020,3775320-2010280H,904.80,PERFECT CARE LTD.
Adult and Health Services,Head of Adults,Third Party Payments,472101,Purchase of Care,01/09/2020,3775320-2010578H,816.40,PERFECT CARE LTD.
Adult and Health Services,Head of Adults,Third Party Payments,472101,Purchase of Care,01/09/2020,3775320-2012156H,863.20,PERFECT CARE LTD.
Adult and Health Services,Head of Adults,Third Party Payments,472101,Purchase of Care,01/09/2020,3775320-2012246H,"4,804.80",PERFECT CARE LTD.
Adult and Health Services,Head of Adults,Third Party Payments,472101,Purchase of Care,01/09/2020,3775320-2013023H,"2,246.40",PERFECT CARE LTD.
Adult and Health Services,Head of Adults,Third Party Payments,472101,Purchase of Care,01/09/2020,3775320-2013065H,579.80,PERFECT CARE LTD.
Adult and Health Services,Head of Adults,Third Party Payments,472101,Purchase of Care,01/09/2020,3775320-2013344H,503.10,PERFECT CARE LTD.
Adult and Health Services,Head of Adults,Third Party Payments,472101,Purchase of Care,01/09/2020,3775320-2013674H,"1,294.80",PERFECT CARE LTD.
Adult and Health Services,Head of Adults,Third Party Payments,472101,Purchase of Care,01/09/2020,3775320-2013994H,509.60,PERFECT CARE LTD.
Adult and Health Services,Head of Adults,Third Party Payments,472101,Purchase of Care,01/09/2020,3775320-2014365H,"1,794.00",PERFECT CARE LTD.
Adult and Health Services,Head of Adults,Third Party Payments,472101,Purchase of Care,01/09/2020,3775320-2014432H,790.40,PERFECT CARE LTD.
Adult and Health Services,Head of Adults,Third Party Payments,472101,Purchase of Care,01/09/2020,3775320-2014850H,741.00,PERFECT CARE LTD.
Adult and Health Services,Head of Adults,Third Party Payments,472101,Purchase of Care,01/09/2020,3775320-2014967H,"1,747.20",PERFECT CARE LTD.
Adult and Health Services,Head of Adults,Third Party Payments,472101,Purchase of Care,01/09/2020,3775320-2015013H,728.00,PERFECT CARE LTD.
Adult and Health Services,Head of Adults,Third Party Payments,472101,Purchase of Care,01/09/2020,3775320-2015088H,904.80,PERFECT CARE LTD.
Adult and Health Services,Head of Adults,Third Party Payments,472101,Purchase of Care,01/09/2020,3775320-2015250H,514.80,PERFECT CARE LTD.
Adult and Health Services,Head of Adults,Third Party Payments,472101,Purchase of Care,01/09/2020,3775320-2008995H,785.20,PERFECT CARE LTD.
Adult and Health Services,Head of Adults,Third Party Payments,472101,Purchase of Care,01/09/2020,3775320-2009147H,747.50,PERFECT CARE LTD.
Adult and Health Services,Head of Adults,Third Party Payments,472101,Purchase of Care,01/09/2020,3775320-2009210H,540.80,PERFECT CARE LTD.
Adult and Health Services,Head of Adults,Third Party Payments,472101,Purchase of Care,01/09/2020,3775320-2009235H,"1,436.50",PERFECT CARE LTD.
Adult and Health Services,Head of Adults,Third Party Payments,472101,Purchase of Care,01/09/2020,3775320-2011390H,"3,057.60",PERFECT CARE LTD.
Adult and Health Services,Head of Adults,Third Party Payments,472101,Purchase of Care,01/09/2020,3775320-2011780H,504.40,PERFECT CARE LTD.
Adult and Health Services,Head of Adults,Third Party Payments,472101,Purchase of Care,01/09/2020,3775320-2011792H,540.80,PERFECT CARE LTD.
Adult and Health Services,Head of Adults,Third Party Payments,472101,Purchase of Care,01/09/2020,3775320-2012694H,"1,107.60",PERFECT CARE LTD.
Adult and Health Services,Head of Adults,Third Party Payments,472101,Purchase of Care,01/09/2020,3775320-2012987H,"2,355.60",PERFECT CARE LTD.
Adult and Health Services,Head of Adults,Third Party Payments,472101,Purchase of Care,01/09/2020,3775320-2013369H,936.00,PERFECT CARE LTD.
Adult and Health Services,Head of Adults,Third Party Payments,472101,Purchase of Care,01/09/2020,3775320-2013395H,759.20,PERFECT CARE LTD.
Adult and Health Services,Head of Adults,Third Party Payments,472101,Purchase of Care,01/09/2020,3775320-2013490H,"1,809.60",PERFECT CARE LTD.
Adult and Health Services,Head of Adults,Third Party Payments,472101,Purchase of Care,01/09/2020,3775320-2013643H,842.40,PERFECT CARE LTD.
Adult and Health Services,Head of Adults,Third Party Payments,472101,Purchase of Care,01/09/2020,3775320-2013657H,509.60,PERFECT CARE LTD.
Adult and Health Services,Head of Adults,Third Party Payments,472101,Purchase of Care,01/09/2020,3775320-2013772H,600.60,PERFECT CARE LTD.
Adult and Health Services,Head of Adults,Third Party Payments,472101,Purchase of Care,01/09/2020,3775320-2013823H,608.40,PERFECT CARE LTD.
Adult and Health Services,Head of Adults,Third Party Payments,472101,Purchase of Care,01/09/2020,3775320-2014032H,"1,747.20",PERFECT CARE LTD.
Adult and Health Services,Head of Adults,Third Party Payments,472101,Purchase of Care,01/09/2020,3775320-2014449H,655.20,PERFECT CARE LTD.
Adult and Health Services,Head of Adults,Third Party Payments,472101,Purchase of Care,01/09/2020,3775320-2014454H,800.80,PERFECT CARE LTD.
Adult and Health Services,Head of Adults,Third Party Payments,472101,Purchase of Care,01/09/2020,3775320-2014491H,546.00,PERFECT CARE LTD.
Adult and Health Services,Head of Adults,Third Party Payments,472101,Purchase of Care,01/09/2020,3775320-2014507H,509.60,PERFECT CARE LTD.
Adult and Health Services,Head of Adults,Third Party Payments,472101,Purchase of Care,01/09/2020,3775320-2014645H,546.00,PERFECT CARE LTD.
Adult and Health Services,Head of Adults,Third Party Payments,472101,Purchase of Care,01/09/2020,3775320-2014766H,738.40,PERFECT CARE LTD.
Adult and Health Services,Head of Adults,Third Party Payments,472101,Purchase of Care,01/09/2020,3775320-2015247H,904.80,PERFECT CARE LTD.
Adult and Health Services,Head of Adults,Third Party Payments,472101,Purchase of Care,01/09/2020,3775320-2009280H,"1,887.60",PERFECT CARE LTD.
Adult and Health Services,Head of Adults,Third Party Payments,472101,Purchase of Care,01/09/2020,3775320-2009286H,904.80,PERFECT CARE LTD.
Adult and Health Services,Head of Adults,Third Party Payments,472101,Purchase of Care,01/09/2020,3775320-2009370H,561.60,PERFECT CARE LTD.
Adult and Health Services,Head of Adults,Third Party Payments,472101,Purchase of Care,01/09/2020,3775320-2009384H,993.60,PERFECT CARE LTD.
Adult and Health Services,Head of Adults,Third Party Payments,472101,Purchase of Care,01/09/2020,3775320-2011070H,676.00,PERFECT CARE LTD.
Adult and Health Services,Head of Adults,Third Party Payments,472101,Purchase of Care,01/09/2020,3775320-2011321H,"1,965.60",PERFECT CARE LTD.
Adult and Health Services,Head of Adults,Third Party Payments,472101,Purchase of Care,01/09/2020,3775320-2011386H,561.60,PERFECT CARE LTD.
Adult and Health Services,Head of Adults,Third Party Payments,472101,Purchase of Care,01/09/2020,3775320-2011389H,604.80,PERFECT CARE LTD.
Adult and Health Services,Head of Adults,Third Party Payments,472101,Purchase of Care,01/09/2020,3775320-2011750H,769.60,PERFECT CARE LTD.
Adult and Health Services,Head of Adults,Third Party Payments,472101,Purchase of Care,01/09/2020,3775320-2012674H,"1,404.00",PERFECT CARE LTD.
Adult and Health Services,Head of Adults,Third Party Payments,472101,Purchase of Care,01/09/2020,3775320-2012695H,748.80,PERFECT CARE LTD.
Adult and Health Services,Head of Adults,Third Party Payments,472101,Purchase of Care,01/09/2020,3775320-2012833H,"1,747.20",PERFECT CARE LTD.
Adult and Health Services,Head of Adults,Third Party Payments,472101,Purchase of Care,01/09/2020,3775320-2012886H,"1,606.80",PERFECT CARE LTD.
Adult and Health Services,Head of Adults,Third Party Payments,472101,Purchase of Care,01/09/2020,3775320-2013547H,"1,209.60",PERFECT CARE LTD.
Adult and Health Services,Head of Adults,Third Party Payments,472101,Purchase of Care,01/09/2020,3775320-2013584H,"1,435.20",PERFECT CARE LTD.
Adult and Health Services,Head of Adults,Third Party Payments,472101,Purchase of Care,01/09/2020,3775320-2013704H,"1,435.20",PERFECT CARE LTD.
Adult and Health Services,Head of Adults,Third Party Payments,472101,Purchase of Care,01/09/2020,3775320-2013942H,"1,497.60",PERFECT CARE LTD.
Adult and Health Services,Head of Adults,Third Party Payments,472101,Purchase of Care,01/09/2020,3775320-2014111H,624.00,PERFECT CARE LTD.
Adult and Health Services,Head of Adults,Third Party Payments,472101,Purchase of Care,01/09/2020,3775320-2014288H,540.80,PERFECT CARE LTD.
Adult and Health Services,Head of Adults,Third Party Payments,472101,Purchase of Care,01/09/2020,3775320-2014457H,652.60,PERFECT CARE LTD.
Adult and Health Services,Head of Adults,Third Party Payments,472101,Purchase of Care,01/09/2020,3775320-2014862H,756.60,PERFECT CARE LTD.
Adult and Health Services,Head of Adults,Third Party Payments,472101,Purchase of Care,01/09/2020,3775320-2014865H,"1,560.00",PERFECT CARE LTD.
Adult and Health Services,Head of Adults,Third Party Payments,472101,Purchase of Care,01/09/2020,3775320-2014898H,"2,308.80",PERFECT CARE LTD.
Adult and Health Services,Head of Adults,Third Party Payments,472101,Purchase of Care,01/09/2020,3775320-2014936H,"1,747.20",PERFECT CARE LTD.
Adult and Health Services,Head of Adults,Third Party Payments,472101,Purchase of Care,01/09/2020,3775320-2015168H,"1,934.40",PERFECT CARE LTD.
Adult and Health Services,Head of Adults,Third Party Payments,472101,Purchase of Care,01/09/2020,3775320-2015263H,983.20,PERFECT CARE LTD.
Adult and Health Services,Head of Adults,Third Party Payments,472101,Purchase of Care,01/09/2020,3775320-2015417H,873.60,PERFECT CARE LTD.
Adult and Health Services,Head of Adults,Third Party Payments,472101,Purchase of Care,01/09/2020,3775320-2010710H,826.80,PERFECT CARE LTD.
Adult and Health Services,Head of Adults,Third Party Payments,472101,Purchase of Care,01/09/2020,3775320-2011122H,612.30,PERFECT CARE LTD.
Adult and Health Services,Head of Adults,Third Party Payments,472101,Purchase of Care,01/09/2020,3775320-2011391H,946.40,PERFECT CARE LTD.
Adult and Health Services,Head of Adults,Third Party Payments,472101,Purchase of Care,01/09/2020,3775320-2011429H,"1,513.20",PERFECT CARE LTD.
Adult and Health Services,Head of Adults,Third Party Payments,472101,Purchase of Care,01/09/2020,3775320-2011675H,977.60,PERFECT CARE LTD.
Adult and Health Services,Head of Adults,Third Party Payments,472101,Purchase of Care,01/09/2020,3775320-2011794H,613.60,PERFECT CARE LTD.
Adult and Health Services,Head of Adults,Third Party Payments,472101,Purchase of Care,01/09/2020,3775320-2011961H,600.60,PERFECT CARE LTD.
Adult and Health Services,Head of Adults,Third Party Payments,472101,Purchase of Care,01/09/2020,3775320-2012159H,865.80,PERFECT CARE LTD.
Adult and Health Services,Head of Adults,Third Party Payments,472101,Purchase of Care,01/09/2020,3775320-2012681H,"1,240.20",PERFECT CARE LTD.
Adult and Health Services,Head of Adults,Third Party Payments,472101,Purchase of Care,01/09/2020,3775320-2012772H,501.80,PERFECT CARE LTD.
Adult and Health Services,Head of Adults,Third Party Payments,472101,Purchase of Care,01/09/2020,3775320-2013703H,"1,092.00",PERFECT CARE LTD.
Adult and Health Services,Head of Adults,Third Party Payments,472101,Purchase of Care,01/09/2020,3775320-2013787H,873.60,PERFECT CARE LTD.
Adult and Health Services,Head of Adults,Third Party Payments,472101,Purchase of Care,01/09/2020,3775320-2014130H,561.60,PERFECT CARE LTD.
Adult and Health Services,Head of Adults,Third Party Payments,472101,Purchase of Care,01/09/2020,3775320-2014303H,803.40,PERFECT CARE LTD.
Adult and Health Services,Head of Adults,Third Party Payments,472101,Purchase of Care,01/09/2020,3775320-2014682H,796.20,PERFECT CARE LTD.
Adult and Health Services,Head of Adults,Third Party Payments,472101,Purchase of Care,01/09/2020,3775320-2014844H,865.80,PERFECT CARE LTD.
Adult and Health Services,Head of Adults,Third Party Payments,472101,Purchase of Care,01/09/2020,3775320-2014851H,998.40,PERFECT CARE LTD.
Adult and Health Services,Head of Adults,Third Party Payments,472101,Purchase of Care,01/09/2020,3775320-2014875H,938.40,PERFECT CARE LTD.
Adult and Health Services,Head of Adults,Third Party Payments,472101,Purchase of Care,01/09/2020,3775320-2015125H,654.60,PERFECT CARE LTD.
Adult and Health Services,Head of Adults,Third Party Payments,472101,Purchase of Care,01/09/2020,3775320-2015368H,988.00,PERFECT CARE LTD.
Adult and Health Services,Head of Adults,Third Party Payments,472101,Purchase of Care,01/09/2020,3775320-2015416H,529.10,PERFECT CARE LTD.
Adult and Health Services,Head of Adults,Third Party Payments,472101,Purchase of Care,01/09/2020,3775320-2015437H,561.60,PERFECT CARE LTD.
Adult and Health Services,Head of Adults,Third Party Payments,472101,Purchase of Care,01/09/2020,3775320-2015446H,577.20,PERFECT CARE LTD.
Adult and Health Services,Head of Adults,Third Party Payments,472101,Purchase of Care,01/09/2020,3775320-2015670H,631.80,PERFECT CARE LTD.
Adult and Health Services,Head of Adults,Third Party Payments,472101,Purchase of Care,01/09/2020,3775320-2015680H,806.00,PERFECT CARE LTD.
Adult and Health Services,Head of Adults,Third Party Payments,472101,Purchase of Care,01/09/2020,3775320-2011522H,889.20,PERFECT CARE LTD.
Adult and Health Services,Head of Adults,Third Party Payments,472101,Purchase of Care,01/09/2020,3775320-2012432H,904.80,PERFECT CARE LTD.
Adult and Health Services,Head of Adults,Third Party Payments,472101,Purchase of Care,01/09/2020,3775320-2013027H,"1,957.80",PERFECT CARE LTD.
Adult and Health Services,Head of Adults,Third Party Payments,472101,Purchase of Care,01/09/2020,3775320-2013243H,894.40,PERFECT CARE LTD.
Adult and Health Services,Head of Adults,Third Party Payments,472101,Purchase of Care,01/09/2020,3775320-2013818H,873.60,PERFECT CARE LTD.
Adult and Health Services,Head of Adults,Third Party Payments,472101,Purchase of Care,01/09/2020,3775320-2013849H,748.80,PERFECT CARE LTD.
Adult and Health Services,Head of Adults,Third Party Payments,472101,Purchase of Care,01/09/2020,3775320-2014171H,"1,830.72",PERFECT CARE LTD.
Adult and Health Services,Head of Adults,Third Party Payments,472101,Purchase of Care,01/09/2020,3775320-2014649H,569.40,PERFECT CARE LTD.
Adult and Health Services,Head of Adults,Third Party Payments,472101,Purchase of Care,01/09/2020,3775320-2015685H,594.10,PERFECT CARE LTD.
Adult and Health Services,Head of Adults,Third Party Payments,472101,Purchase of Care,01/09/2020,3775320-2013798H,631.80,PERFECT CARE LTD.
Adult and Health Services,Head of Adults,Third Party Payments,472101,Purchase of Care,01/09/2020,3775320-2015696H,"1,173.90",PERFECT CARE LTD.
Adult and Health Services,Head of Adults,Third Party Payments,472101,Purchase of Care,01/09/2020,3774478-ADDITIONALUPLIFT6/82,"11,332.32",PERFECT CARE LTD.
Adult and Health Services,Head of Adults,Third Party Payments,472101,Purchase of Care,01/09/2020,3774478-HOMECARESELFFUNDERS6-2,"1,102.76",PERFECT CARE LTD.
Adult and Health Services,Head of Adults,Third Party Payments,472101,Purchase of Care,01/09/2020,3775329-2009966H,"2,496.00",PREMIER COMMUNITY CARE LTD.
Adult and Health Services,Head of Adults,Third Party Payments,472101,Purchase of Care,01/09/2020,3775329-2009681H,752.70,PREMIER COMMUNITY CARE LTD.
Adult and Health Services,Head of Adults,Third Party Payments,472101,Purchase of Care,01/09/2020,3775329-2009753H,728.00,PREMIER COMMUNITY CARE LTD.
Adult and Health Services,Head of Adults,Third Party Payments,472101,Purchase of Care,01/09/2020,3775329-2010071H,634.40,PREMIER COMMUNITY CARE LTD.
Adult and Health Services,Head of Adults,Third Party Payments,472101,Purchase of Care,01/09/2020,3775329-2010103H,873.60,PREMIER COMMUNITY CARE LTD.
Adult and Health Services,Head of Adults,Third Party Payments,472101,Purchase of Care,01/09/2020,3775329-2011448H,"1,622.40",PREMIER COMMUNITY CARE LTD.
Adult and Health Services,Head of Adults,Third Party Payments,472101,Purchase of Care,01/09/2020,3775329-2011614H,858.00,PREMIER COMMUNITY CARE LTD.
Adult and Health Services,Head of Adults,Third Party Payments,472101,Purchase of Care,01/09/2020,3775329-2012207H,"2,246.40",PREMIER COMMUNITY CARE LTD.
Adult and Health Services,Head of Adults,Third Party Payments,472101,Purchase of Care,01/09/2020,3775329-2012411H,"2,012.40",PREMIER COMMUNITY CARE LTD.
Adult and Health Services,Head of Adults,Third Party Payments,472101,Purchase of Care,01/09/2020,3775329-2013328H,"1,489.80",PREMIER COMMUNITY CARE LTD.
Adult and Health Services,Head of Adults,Third Party Payments,472101,Purchase of Care,01/09/2020,3775329-2013358H,"1,419.60",PREMIER COMMUNITY CARE LTD.
Adult and Health Services,Head of Adults,Third Party Payments,472101,Purchase of Care,01/09/2020,3775329-2013421H,709.80,PREMIER COMMUNITY CARE LTD.
Adult and Health Services,Head of Adults,Third Party Payments,472101,Purchase of Care,01/09/2020,3775329-2014184H,800.80,PREMIER COMMUNITY CARE LTD.
Adult and Health Services,Head of Adults,Third Party Payments,472101,Purchase of Care,01/09/2020,3775329-2014255H,728.00,PREMIER COMMUNITY CARE LTD.
Adult and Health Services,Head of Adults,Third Party Payments,472101,Purchase of Care,01/09/2020,3775329-2014479H,551.20,PREMIER COMMUNITY CARE LTD.
Adult and Health Services,Head of Adults,Third Party Payments,472101,Purchase of Care,01/09/2020,3775329-2014920H,655.20,PREMIER COMMUNITY CARE LTD.
Adult and Health Services,Head of Adults,Third Party Payments,472101,Purchase of Care,01/09/2020,3775329-2015273H,702.00,PREMIER COMMUNITY CARE LTD.
Adult and Health Services,Head of Adults,Third Party Payments,472101,Purchase of Care,01/09/2020,3775329-2008985H,"1,066.00",PREMIER COMMUNITY CARE LTD.
Adult and Health Services,Head of Adults,Third Party Payments,472101,Purchase of Care,01/09/2020,3775329-2008994H,624.00,PREMIER COMMUNITY CARE LTD.
Adult and Health Services,Head of Adults,Third Party Payments,472101,Purchase of Care,01/09/2020,3775329-2009034H,748.80,PREMIER COMMUNITY CARE LTD.
Adult and Health Services,Head of Adults,Third Party Payments,472101,Purchase of Care,01/09/2020,3775329-2009180H,561.60,PREMIER COMMUNITY CARE LTD.
Adult and Health Services,Head of Adults,Third Party Payments,472101,Purchase of Care,01/09/2020,3775329-2009185H,"1,001.00",PREMIER COMMUNITY CARE LTD.
Adult and Health Services,Head of Adults,Third Party Payments,472101,Purchase of Care,01/09/2020,3775329-2009200H,655.20,PREMIER COMMUNITY CARE LTD.
Adult and Health Services,Head of Adults,Third Party Payments,472101,Purchase of Care,01/09/2020,3775329-2009220H,655.20,PREMIER COMMUNITY CARE LTD.
Adult and Health Services,Head of Adults,Third Party Payments,472101,Purchase of Care,01/09/2020,3775329-2009451H,"1,045.20",PREMIER COMMUNITY CARE LTD.
Adult and Health Services,Head of Adults,Third Party Payments,472101,Purchase of Care,01/09/2020,3775329-2010019H,518.70,PREMIER COMMUNITY CARE LTD.
Adult and Health Services,Head of Adults,Third Party Payments,472101,Purchase of Care,01/09/2020,3775329-2010065H,530.40,PREMIER COMMUNITY CARE LTD.
Adult and Health Services,Head of Adults,Third Party Payments,472101,Purchase of Care,01/09/2020,3775329-2010254H,878.80,PREMIER COMMUNITY CARE LTD.
Adult and Health Services,Head of Adults,Third Party Payments,472101,Purchase of Care,01/09/2020,3775329-2010267H,509.60,PREMIER COMMUNITY CARE LTD.
Adult and Health Services,Head of Adults,Third Party Payments,472101,Purchase of Care,01/09/2020,3775329-2011287H,910.00,PREMIER COMMUNITY CARE LTD.
Adult and Health Services,Head of Adults,Third Party Payments,472101,Purchase of Care,01/09/2020,3775329-2011317H,595.40,PREMIER COMMUNITY CARE LTD.
Adult and Health Services,Head of Adults,Third Party Payments,472101,Purchase of Care,01/09/2020,3775329-2011517H,"1,552.20",PREMIER COMMUNITY CARE LTD.
Adult and Health Services,Head of Adults,Third Party Payments,472101,Purchase of Care,01/09/2020,3775329-2011823H,837.20,PREMIER COMMUNITY CARE LTD.
Adult and Health Services,Head of Adults,Third Party Payments,472101,Purchase of Care,01/09/2020,3775329-2012289H,504.40,PREMIER COMMUNITY CARE LTD.
Adult and Health Services,Head of Adults,Third Party Payments,472101,Purchase of Care,01/09/2020,3775329-2012484H,540.80,PREMIER COMMUNITY CARE LTD.
Adult and Health Services,Head of Adults,Third Party Payments,472101,Purchase of Care,01/09/2020,3775329-2012616H,"1,809.60",PREMIER COMMUNITY CARE LTD.
Adult and Health Services,Head of Adults,Third Party Payments,472101,Purchase of Care,01/09/2020,3775329-2012647H,540.80,PREMIER COMMUNITY CARE LTD.
Adult and Health Services,Head of Adults,Third Party Payments,472101,Purchase of Care,01/09/2020,3775329-2012690H,624.00,PREMIER COMMUNITY CARE LTD.
Adult and Health Services,Head of Adults,Third Party Payments,472101,Purchase of Care,01/09/2020,3775329-2012696H,562.90,PREMIER COMMUNITY CARE LTD.
Adult and Health Services,Head of Adults,Third Party Payments,472101,Purchase of Care,01/09/2020,3775329-2012738H,"1,747.20",PREMIER COMMUNITY CARE LTD.
Adult and Health Services,Head of Adults,Third Party Payments,472101,Purchase of Care,01/09/2020,3775329-2012837H,691.60,PREMIER COMMUNITY CARE LTD.
Adult and Health Services,Head of Adults,Third Party Payments,472101,Purchase of Care,01/09/2020,3775329-2012888H,"1,060.80",PREMIER COMMUNITY CARE LTD.
Adult and Health Services,Head of Adults,Third Party Payments,472101,Purchase of Care,01/09/2020,3775329-2012985H,708.50,PREMIER COMMUNITY CARE LTD.
Adult and Health Services,Head of Adults,Third Party Payments,472101,Purchase of Care,01/09/2020,3775329-2013078H,728.00,PREMIER COMMUNITY CARE LTD.
Adult and Health Services,Head of Adults,Third Party Payments,472101,Purchase of Care,01/09/2020,3775329-2013109H,546.00,PREMIER COMMUNITY CARE LTD.
Adult and Health Services,Head of Adults,Third Party Payments,472101,Purchase of Care,01/09/2020,3775329-2013270H,997.10,PREMIER COMMUNITY CARE LTD.
Adult and Health Services,Head of Adults,Third Party Payments,472101,Purchase of Care,01/09/2020,3775329-2013312H,540.80,PREMIER COMMUNITY CARE LTD.
Adult and Health Services,Head of Adults,Third Party Payments,472101,Purchase of Care,01/09/2020,3775329-2013382H,603.20,PREMIER COMMUNITY CARE LTD.
Adult and Health Services,Head of Adults,Third Party Payments,472101,Purchase of Care,01/09/2020,3775329-2013453H,676.00,PREMIER COMMUNITY CARE LTD.
Adult and Health Services,Head of Adults,Third Party Payments,472101,Purchase of Care,01/09/2020,3775329-2013508H,728.00,PREMIER COMMUNITY CARE LTD.
Adult and Health Services,Head of Adults,Third Party Payments,472101,Purchase of Care,01/09/2020,3775329-2013590H,"1,820.00",PREMIER COMMUNITY CARE LTD.
Adult and Health Services,Head of Adults,Third Party Payments,472101,Purchase of Care,01/09/2020,3775329-2013594H,581.10,PREMIER COMMUNITY CARE LTD.
Adult and Health Services,Head of Adults,Third Party Payments,472101,Purchase of Care,01/09/2020,3775329-2013677H,655.20,PREMIER COMMUNITY CARE LTD.
Adult and Health Services,Head of Adults,Third Party Payments,472101,Purchase of Care,01/09/2020,3775329-2013694H,832.00,PREMIER COMMUNITY CARE LTD.
Adult and Health Services,Head of Adults,Third Party Payments,472101,Purchase of Care,01/09/2020,3775329-2013795H,"1,050.40",PREMIER COMMUNITY CARE LTD.
Adult and Health Services,Head of Adults,Third Party Payments,472101,Purchase of Care,01/09/2020,3775329-2013819H,800.80,PREMIER COMMUNITY CARE LTD.
Adult and Health Services,Head of Adults,Third Party Payments,472101,Purchase of Care,01/09/2020,3775329-2013963H,"1,003.60",PREMIER COMMUNITY CARE LTD.
Adult and Health Services,Head of Adults,Third Party Payments,472101,Purchase of Care,01/09/2020,3775329-2014208H,858.00,PREMIER COMMUNITY CARE LTD.
Adult and Health Services,Head of Adults,Third Party Payments,472101,Purchase of Care,01/09/2020,3775329-2014343H,"1,427.40",PREMIER COMMUNITY CARE LTD.
Adult and Health Services,Head of Adults,Third Party Payments,472101,Purchase of Care,01/09/2020,3775329-2014504H,644.80,PREMIER COMMUNITY CARE LTD.
Adult and Health Services,Head of Adults,Third Party Payments,472101,Purchase of Care,01/09/2020,3775329-2014606H,647.40,PREMIER COMMUNITY CARE LTD.
Adult and Health Services,Head of Adults,Third Party Payments,472101,Purchase of Care,01/09/2020,3775329-2014607H,686.40,PREMIER COMMUNITY CARE LTD.
Adult and Health Services,Head of Adults,Third Party Payments,472101,Purchase of Care,01/09/2020,3775329-2014632H,521.30,PREMIER COMMUNITY CARE LTD.
Adult and Health Services,Head of Adults,Third Party Payments,472101,Purchase of Care,01/09/2020,3775329-2014664H,655.20,PREMIER COMMUNITY CARE LTD.
Adult and Health Services,Head of Adults,Third Party Payments,472101,Purchase of Care,01/09/2020,3775329-2014685H,733.20,PREMIER COMMUNITY CARE LTD.
Adult and Health Services,Head of Adults,Third Party Payments,472101,Purchase of Care,01/09/2020,3775329-2014734H,670.80,PREMIER COMMUNITY CARE LTD.
Adult and Health Services,Head of Adults,Third Party Payments,472101,Purchase of Care,01/09/2020,3775329-2015130H,561.60,PREMIER COMMUNITY CARE LTD.
Adult and Health Services,Head of Adults,Third Party Payments,472101,Purchase of Care,01/09/2020,3775329-2015170H,577.20,PREMIER COMMUNITY CARE LTD.
Adult and Health Services,Head of Adults,Third Party Payments,472101,Purchase of Care,01/09/2020,3775329-2015324H,"1,801.80",PREMIER COMMUNITY CARE LTD.
Adult and Health Services,Head of Adults,Third Party Payments,472101,Purchase of Care,01/09/2020,3775329-2010099H,811.20,PREMIER COMMUNITY CARE LTD.
Adult and Health Services,Head of Adults,Third Party Payments,472101,Purchase of Care,01/09/2020,3775329-2011369H,852.80,PREMIER COMMUNITY CARE LTD.
Adult and Health Services,Head of Adults,Third Party Payments,472101,Purchase of Care,01/09/2020,3775329-2013586H,603.20,PREMIER COMMUNITY CARE LTD.
Adult and Health Services,Head of Adults,Third Party Payments,472101,Purchase of Care,01/09/2020,3775329-2013870H,842.40,PREMIER COMMUNITY CARE LTD.
Adult and Health Services,Head of Adults,Third Party Payments,472101,Purchase of Care,01/09/2020,3775329-2014060H,546.00,PREMIER COMMUNITY CARE LTD.
Adult and Health Services,Head of Adults,Third Party Payments,472101,Purchase of Care,01/09/2020,3775329-2015735H,522.60,PREMIER COMMUNITY CARE LTD.
Adult and Health Services,Head of Adults,Third Party Payments,472101,Purchase of Care,01/09/2020,3775329-2009322H,780.00,PREMIER COMMUNITY CARE LTD.
Adult and Health Services,Head of Adults,Third Party Payments,472101,Purchase of Care,01/09/2020,3775329-2011354H,847.60,PREMIER COMMUNITY CARE LTD.
Adult and Health Services,Head of Adults,Third Party Payments,472101,Purchase of Care,01/09/2020,3775329-2012261H,538.20,PREMIER COMMUNITY CARE LTD.
Adult and Health Services,Head of Adults,Third Party Payments,472101,Purchase of Care,01/09/2020,3775329-2012417H,"2,028.00",PREMIER COMMUNITY CARE LTD.
Adult and Health Services,Head of Adults,Third Party Payments,472101,Purchase of Care,01/09/2020,3775329-2012704H,"1,037.40",PREMIER COMMUNITY CARE LTD.
Adult and Health Services,Head of Adults,Third Party Payments,472101,Purchase of Care,01/09/2020,3775329-2012807H,"1,175.20",PREMIER COMMUNITY CARE LTD.
Adult and Health Services,Head of Adults,Third Party Payments,472101,Purchase of Care,01/09/2020,3775329-2012889H,655.20,PREMIER COMMUNITY CARE LTD.
Adult and Health Services,Head of Adults,Third Party Payments,472101,Purchase of Care,01/09/2020,3775329-2012890H,711.10,PREMIER COMMUNITY CARE LTD.
Adult and Health Services,Head of Adults,Third Party Payments,472101,Purchase of Care,01/09/2020,3775329-2012956H,936.00,PREMIER COMMUNITY CARE LTD.
Adult and Health Services,Head of Adults,Third Party Payments,472101,Purchase of Care,01/09/2020,3775329-2013012H,525.20,PREMIER COMMUNITY CARE LTD.
Adult and Health Services,Head of Adults,Third Party Payments,472101,Purchase of Care,01/09/2020,3775329-2013037H,904.80,PREMIER COMMUNITY CARE LTD.
Adult and Health Services,Head of Adults,Third Party Payments,472101,Purchase of Care,01/09/2020,3775329-2013461H,514.80,PREMIER COMMUNITY CARE LTD.
Adult and Health Services,Head of Adults,Third Party Payments,472101,Purchase of Care,01/09/2020,3775329-2013500H,936.00,PREMIER COMMUNITY CARE LTD.
Adult and Health Services,Head of Adults,Third Party Payments,472101,Purchase of Care,01/09/2020,3775329-2013708H,704.60,PREMIER COMMUNITY CARE LTD.
Adult and Health Services,Head of Adults,Third Party Payments,472101,Purchase of Care,01/09/2020,3775329-2013905H,546.00,PREMIER COMMUNITY CARE LTD.
Adult and Health Services,Head of Adults,Third Party Payments,472101,Purchase of Care,01/09/2020,3775329-2014105H,696.80,PREMIER COMMUNITY CARE LTD.
Adult and Health Services,Head of Adults,Third Party Payments,472101,Purchase of Care,01/09/2020,3775329-2014127H,546.00,PREMIER COMMUNITY CARE LTD.
Adult and Health Services,Head of Adults,Third Party Payments,472101,Purchase of Care,01/09/2020,3775329-2014144H,"1,123.20",PREMIER COMMUNITY CARE LTD.
Adult and Health Services,Head of Adults,Third Party Payments,472101,Purchase of Care,01/09/2020,3775329-2014268H,837.20,PREMIER COMMUNITY CARE LTD.
Adult and Health Services,Head of Adults,Third Party Payments,472101,Purchase of Care,01/09/2020,3775329-2014345H,"1,614.60",PREMIER COMMUNITY CARE LTD.
Adult and Health Services,Head of Adults,Third Party Payments,472101,Purchase of Care,01/09/2020,3775329-2014398H,"1,227.20",PREMIER COMMUNITY CARE LTD.
Adult and Health Services,Head of Adults,Third Party Payments,472101,Purchase of Care,01/09/2020,3775329-2014558H,"2,113.80",PREMIER COMMUNITY CARE LTD.
Adult and Health Services,Head of Adults,Third Party Payments,472101,Purchase of Care,01/09/2020,3775329-2014825H,728.00,PREMIER COMMUNITY CARE LTD.
Adult and Health Services,Head of Adults,Third Party Payments,472101,Purchase of Care,01/09/2020,3775329-2014923H,655.20,PREMIER COMMUNITY CARE LTD.
Adult and Health Services,Head of Adults,Third Party Payments,472101,Purchase of Care,01/09/2020,3775329-2011079H,764.40,PREMIER COMMUNITY CARE LTD.
Adult and Health Services,Head of Adults,Third Party Payments,472101,Purchase of Care,01/09/2020,3775329-2011715H,774.80,PREMIER COMMUNITY CARE LTD.
Adult and Health Services,Head of Adults,Third Party Payments,472101,Purchase of Care,01/09/2020,3775329-2012215H,"1,747.20",PREMIER COMMUNITY CARE LTD.
Adult and Health Services,Head of Adults,Third Party Payments,472101,Purchase of Care,01/09/2020,3775329-2013081H,639.60,PREMIER COMMUNITY CARE LTD.
Adult and Health Services,Head of Adults,Third Party Payments,472101,Purchase of Care,01/09/2020,3775329-2013086H,873.60,PREMIER COMMUNITY CARE LTD.
Adult and Health Services,Head of Adults,Third Party Payments,472101,Purchase of Care,01/09/2020,3775329-2013535H,"1,747.20",PREMIER COMMUNITY CARE LTD.
Adult and Health Services,Head of Adults,Third Party Payments,472101,Purchase of Care,01/09/2020,3775329-2013604H,577.20,PREMIER COMMUNITY CARE LTD.
Adult and Health Services,Head of Adults,Third Party Payments,472101,Purchase of Care,01/09/2020,3775329-2014031H,"1,099.80",PREMIER COMMUNITY CARE LTD.
Adult and Health Services,Head of Adults,Third Party Payments,472101,Purchase of Care,01/09/2020,3775329-2014129H,540.80,PREMIER COMMUNITY CARE LTD.
Adult and Health Services,Head of Adults,Third Party Payments,472101,Purchase of Care,01/09/2020,3775329-2014300H,795.60,PREMIER COMMUNITY CARE LTD.
Adult and Health Services,Head of Adults,Third Party Payments,472101,Purchase of Care,01/09/2020,3775329-2014306H,"2,464.80",PREMIER COMMUNITY CARE LTD.
Adult and Health Services,Head of Adults,Third Party Payments,472101,Purchase of Care,01/09/2020,3775329-2014703H,509.60,PREMIER COMMUNITY CARE LTD.
Adult and Health Services,Head of Adults,Third Party Payments,472101,Purchase of Care,01/09/2020,3775329-2014717H,943.60,PREMIER COMMUNITY CARE LTD.
Adult and Health Services,Head of Adults,Third Party Payments,472101,Purchase of Care,01/09/2020,3775329-2014788H,672.10,PREMIER COMMUNITY CARE LTD.
Adult and Health Services,Head of Adults,Third Party Payments,472101,Purchase of Care,01/09/2020,3775329-2014842H,656.50,PREMIER COMMUNITY CARE LTD.
Adult and Health Services,Head of Adults,Third Party Payments,472101,Purchase of Care,01/09/2020,3775329-2015306H,785.20,PREMIER COMMUNITY CARE LTD.
Adult and Health Services,Head of Adults,Third Party Payments,472101,Purchase of Care,01/09/2020,3775329-2015356H,546.00,PREMIER COMMUNITY CARE LTD.
Adult and Health Services,Head of Adults,Third Party Payments,472101,Purchase of Care,01/09/2020,3775329-2015442H,690.30,PREMIER COMMUNITY CARE LTD.
Adult and Health Services,Head of Adults,Third Party Payments,472101,Purchase of Care,01/09/2020,3775329-2015464H,733.20,PREMIER COMMUNITY CARE LTD.
Adult and Health Services,Head of Adults,Third Party Payments,472101,Purchase of Care,01/09/2020,3775329-2015710H,904.80,PREMIER COMMUNITY CARE LTD.
Adult and Health Services,Head of Adults,Third Party Payments,472101,Purchase of Care,01/09/2020,3775329-2009670H,546.00,PREMIER COMMUNITY CARE LTD.
Adult and Health Services,Head of Adults,Third Party Payments,472101,Purchase of Care,01/09/2020,3775329-2012755H,678.60,PREMIER COMMUNITY CARE LTD.
Adult and Health Services,Head of Adults,Third Party Payments,472101,Purchase of Care,01/09/2020,3775329-2013480H,733.20,PREMIER COMMUNITY CARE LTD.
Adult and Health Services,Head of Adults,Third Party Payments,472101,Purchase of Care,01/09/2020,3775329-2013746H,744.90,PREMIER COMMUNITY CARE LTD.
Adult and Health Services,Head of Adults,Third Party Payments,472101,Purchase of Care,01/09/2020,3775329-2014843H,522.60,PREMIER COMMUNITY CARE LTD.
Adult and Health Services,Head of Adults,Third Party Payments,472101,Purchase of Care,01/09/2020,3775329-2011099H,"1,076.40",PREMIER COMMUNITY CARE LTD.
Adult and Health Services,Head of Adults,Third Party Payments,472101,Purchase of Care,01/09/2020,3775329-2009979H,592.80,PREMIER COMMUNITY CARE LTD.
Adult and Health Services,Head of Adults,Third Party Payments,472101,Purchase of Care,01/09/2020,3775329-2010945H,754.00,PREMIER COMMUNITY CARE LTD.
Adult and Health Services,Head of Adults,Third Party Payments,472101,Purchase of Care,01/09/2020,3775329-2014146H,655.20,PREMIER COMMUNITY CARE LTD.
Adult and Health Services,Head of Adults,Third Party Payments,472101,Purchase of Care,01/09/2020,3775329-2014557H,561.60,PREMIER COMMUNITY CARE LTD.
Adult and Health Services,Head of Adults,Third Party Payments,472101,Purchase of Care,01/09/2020,3774487-ADDITIONALUPLIFT6/11,"17,588.54",PREMIER COMMUNITY CARE LTD.
Adult and Health Services,Head of Adults,Third Party Payments,472101,Purchase of Care,01/09/2020,3774487-HOMECARESELFFUNDERS6-3,"1,758.85",PREMIER COMMUNITY CARE LTD.
Adult and Health Services,Head of Adults,Third Party Payments,472101,Purchase of Care,01/09/2020,3775329-2013463H,826.80,PREMIER COMMUNITY CARE LTD.
Adult and Health Services,Head of Adults,Third Party Payments,472101,Purchase of Care,01/09/2020,3775330-2009761H,"1,636.60",QUALITY FIRST CARE SERVICES LTD.
Adult and Health Services,Head of Adults,Third Party Payments,472101,Purchase of Care,01/09/2020,3775330-2013779H,"1,528.80",QUALITY FIRST CARE SERVICES LTD.
Adult and Health Services,Head of Adults,Third Party Payments,472101,Purchase of Care,01/09/2020,3775330-2015120H,"1,248.00",QUALITY FIRST CARE SERVICES LTD.
Adult and Health Services,Head of Adults,Third Party Payments,472101,Purchase of Care,01/09/2020,3775330-2011869H,"3,556.80",QUALITY FIRST CARE SERVICES LTD.
Adult and Health Services,Head of Adults,Third Party Payments,472101,Purchase of Care,01/09/2020,3775330-2011083H,"1,965.60",QUALITY FIRST CARE SERVICES LTD.
Adult and Health Services,Head of Adults,Third Party Payments,472101,Purchase of Care,01/09/2020,3775330-2014579H,"2,665.00",QUALITY FIRST CARE SERVICES LTD.
Adult and Health Services,Head of Adults,Third Party Payments,472101,Purchase of Care,01/09/2020,3774492-ADDITIONALUPLIFT6/156,719.34,QUALITY FIRST CARE SERVICES LTD.
Adult and Health Services,Head of Adults,Third Party Payments,472101,Purchase of Care,01/09/2020,3775339-2009491H,"1,003.60",RESOURCES CARE T/A MYHOMECARE DDNY LTD.
Adult and Health Services,Head of Adults,Third Party Payments,472101,Purchase of Care,01/09/2020,3775339-2014669H,918.40,RESOURCES CARE T/A MYHOMECARE DDNY LTD.
Adult and Health Services,Head of Adults,Third Party Payments,472101,Purchase of Care,01/09/2020,3775339-2012122H,"1,164.80",RESOURCES CARE T/A MYHOMECARE DDNY LTD.
Adult and Health Services,Head of Adults,Third Party Payments,472101,Purchase of Care,01/09/2020,3775339-2010166H,"2,059.20",RESOURCES CARE T/A MYHOMECARE DDNY LTD.
Adult and Health Services,Head of Adults,Third Party Payments,472101,Purchase of Care,01/09/2020,3774503-ADDITIONALUPLIFT6/149,577.68,RESOURCES CARE T/A MYHOMECARE DDNY LTD.
Adult and Health Services,Head of Adults,Third Party Payments,472101,Purchase of Care,01/09/2020,3775365-2011370H,557.70,SECOND TO NONE CARE LTD.
Adult and Health Services,Head of Adults,Third Party Payments,472101,Purchase of Care,01/09/2020,3775365-2015035H,"1,388.40",SECOND TO NONE CARE LTD.
Adult and Health Services,Head of Adults,Third Party Payments,472101,Purchase of Care,01/09/2020,3775365-2015128H,"1,029.60",SECOND TO NONE CARE LTD.
Adult and Health Services,Head of Adults,Third Party Payments,472101,Purchase of Care,01/09/2020,3775365-2015699H,577.20,SECOND TO NONE CARE LTD.
Adult and Health Services,Head of Adults,Third Party Payments,472101,Purchase of Care,01/09/2020,3775365-2015715H,"1,177.80",SECOND TO NONE CARE LTD.
Adult and Health Services,Head of Adults,Third Party Payments,472101,Purchase of Care,01/09/2020,3775365-2016777H,"1,996.80",SECOND TO NONE CARE LTD.
Adult and Health Services,Head of Adults,Third Party Payments,472101,Purchase of Care,01/09/2020,3775365-2014860H,"1,915.20",SECOND TO NONE CARE LTD.
Adult and Health Services,Head of Adults,Third Party Payments,472101,Purchase of Care,01/09/2020,3775365-2012832H,"1,341.60",SECOND TO NONE CARE LTD.
Adult and Health Services,Head of Adults,Third Party Payments,472101,Purchase of Care,01/09/2020,3775365-2014326H,"2,548.00",SECOND TO NONE CARE LTD.
Adult and Health Services,Head of Adults,Third Party Payments,472101,Purchase of Care,01/09/2020,3775365-2016858H,"1,996.80",SECOND TO NONE CARE LTD.
Adult and Health Services,Head of Adults,Third Party Payments,472101,Purchase of Care,01/09/2020,3775365-2012150H,928.20,SECOND TO NONE CARE LTD.
Adult and Health Services,Head of Adults,Third Party Payments,472101,Purchase of Care,01/09/2020,3775365-2012320H,"1,809.60",SECOND TO NONE CARE LTD.
Adult and Health Services,Head of Adults,Third Party Payments,472101,Purchase of Care,01/09/2020,3775365-2012532H,904.80,SECOND TO NONE CARE LTD.
Adult and Health Services,Head of Adults,Third Party Payments,472101,Purchase of Care,01/09/2020,3775365-2012827H,"1,279.20",SECOND TO NONE CARE LTD.
Adult and Health Services,Head of Adults,Third Party Payments,472101,Purchase of Care,01/09/2020,3775365-2013620H,780.00,SECOND TO NONE CARE LTD.
Adult and Health Services,Head of Adults,Third Party Payments,472101,Purchase of Care,01/09/2020,3775365-2013851H,"1,986.40",SECOND TO NONE CARE LTD.
Adult and Health Services,Head of Adults,Third Party Payments,472101,Purchase of Care,01/09/2020,3775365-2014431H,936.00,SECOND TO NONE CARE LTD.
Adult and Health Services,Head of Adults,Third Party Payments,472101,Purchase of Care,01/09/2020,3775365-2015737H,"3,073.20",SECOND TO NONE CARE LTD.
Adult and Health Services,Head of Adults,Third Party Payments,472101,Purchase of Care,01/09/2020,3774530-ADDITIONALUPLIFT6/155,945.60,SECOND TO NONE CARE LTD.
Adult and Health Services,Head of Adults,Third Party Payments,472101,Purchase of Care,01/09/2020,3775378-2007014H,"1,149.24",SPRINGFIELD HOMECARE SERVICES LTD.
Adult and Health Services,Head of Adults,Third Party Payments,472101,Purchase of Care,01/09/2020,3775378-2015911H,714.36,SPRINGFIELD HOMECARE SERVICES LTD.
Adult and Health Services,Head of Adults,Third Party Payments,472101,Purchase of Care,01/09/2020,3775390-2009010H,"1,462.50",SUPPORTIVE SRC LTD.
Adult and Health Services,Head of Adults,Third Party Payments,472101,Purchase of Care,01/09/2020,3775390-2009027H,"1,872.00",SUPPORTIVE SRC LTD.
Adult and Health Services,Head of Adults,Third Party Payments,472101,Purchase of Care,01/09/2020,3775390-2009049H,998.40,SUPPORTIVE SRC LTD.
Adult and Health Services,Head of Adults,Third Party Payments,472101,Purchase of Care,01/09/2020,3775390-2009061H,"2,184.00",SUPPORTIVE SRC LTD.
Adult and Health Services,Head of Adults,Third Party Payments,472101,Purchase of Care,01/09/2020,3775390-2009137H,"1,976.00",SUPPORTIVE SRC LTD.
Adult and Health Services,Head of Adults,Third Party Payments,472101,Purchase of Care,01/09/2020,3775390-2009187H,691.60,SUPPORTIVE SRC LTD.
Adult and Health Services,Head of Adults,Third Party Payments,472101,Purchase of Care,01/09/2020,3775390-2011210H,728.00,SUPPORTIVE SRC LTD.
Adult and Health Services,Head of Adults,Third Party Payments,472101,Purchase of Care,01/09/2020,3775390-2011983H,572.00,SUPPORTIVE SRC LTD.
Adult and Health Services,Head of Adults,Third Party Payments,472101,Purchase of Care,01/09/2020,3775390-2011990H,790.40,SUPPORTIVE SRC LTD.
Adult and Health Services,Head of Adults,Third Party Payments,472101,Purchase of Care,01/09/2020,3775390-2012038H,998.40,SUPPORTIVE SRC LTD.
Adult and Health Services,Head of Adults,Third Party Payments,472101,Purchase of Care,01/09/2020,3775390-2012132H,936.00,SUPPORTIVE SRC LTD.
Adult and Health Services,Head of Adults,Third Party Payments,472101,Purchase of Care,01/09/2020,3775390-2013317H,"1,445.60",SUPPORTIVE SRC LTD.
Adult and Health Services,Head of Adults,Third Party Payments,472101,Purchase of Care,01/09/2020,3775390-2013331H,930.80,SUPPORTIVE SRC LTD.
Adult and Health Services,Head of Adults,Third Party Payments,472101,Purchase of Care,01/09/2020,3775390-2013345H,889.20,SUPPORTIVE SRC LTD.
Adult and Health Services,Head of Adults,Third Party Payments,472101,Purchase of Care,01/09/2020,3775390-2013398H,"2,008.52",SUPPORTIVE SRC LTD.
Adult and Health Services,Head of Adults,Third Party Payments,472101,Purchase of Care,01/09/2020,3775390-2013510H,613.60,SUPPORTIVE SRC LTD.
Adult and Health Services,Head of Adults,Third Party Payments,472101,Purchase of Care,01/09/2020,3775390-2013627H,863.20,SUPPORTIVE SRC LTD.
Adult and Health Services,Head of Adults,Third Party Payments,472101,Purchase of Care,01/09/2020,3775390-2013987H,"1,482.00",SUPPORTIVE SRC LTD.
Adult and Health Services,Head of Adults,Third Party Payments,472101,Purchase of Care,01/09/2020,3775390-2014384H,"1,092.00",SUPPORTIVE SRC LTD.
Adult and Health Services,Head of Adults,Third Party Payments,472101,Purchase of Care,01/09/2020,3775390-2014984H,759.20,SUPPORTIVE SRC LTD.
Adult and Health Services,Head of Adults,Third Party Payments,472101,Purchase of Care,01/09/2020,3775390-2015052H,"1,107.60",SUPPORTIVE SRC LTD.
Adult and Health Services,Head of Adults,Third Party Payments,472101,Purchase of Care,01/09/2020,3775390-2010825H,"1,170.00",SUPPORTIVE SRC LTD.
Adult and Health Services,Head of Adults,Third Party Payments,472101,Purchase of Care,01/09/2020,3775390-2011017H,"1,003.60",SUPPORTIVE SRC LTD.
Adult and Health Services,Head of Adults,Third Party Payments,472101,Purchase of Care,01/09/2020,3775390-2011207H,904.80,SUPPORTIVE SRC LTD.
Adult and Health Services,Head of Adults,Third Party Payments,472101,Purchase of Care,01/09/2020,3775390-2011288H,561.60,SUPPORTIVE SRC LTD.
Adult and Health Services,Head of Adults,Third Party Payments,472101,Purchase of Care,01/09/2020,3775390-2011316H,826.80,SUPPORTIVE SRC LTD.
Adult and Health Services,Head of Adults,Third Party Payments,472101,Purchase of Care,01/09/2020,3775390-2012129H,650.00,SUPPORTIVE SRC LTD.
Adult and Health Services,Head of Adults,Third Party Payments,472101,Purchase of Care,01/09/2020,3775390-2012152H,"1,050.40",SUPPORTIVE SRC LTD.
Adult and Health Services,Head of Adults,Third Party Payments,472101,Purchase of Care,01/09/2020,3775390-2012172H,759.20,SUPPORTIVE SRC LTD.
Adult and Health Services,Head of Adults,Third Party Payments,472101,Purchase of Care,01/09/2020,3775390-2012413H,"1,965.60",SUPPORTIVE SRC LTD.
Adult and Health Services,Head of Adults,Third Party Payments,472101,Purchase of Care,01/09/2020,3775390-2012492H,"1,747.20",SUPPORTIVE SRC LTD.
Adult and Health Services,Head of Adults,Third Party Payments,472101,Purchase of Care,01/09/2020,3775390-2012583H,561.60,SUPPORTIVE SRC LTD.
Adult and Health Services,Head of Adults,Third Party Payments,472101,Purchase of Care,01/09/2020,3775390-2012945H,743.60,SUPPORTIVE SRC LTD.
Adult and Health Services,Head of Adults,Third Party Payments,472101,Purchase of Care,01/09/2020,3775390-2013563H,530.40,SUPPORTIVE SRC LTD.
Adult and Health Services,Head of Adults,Third Party Payments,472101,Purchase of Care,01/09/2020,3775390-2013648H,694.20,SUPPORTIVE SRC LTD.
Adult and Health Services,Head of Adults,Third Party Payments,472101,Purchase of Care,01/09/2020,3775390-2013757H,655.20,SUPPORTIVE SRC LTD.
Adult and Health Services,Head of Adults,Third Party Payments,472101,Purchase of Care,01/09/2020,3775390-2013840H,644.80,SUPPORTIVE SRC LTD.
Adult and Health Services,Head of Adults,Third Party Payments,472101,Purchase of Care,01/09/2020,3775390-2013992H,540.80,SUPPORTIVE SRC LTD.
Adult and Health Services,Head of Adults,Third Party Payments,472101,Purchase of Care,01/09/2020,3775390-2014001H,873.60,SUPPORTIVE SRC LTD.
Adult and Health Services,Head of Adults,Third Party Payments,472101,Purchase of Care,01/09/2020,3775390-2014176H,655.20,SUPPORTIVE SRC LTD.
Adult and Health Services,Head of Adults,Third Party Payments,472101,Purchase of Care,01/09/2020,3775390-2014370H,"1,747.20",SUPPORTIVE SRC LTD.
Adult and Health Services,Head of Adults,Third Party Payments,472101,Purchase of Care,01/09/2020,3775390-2014908H,936.00,SUPPORTIVE SRC LTD.
Adult and Health Services,Head of Adults,Third Party Payments,472101,Purchase of Care,01/09/2020,3775390-2014953H,655.20,SUPPORTIVE SRC LTD.
Adult and Health Services,Head of Adults,Third Party Payments,472101,Purchase of Care,01/09/2020,3775390-2014994H,655.20,SUPPORTIVE SRC LTD.
Adult and Health Services,Head of Adults,Third Party Payments,472101,Purchase of Care,01/09/2020,3775390-2012177H,"1,055.60",SUPPORTIVE SRC LTD.
Adult and Health Services,Head of Adults,Third Party Payments,472101,Purchase of Care,01/09/2020,3775390-2013912H,518.70,SUPPORTIVE SRC LTD.
Adult and Health Services,Head of Adults,Third Party Payments,472101,Purchase of Care,01/09/2020,3775390-2011568H,800.80,SUPPORTIVE SRC LTD.
Adult and Health Services,Head of Adults,Third Party Payments,472101,Purchase of Care,01/09/2020,3775390-2012043H,"2,183.44",SUPPORTIVE SRC LTD.
Adult and Health Services,Head of Adults,Third Party Payments,472101,Purchase of Care,01/09/2020,3775390-2012540H,972.40,SUPPORTIVE SRC LTD.
Adult and Health Services,Head of Adults,Third Party Payments,472101,Purchase of Care,01/09/2020,3775390-2013279H,670.80,SUPPORTIVE SRC LTD.
Adult and Health Services,Head of Adults,Third Party Payments,472101,Purchase of Care,01/09/2020,3775390-2013598H,858.00,SUPPORTIVE SRC LTD.
Adult and Health Services,Head of Adults,Third Party Payments,472101,Purchase of Care,01/09/2020,3775390-2013750H,873.60,SUPPORTIVE SRC LTD.
Adult and Health Services,Head of Adults,Third Party Payments,472101,Purchase of Care,01/09/2020,3775390-2013771H,613.60,SUPPORTIVE SRC LTD.
Adult and Health Services,Head of Adults,Third Party Payments,472101,Purchase of Care,01/09/2020,3775390-2013789H,998.40,SUPPORTIVE SRC LTD.
Adult and Health Services,Head of Adults,Third Party Payments,472101,Purchase of Care,01/09/2020,3775390-2015139H,904.80,SUPPORTIVE SRC LTD.
Adult and Health Services,Head of Adults,Third Party Payments,472101,Purchase of Care,01/09/2020,3775390-2009078H,"1,248.65",SUPPORTIVE SRC LTD.
Adult and Health Services,Head of Adults,Third Party Payments,472101,Purchase of Care,01/09/2020,3775390-2011412H,865.80,SUPPORTIVE SRC LTD.
Adult and Health Services,Head of Adults,Third Party Payments,472101,Purchase of Care,01/09/2020,3775390-2011363H,561.60,SUPPORTIVE SRC LTD.
Adult and Health Services,Head of Adults,Third Party Payments,472101,Purchase of Care,01/09/2020,3775390-2013043H,791.70,SUPPORTIVE SRC LTD.
Adult and Health Services,Head of Adults,Third Party Payments,472101,Purchase of Care,01/09/2020,3775390-2013096H,"2,390.70",SUPPORTIVE SRC LTD.
Adult and Health Services,Head of Adults,Third Party Payments,472101,Purchase of Care,01/09/2020,3775390-2013489H,728.00,SUPPORTIVE SRC LTD.
Adult and Health Services,Head of Adults,Third Party Payments,472101,Purchase of Care,01/09/2020,3774561-ADDITIONALUPLIFT6/150,"8,633.45",SUPPORTIVE SRC LTD.
Adult and Health Services,Head of Adults,Third Party Payments,472101,Purchase of Care,01/09/2020,3774561-HOMECARESELFFUNDERS6-4,863.35,SUPPORTIVE SRC LTD.
Adult and Health Services,Head of Adults,Third Party Payments,472101,Purchase of Care,01/09/2020,3775416-2010304H,655.20,TLC COMMUNITY SERVICES.
Adult and Health Services,Head of Adults,Third Party Payments,472101,Purchase of Care,01/09/2020,3775416-2011502H,816.40,TLC COMMUNITY SERVICES.
Adult and Health Services,Head of Adults,Third Party Payments,472101,Purchase of Care,01/09/2020,3775416-2013130H,634.40,TLC COMMUNITY SERVICES.
Adult and Health Services,Head of Adults,Third Party Payments,472101,Purchase of Care,01/09/2020,3775416-2013183H,852.80,TLC COMMUNITY SERVICES.
Adult and Health Services,Head of Adults,Third Party Payments,472101,Purchase of Care,01/09/2020,3775416-2013327H,639.60,TLC COMMUNITY SERVICES.
Adult and Health Services,Head of Adults,Third Party Payments,472101,Purchase of Care,01/09/2020,3775416-2013709H,"1,107.60",TLC COMMUNITY SERVICES.
Adult and Health Services,Head of Adults,Third Party Payments,472101,Purchase of Care,01/09/2020,3775416-2014477H,655.20,TLC COMMUNITY SERVICES.
Adult and Health Services,Head of Adults,Third Party Payments,472101,Purchase of Care,01/09/2020,3775416-2009540H,"1,596.40",TLC COMMUNITY SERVICES.
Adult and Health Services,Head of Adults,Third Party Payments,472101,Purchase of Care,01/09/2020,3775416-2011934H,"1,378.00",TLC COMMUNITY SERVICES.
Adult and Health Services,Head of Adults,Third Party Payments,472101,Purchase of Care,01/09/2020,3775416-2012248H,748.80,TLC COMMUNITY SERVICES.
Adult and Health Services,Head of Adults,Third Party Payments,472101,Purchase of Care,01/09/2020,3775416-2013538H,691.60,TLC COMMUNITY SERVICES.
Adult and Health Services,Head of Adults,Third Party Payments,472101,Purchase of Care,01/09/2020,3775416-2015079H,"1,890.20",TLC COMMUNITY SERVICES.
